Workbook

Sheet Main
B10: 2019-03-18
B12: Sheet No. | C12: Template Name | D12: Summary
B13: 1 | C13: Future Intra | D13: For Intraday trading in F&O segment
B14: 2 | C14: Cash Intra | D14: For Intraday trading in cash market segment
B15: 3 | C15: Mid-cap Intra | D15: For Intraday trading in Mid-cap stocks
B16: 4 | C16: Bulk Deals | D16: Reveals Bulk Deals carried on NSE & BSE
B17: 5 | C17: Call Tracker

Sheet Future Intra
M5: Back to Main Page
A6: FOR INTRA DAY TRADING | L6: =Main!B10 -> 2019-03-18
A9: Sr.no | B9: Sector | C9: Scrip | D9: CLOSE RATE | E9: Pivot Point | F9: Supports | I9: Resistances
B10: Sector | D10: Point | E10: Point | F10: S1 | G10: S2 | H10: S3 | I10: R1 | J10: R2 | K10: R3 | L10: HIGH | M10: LOW | N10: OI | O10: % Change in OI
A11: 1 | B11: Index | C11: BANKNIFTY | D11: 29465.50 | E11: 29388.02 | F11: 29117.73 | G11: 28769.97 | H11: 28499.68 | I11: 29735.78 | J11: 30006.07 | K11: 30353.83 | L11: 29658.3 | M11: 29040.25 | N11: 3060260 | O11: 6.39%
A12: 2 | B12: Index | C12: NIFTY | D12: 11470.45 | E12: 11464.32 | F12: 11396.13 | G12: 11321.82 | H12: 11253.63 | I12: 11538.63 | J12: 11606.82 | K12: 11681.13 | L12: 11532.5 | M12: 11390 | N12: 23927250 | O12: 15.27%
A13: 3 | B13: Index | C13: NIFTYIT | D13: 15619.00 | E13: 15583.67 | F13: 15408.33 | G13: 15197.67 | H13: 15022.33 | I13: 15794.33 | J13: 15969.67 | K13: 16180.33 | L13: 15759 | M13: 15373 | N13: 18300 | O13: -21.79%
A14: 4 | B14: Cement | C14: ACC | D14: 1539.60 | E14: 1546.70 | F14: 1526.55 | G14: 1513.50 | H14: 1493.35 | I14: 1559.75 | J14: 1579.90 | K14: 1592.95 | L14: 1566.85 | M14: 1533.65 | N14: 2684400 | O14: 5.64%
A15: 5 | B15: Others | C15: ADANIENT | D15: 142.20 | E15: 143.97 | F15: 138.13 | G15: 134.07 | H15: 128.23 | I15: 148.03 | J15: 153.87 | K15: 157.93 | L15: 149.8 | M15: 139.9 | N15: 43836000 | O15: -2.13%
A16: 6 | B16: Others | C16: ADANIPORTS | D16: 367.95 | E16: 366.62 | F16: 363.68 | G16: 359.42 | H16: 356.48 | I16: 370.88 | J16: 373.82 | K16: 378.08 | L16: 369.55 | M16: 362.35 | N16: 24072500 | O16: -2.58%
A17: 7 | B17: Power | C17: ADANIPOWER | D17: 51.05 | E17: 50.95 | F17: 50.50 | G17: 49.95 | H17: 49.50 | I17: 51.50 | J17: 51.95 | K17: 52.50 | L17: 51.4 | M17: 50.4 | N17: 164620000 | O17: 0.50%
A18: 8 | B18: Pharma | C18: AJANTPHARM | D18: 1012.75 | E18: 1021.03 | F18: 998.72 | G18: 984.68 | H18: 962.37 | I18: 1035.07 | J18: 1057.38 | K18: 1071.42 | L18: 1043.35 | M18: 1007 | N18: 873000 | O18: 0.69%
A19: 9 | B19: Banking | C19: ALBK | D19: 53.20 | E19: 53.80 | F19: 52.25 | G19: 51.30 | H19: 49.75 | I19: 54.75 | J19: 56.30 | K19: 57.25 | L19: 55.35 | M19: 52.85 | N19: 27053000 | O19: -2.67%
A20: 10 | B20: Automobile | C20: AMARAJABAT | D20: 749.80 | E20: 750.63 | F20: 745.42 | G20: 741.03 | H20: 735.82 | I20: 755.02 | J20: 760.23 | K20: 764.62 | L20: 755.85 | M20: 746.25 | N20: 1005900 | O20: 1.84%
A21: 11 | B21: Cement | C21: AMBUJACEM | D21: 225.55 | E21: 226.53 | F21: 223.07 | G21: 220.58 | H21: 217.12 | I21: 229.02 | J21: 232.48 | K21: 234.97 | L21: 230 | M21: 224.05 | N21: 12907500 | O21: -1.38%
A22: 12 | B22: Others | C22: APOLLOHOSP | D22: 1129.70 | E22: 1133.02 | F22: 1109.08 | G22: 1088.47 | H22: 1064.53 | I22: 1153.63 | J22: 1177.57 | K22: 1198.18 | L22: 1156.95 | M22: 1112.4 | N22: 1623000 | O22: -0.34%
A23: 13 | B23: Automobile | C23: APOLLOTYRE | D23: 222.75 | E23: 223.27 | F23: 221.03 | G23: 219.32 | H23: 217.08 | I23: 224.98 | J23: 227.22 | K23: 228.93 | L23: 225.5 | M23: 221.55 | N23: 12792000 | O23: -2.18%
A24: 14 | B24: Textile | C24: ARVIND | D24: 95.30 | E24: 95.48 | F24: 94.17 | G24: 93.03 | H24: 91.72 | I24: 96.62 | J24: 97.93 | K24: 99.07 | L24: 96.8 | M24: 94.35 | N24: 7336000 | O24: -13.43%
A25: 15 | B25: Automobile | C25: ASHOKLEY | D25: 94.10 | E25: 94.37 | F25: 93.48 | G25: 92.87 | H25: 91.98 | I25: 94.98 | J25: 95.87 | K25: 96.48 | L25: 95.25 | M25: 93.75 | N25: 68672000 | O25: -0.64%
A26: 16 | B26: FMCG | C26: ASIANPAINT | D26: 1439.55 | E26: 1445.37 | F26: 1429.93 | G26: 1420.32 | H26: 1404.88 | I26: 1454.98 | J26: 1470.42 | K26: 1480.03 | L26: 1460.8 | M26: 1435.75 | N26: 5764800 | O26: 3.93%
A27: 17 | B27: Pharma | C27: AUROPHARMA | D27: 775.10 | E27: 778.02 | F27: 769.03 | G27: 762.97 | H27: 753.98 | I27: 784.08 | J27: 793.07 | K27: 799.13 | L27: 787 | M27: 771.95 | N27: 17139000 | O27: -0.82%
A28: 18 | B28: Banking | C28: AXISBANK | D28: 738.45 | E28: 741.57 | F28: 732.28 | G28: 726.12 | H28: 716.83 | I28: 747.73 | J28: 757.02 | K28: 763.18 | L28: 750.85 | M28: 735.4 | N28: 37723200 | O28: 5.11%
A29: 19 | B29: Automobile | C29: BAJAJ-AUTO | D29: 3012.10 | E29: 3003.15 | F29: 2984.10 | G29: 2956.10 | H29: 2937.05 | I29: 3031.15 | J29: 3050.20 | K29: 3078.20 | L29: 3022.2 | M29: 2975.15 | N29: 3477250 | O29: 3.06%
A30: 20 | B30: Others | C30: BAJAJFINSV | D30: 6962.35 | E30: 6974.42 | F30: 6908.83 | G30: 6855.32 | H30: 6789.73 | I30: 7027.93 | J30: 7093.52 | K30: 7147.03 | L30: 7040 | M30: 6920.9 | N30: 703625 | O30: 8.00%
A31: 21 | B31: Finance | C31: BAJFINANCE | D31: 2871.20 | E31: 2868.57 | F31: 2827.13 | G31: 2783.07 | H31: 2741.63 | I31: 2912.63 | J31: 2954.07 | K31: 2998.13 | L31: 2910 | M31: 2824.5 | N31: 5447250 | O31: -4.75%
A32: 22 | B32: Others | C32: BALKRISIND | D32: 936.30 | E32: 940.35 | F32: 928.70 | G32: 921.10 | H32: 909.45 | I32: 947.95 | J32: 959.60 | K32: 967.20 | L32: 952 | M32: 932.75 | N32: 1860000 | O32: -1.36%
A33: 23 | B33: Banking | C33: BANKBARODA | D33: 118.40 | E33: 118.38 | F33: 116.37 | G33: 114.33 | H33: 112.32 | I33: 120.42 | J33: 122.43 | K33: 124.47 | L33: 120.4 | M33: 116.35 | N33: 59848000 | O33: -2.60%
A34: 24 | B34: Banking | C34: BANKINDIA | D34: 93.40 | E34: 93.97 | F34: 92.33 | G34: 91.27 | H34: 89.63 | I34: 95.03 | J34: 96.67 | K34: 97.73 | L34: 95.6 | M34: 92.9 | N34: 23976000 | O34: -2.15%
A35: 25 | B35: FMCG | C35: BATAINDIA | D35: 1359.65 | E35: 1361.35 | F35: 1349.30 | G35: 1338.95 | H35: 1326.90 | I35: 1371.70 | J35: 1383.75 | K35: 1394.10 | L35: 1373.4 | M35: 1351 | N35: 2403500 | O35: 3.97%
A36: 26 | B36: Capital_Goods | C36: BEL | D36: 93.40 | E36: 92.97 | F36: 91.73 | G36: 90.07 | H36: 88.83 | I36: 94.63 | J36: 95.87 | K36: 97.53 | L36: 94.2 | M36: 91.3 | N36: 34080000 | O36: -6.43%
A37: 27 | B37: Infrastructure | C37: BEML | D37: 967.60 | E37: 970.20 | F37: 959.40 | G37: 951.20 | H37: 940.40 | I37: 978.40 | J37: 989.20 | K37: 997.40 | L37: 981 | M37: 962 | N37: 1834700 | O37: -7.55%
A38: 28 | B38: Others | C38: BERGEPAINT | D38: 309.45 | E38: 309.57 | F38: 307.73 | G38: 306.02 | H38: 304.18 | I38: 311.28 | J38: 313.12 | K38: 314.83 | L38: 311.4 | M38: 307.85 | N38: 4226200 | O38: -5.69%
A39: 29 | B39: Finance | C39: BHARATFIN | D39: 1067.70 | E39: 1068.23 | F39: 1059.47 | G39: 1051.23 | H39: 1042.47 | I39: 1076.47 | J39: 1085.23 | K39: 1093.47 | L39: 1077 | M39: 1060 | N39: 4877500 | O39: -0.45%
A40: 30 | B40: Automobile | C40: BHARATFORG | D40: 536.35 | E40: 537.75 | F40: 525.80 | G40: 515.25 | H40: 503.30 | I40: 548.30 | J40: 560.25 | K40: 570.80 | L40: 549.7 | M40: 527.2 | N40: 9818400 | O40: -1.17%
A41: 31 | B41: Telecom | C41: BHARTIARTL | D41: 338.15 | E41: 338.60 | F41: 331.55 | G41: 324.95 | H41: 317.90 | I41: 345.20 | J41: 352.25 | K41: 358.85 | L41: 345.65 | M41: 332 | N41: 35329400 | O41: -3.06%
A42: 32 | B42: Capital_Goods | C42: BHEL | D42: 68.00 | E42: 67.48 | F42: 66.77 | G42: 65.53 | H42: 64.82 | I42: 68.72 | J42: 69.43 | K42: 70.67 | L42: 68.2 | M42: 66.25 | N42: 40387500 | O42: 0.47%
A43: 33 | B43: Pharma | C43: BIOCON | D43: 624.85 | E43: 625.12 | F43: 620.03 | G43: 615.22 | H43: 610.13 | I43: 629.93 | J43: 635.02 | K43: 639.83 | L43: 630.2 | M43: 620.3 | N43: 5556600 | O43: -1.04%
A44: 34 | B44: Automobile | C44: BOSCHLTD | D44: 18457.05 | E44: 18541.57 | F44: 18322.33 | G44: 18187.62 | H44: 17968.38 | I44: 18676.28 | J44: 18895.52 | K44: 19030.23 | L44: 18760.8 | M44: 18406.85 | N44: 154050 | O44: 4.09%
A45: 35 | B45: Oil_Gas | C45: BPCL | D45: 396.20 | E45: 393.30 | F45: 388.80 | G45: 381.40 | H45: 376.90 | I45: 400.70 | J45: 405.20 | K45: 412.60 | L45: 397.8 | M45: 385.9 | N45: 8395200 | O45: 3.60%
A46: 36 | B46: FMCG | C46: BRITANNIA | D46: 3080.95 | E46: 3108.15 | F46: 3041.90 | G46: 3002.85 | H46: 2936.60 | I46: 3147.20 | J46: 3213.45 | K46: 3252.50 | L46: 3174.4 | M46: 3069.1 | N46: 3080600 | O46: -0.77%
A47: 37 | B47: Pharma | C47: CADILAHC | D47: 343.80 | E47: 341.82 | F47: 332.38 | G47: 320.97 | H47: 311.53 | I47: 353.23 | J47: 362.67 | K47: 374.08 | L47: 351.25 | M47: 330.4 | N47: 11544000 | O47: 4.87%
A48: 38 | B48: Banking | C48: CANBK | D48: 265.90 | E48: 266.75 | F48: 262.00 | G48: 258.10 | H48: 253.35 | I48: 270.65 | J48: 275.40 | K48: 279.30 | L48: 271.5 | M48: 262.85 | N48: 11346000 | O48: 5.90%
A49: 39 | B49: Others | C49: CANFINHOME | D49: 316.60 | E49: 318.47 | F49: 310.68 | G49: 304.77 | H49: 296.98 | I49: 324.38 | J49: 332.17 | K49: 338.08 | L49: 326.25 | M49: 312.55 | N49: 5567400 | O49: -0.93%
A50: 40 | B50: Oil_Gas | C50: CASTROLIND | D50: 165.00 | E50: 164.88 | F50: 160.22 | G50: 155.43 | H50: 150.77 | I50: 169.67 | J50: 174.33 | K50: 179.12 | L50: 169.55 | M50: 160.1 | N50: 5803800 | O50: 8.04%
A51: 41 | B51: Automobile | C51: CEATLTD | D51: 1166.05 | E51: 1161.92 | F51: 1142.13 | G51: 1118.22 | H51: 1098.43 | I51: 1185.83 | J51: 1205.62 | K51: 1229.53 | L51: 1181.7 | M51: 1138 | N51: 1106400 | O51: -7.18%
A52: 42 | B52: Textile | C52: CENTURYTEX | D52: 891.95 | E52: 892.93 | F52: 881.97 | G52: 871.98 | H52: 861.02 | I52: 902.92 | J52: 913.88 | K52: 923.87 | L52: 903.9 | M52: 882.95 | N52: 4457400 | O52: 0.43%
A53: 43 | B53: Power | C53: CESC | D53: 725.10 | E53: 729.75 | F53: 718.35 | G53: 711.60 | H53: 700.20 | I53: 736.50 | J53: 747.90 | K53: 754.65 | L53: 741.15 | M53: 723 | N53: 1443750 | O53: 3.22%
A54: 44 | B54: Power | C54: CGPOWER | D54: 43.85 | E54: 43.60 | F54: 42.25 | G54: 40.65 | H54: 39.30 | I54: 45.20 | J54: 46.55 | K54: 48.15 | L54: 44.95 | M54: 42 | N54: 39072000 | O54: -9.02%
A55: 45 | B55: Others | C55: CHENNPETRO | D55: 264.10 | E55: 265.32 | F55: 261.28 | G55: 258.47 | H55: 254.43 | I55: 268.13 | J55: 272.17 | K55: 274.98 | L55: 269.35 | M55: 262.5 | N55: 1470600 | O55: 0.99%
A56: 46 | B56: Others | C56: CHOLAFIN | D56: 1391.45 | E56: 1389.80 | F56: 1372.70 | G56: 1353.95 | H56: 1336.85 | I56: 1408.55 | J56: 1425.65 | K56: 1444.40 | L56: 1406.9 | M56: 1371.05 | N56: 886500 | O56: -2.04%
A57: 47 | B57: Pharma | C57: CIPLA | D57: 535.30 | E57: 535.00 | F57: 532.10 | G57: 528.90 | H57: 526.00 | I57: 538.20 | J57: 541.10 | K57: 544.30 | L57: 537.9 | M57: 531.8 | N57: 9235000 | O57: 3.80%
A58: 48 | B58: Others | C58: COALINDIA | D58: 236.75 | E58: 235.48 | F58: 232.97 | G58: 229.18 | H58: 226.67 | I58: 239.27 | J58: 241.78 | K58: 245.57 | L58: 238 | M58: 231.7 | N58: 25938000 | O58: 22.60%
A59: 49 | B59: FMCG | C59: COLPAL | D59: 1276.45 | E59: 1282.85 | F59: 1266.70 | G59: 1256.95 | H59: 1240.80 | I59: 1292.60 | J59: 1308.75 | K59: 1318.50 | L59: 1299 | M59: 1273.1 | N59: 1617000 | O59: -2.37%
A60: 50 | B60: Others | C60: CONCOR | D60: 513.80 | E60: 512.47 | F60: 508.33 | G60: 502.87 | H60: 498.73 | I60: 517.93 | J60: 522.07 | K60: 527.53 | L60: 516.6 | M60: 507 | N60: 1395759 | O60: -4.70%
A61: 51 | B61: Capital_Goods | C61: CUMMINSIND | D61: 743.35 | E61: 746.28 | F61: 737.12 | G61: 730.88 | H61: 721.72 | I61: 752.52 | J61: 761.68 | K61: 767.92 | L61: 755.45 | M61: 740.05 | N61: 1570100 | O61: -2.18%
A62: 52 | B62: FMCG | C62: DABUR | D62: 427.65 | E62: 431.42 | F62: 421.98 | G62: 416.32 | H62: 406.88 | I62: 437.08 | J62: 446.52 | K62: 452.18 | L62: 440.85 | M62: 425.75 | N62: 10382500 | O62: 5.49%
A63: 53 | B63: Banking | C63: DCBBANK | D63: 201.50 | E63: 202.98 | F63: 197.27 | G63: 193.03 | H63: 187.32 | I63: 207.22 | J63: 212.93 | K63: 217.17 | L63: 208.7 | M63: 198.75 | N63: 5386500 | O63: -10.00%
A64: 54 | B64: Finance | C64: DHFL | D64: 132.75 | E64: 131.82 | F64: 129.68 | G64: 126.62 | H64: 124.48 | I64: 134.88 | J64: 137.02 | K64: 140.08 | L64: 133.95 | M64: 128.75 | N64: 22360500 | O64: -0.17%
A65: 55 | B65: Media | C65: DISHTV | D65: 39.80 | E65: 39.08 | F65: 38.02 | G65: 36.23 | H65: 35.17 | I65: 40.87 | J65: 41.93 | K65: 43.72 | L65: 40.15 | M65: 37.3 | N65: 64768000 | O65: 2.53%
A66: 56 | B66: Pharma | C66: DIVISLAB | D66: 1717.30 | E66: 1717.82 | F66: 1703.63 | G66: 1689.97 | H66: 1675.78 | I66: 1731.48 | J66: 1745.67 | K66: 1759.33 | L66: 1732 | M66: 1704.15 | N66: 2976000 | O66: -0.37%
A67: 57 | B67: Realty | C67: DLF | D67: 198.20 | E67: 199.78 | F67: 195.82 | G67: 193.43 | H67: 189.47 | I67: 202.17 | J67: 206.13 | K67: 208.52 | L67: 203.75 | M67: 197.4 | N67: 21512400 | O67: -4.97%
A68: 58 | B68: Pharma | C68: DRREDDY | D68: 2672.25 | E68: 2676.32 | F68: 2647.53 | G68: 2622.82 | H68: 2594.03 | I68: 2701.03 | J68: 2729.82 | K68: 2754.53 | L68: 2705.1 | M68: 2651.6 | N68: 4157750 | O68: 2.28%
A69: 59 | B69: Automobile | C69: EICHERMOT | D69: 22647.25 | E69: 22613.40 | F69: 22456.80 | G69: 22266.35 | H69: 22109.75 | I69: 22803.85 | J69: 22960.45 | K69: 23150.90 | L69: 22770 | M69: 22422.95 | N69: 429575 | O69: 1.46%
A70: 60 | B70: Infrastructure | C70: ENGINERSIN | D70: 114.30 | E70: 114.45 | F70: 113.50 | G70: 112.70 | H70: 111.75 | I70: 115.25 | J70: 116.20 | K70: 117.00 | L70: 115.4 | M70: 113.65 | N70: 7872000 | O70: -2.24%
A71: 61 | B71: Finance | C71: EQUITAS | D71: 134.90 | E71: 135.52 | F71: 133.18 | G71: 131.47 | H71: 129.13 | I71: 137.23 | J71: 139.57 | K71: 141.28 | L71: 137.85 | M71: 133.8 | N71: 13496000 | O71: -0.35%
A72: 62 | B72: Automobile | C72: ESCORTS | D72: 803.20 | E72: 801.18 | F72: 792.72 | G72: 782.23 | H72: 773.77 | I72: 811.67 | J72: 820.13 | K72: 830.62 | L72: 809.65 | M72: 790.7 | N72: 2842400 | O72: -6.48%
A73: 63 | B73: Automobile | C73: EXIDEIND | D73: 230.00 | E73: 231.03 | F73: 228.17 | G73: 226.33 | H73: 223.47 | I73: 232.87 | J73: 235.73 | K73: 237.57 | L73: 233.9 | M73: 229.2 | N73: 6770000 | O73: -8.83%
A74: 64 | B74: Banking | C74: FEDERALBNK | D74: 91.55 | E74: 91.75 | F74: 90.25 | G74: 88.95 | H74: 87.45 | I74: 93.05 | J74: 94.55 | K74: 95.85 | L74: 93.25 | M74: 90.45 | N74: 56392000 | O74: 2.07%
A75: 65 | B75: Oil_Gas | C75: GAIL | D75: 358.25 | E75: 353.73 | F75: 346.92 | G75: 335.58 | H75: 328.77 | I75: 365.07 | J75: 371.88 | K75: 383.22 | L75: 360.55 | M75: 342.4 | N75: 10299954 | O75: 11.39%
A76: 66 | B76: Pharma | C76: GLENMARK | D76: 643.55 | E76: 645.28 | F76: 635.37 | G76: 627.18 | H76: 617.27 | I76: 653.47 | J76: 663.38 | K76: 671.57 | L76: 655.2 | M76: 637.1 | N76: 3847000 | O76: -4.75%
A77: 67 | B77: Infrastructure | C77: GMRINFRA | D77: 17.10 | E77: 17.08 | F77: 16.87 | G77: 16.63 | H77: 16.42 | I77: 17.32 | J77: 17.53 | K77: 17.77 | L77: 17.3 | M77: 16.85 | N77: 152370000 | O77: 0.89%
A78: 68 | B78: Others | C78: GODFRYPHLP | D78: 1084.60 | E78: 1084.80 | F78: 1070.85 | G78: 1057.10 | H78: 1043.15 | I78: 1098.55 | J78: 1112.50 | K78: 1126.25 | L78: 1098.75 | M78: 1071.05 | N78: 471100 | O78: -8.44%
A79: 69 | B79: FMCG | C79: GODREJCP | D79: 704.35 | E79: 709.77 | F79: 695.78 | G79: 687.22 | H79: 673.23 | I79: 718.33 | J79: 732.32 | K79: 740.88 | L79: 723.75 | M79: 701.2 | N79: 5698200 | O79: 2.55%
A80: 70 | B80: FMCG | C80: GODREJIND | D80: 532.95 | E80: 532.58 | F80: 529.82 | G80: 526.68 | H80: 523.92 | I80: 535.72 | J80: 538.48 | K80: 541.62 | L80: 535.35 | M80: 529.45 | N80: 1284000 | O80: 0.59%
A81: 71 | B81: Cement | C81: GRASIM | D81: 832.20 | E81: 834.47 | F81: 822.08 | G81: 811.97 | H81: 799.58 | I81: 844.58 | J81: 856.97 | K81: 867.08 | L81: 846.85 | M81: 824.35 | N81: 12630000 | O81: 0.25%
A82: 72 | B82: Others | C82: GSFC | D82: 103.40 | E82: 103.43 | F82: 102.57 | G82: 101.73 | H82: 100.87 | I82: 104.27 | J82: 105.13 | K82: 105.97 | L82: 104.3 | M82: 102.6 | N82: 10899300 | O82: -0.77%
A83: 73 | B83: Others | C83: HAVELLS | D83: 748.85 | E83: 751.02 | F83: 743.83 | G83: 738.82 | H83: 731.63 | I83: 756.03 | J83: 763.22 | K83: 768.23 | L83: 758.2 | M83: 746 | N83: 5105000 | O83: 5.61%
A84: 74 | B84: Technology | C84: HCLTECH | D84: 1034.60 | E84: 1028.67 | F84: 1019.13 | G84: 1003.67 | H84: 994.13 | I84: 1044.13 | J84: 1053.67 | K84: 1069.13 | L84: 1038.2 | M84: 1013.2 | N84: 9027200 | O84: 1.73%
A85: 75 | B85: Finance | C85: HDFC | D85: 1983.90 | E85: 1981.42 | F85: 1962.28 | G85: 1940.67 | H85: 1921.53 | I85: 2003.03 | J85: 2022.17 | K85: 2043.78 | L85: 2000.55 | M85: 1959.8 | N85: 27542000 | O85: 1.43%
A86: 76 | B86: Banking | C86: HDFCBANK | D86: 2262.85 | E86: 2254.93 | F86: 2239.97 | G86: 2217.08 | H86: 2202.12 | I86: 2277.82 | J86: 2292.78 | K86: 2315.67 | L86: 2269.9 | M86: 2232.05 | N86: 14802500 | O86: 5.91%
A87: 77 | B87: Automobile | C87: HEROMOTOCO | D87: 2749.20 | E87: 2750.95 | F87: 2723.90 | G87: 2698.60 | H87: 2671.55 | I87: 2776.25 | J87: 2803.30 | K87: 2828.60 | L87: 2778 | M87: 2725.65 | N87: 2251200 | O87: 6.54%
A88: 78 | B88: Technology | C88: HEXAWARE | D88: 343.45 | E88: 342.65 | F88: 337.80 | G88: 332.15 | H88: 327.30 | I88: 348.30 | J88: 353.15 | K88: 358.80 | L88: 347.5 | M88: 337 | N88: 3106500 | O88: -1.57%
A89: 79 | B89: Metals | C89: HINDALCO | D89: 199.50 | E89: 200.05 | F89: 196.95 | G89: 194.40 | H89: 191.30 | I89: 202.60 | J89: 205.70 | K89: 208.25 | L89: 203.15 | M89: 197.5 | N89: 37331000 | O89: 3.35%
A90: 80 | B90: Oil_Gas | C90: HINDPETRO | D90: 274.00 | E90: 271.55 | F90: 268.05 | G90: 262.10 | H90: 258.60 | I90: 277.50 | J90: 281.00 | K90: 286.95 | L90: 275.05 | M90: 265.6 | N90: 14128800 | O90: -0.94%
A91: 81 | B91: FMCG | C91: HINDUNILVR | D91: 1706.60 | E91: 1719.32 | F91: 1687.63 | G91: 1668.67 | H91: 1636.98 | I91: 1738.28 | J91: 1769.97 | K91: 1788.93 | L91: 1751 | M91: 1700.35 | N91: 12835800 | O91: 8.14%
A92: 82 | B92: Metals | C92: HINDZINC | D92: 275.20 | E92: 273.37 | F92: 270.53 | G92: 265.87 | H92: 263.03 | I92: 278.03 | J92: 280.87 | K92: 285.53 | L92: 276.2 | M92: 268.7 | N92: 4352000 | O92: -1.16%
A93: 83 | B93: Finance | C93: IBULHSGFIN | D93: 703.45 | E93: 705.22 | F93: 693.53 | G93: 683.62 | H93: 671.93 | I93: 715.13 | J93: 726.82 | K93: 736.73 | L93: 716.9 | M93: 695.3 | N93: 16362500 | O93: 0.59%
A94: 84 | B94: Banking | C94: ICICIBANK | D94: 395.80 | E94: 394.33 | F94: 390.47 | G94: 385.13 | H94: 381.27 | I94: 399.67 | J94: 403.53 | K94: 408.87 | L94: 398.2 | M94: 389 | N94: 97088750 | O94: 10.42%
A95: 85 | B95: Others | C95: ICICIPRULI | D95: 339.80 | E95: 339.12 | F95: 335.83 | G95: 331.87 | H95: 328.58 | I95: 343.08 | J95: 346.37 | K95: 350.33 | L95: 342.4 | M95: 335.15 | N95: 8343000 | O95: -2.80%
A96: 86 | B96: Banking | C96: IDBI | D96: 42.90 | E96: 43.15 | F96: 42.35 | G96: 41.80 | H96: 41.00 | I96: 43.70 | J96: 44.50 | K96: 45.05 | L96: 43.95 | M96: 42.6 | N96: 28750000 | O96: -1.07%
A97: 87 | B97: Telecom | C97: IDEA | D97: 32.45 | E97: 32.52 | F97: 32.23 | G97: 32.02 | H97: 31.73 | I97: 32.73 | J97: 33.02 | K97: 33.23 | L97: 32.8 | M97: 32.3 | N97: 207132000 | O97: 0.38%
A98: 88 | B98: Finance | C98: IDFC | D98: 44.35 | E98: 43.97 | F98: 42.58 | G98: 40.82 | H98: 39.43 | I98: 45.73 | J98: 47.12 | K98: 48.88 | L98: 45.35 | M98: 42.2 | N98: 104768400 | O98: -0.14%
A99: 89 | B99: Banking | C99: IDFCFIRSTB | D99: 51.65 | E99: 51.60 | F99: 50.70 | G99: 49.75 | H99: 48.85 | I99: 52.55 | J99: 53.45 | K99: 54.40 | L99: 52.5 | M99: 50.65 | N99: 133344000 | O99: -1.98%
A100: 90 | B100: Finance | C100: IFCI | D100: 13.75 | E100: 13.80 | F100: 13.55 | G100: 13.35 | H100: 13.10 | I100: 14.00 | J100: 14.25 | K100: 14.45 | L100: 14.05 | M100: 13.6 | N100: 54425000 | O100: 2.78%
A101: 91 | B101: Oil_Gas | C101: IGL | D101: 292.10 | E101: 293.52 | F101: 289.58 | G101: 287.07 | H101: 283.13 | I101: 296.03 | J101: 299.97 | K101: 302.48 | L101: 297.45 | M101: 291 | N101: 3476000 | O101: 7.85%
A102: 92 | B102: Cement | C102: INDIACEM | D102: 97.90 | E102: 99.47 | F102: 95.63 | G102: 93.37 | H102: 89.53 | I102: 101.73 | J102: 105.57 | K102: 107.83 | L102: 103.3 | M102: 97.2 | N102: 23413500 | O102: 2.87%
A103: 93 | B103: Banking | C103: INDIANB | D103: 264.20 | E103: 265.20 | F103: 262.05 | G103: 259.90 | H103: 256.75 | I103: 267.35 | J103: 270.50 | K103: 272.65 | L103: 268.35 | M103: 263.05 | N103: 4588000 | O103: -0.65%
A104: 94 | B104: Others | C104: INDIGO | D104: 1302.95 | E104: 1302.65 | F104: 1291.60 | G104: 1280.25 | H104: 1269.20 | I104: 1314.00 | J104: 1325.05 | K104: 1336.40 | L104: 1313.7 | M104: 1291.3 | N104: 2526000 | O104: -2.39%
A105: 95 | B105: Banking | C105: INDUSINDBK | D105: 1702.95 | E105: 1702.03 | F105: 1685.07 | G105: 1667.18 | H105: 1650.22 | I105: 1719.92 | J105: 1736.88 | K105: 1754.77 | L105: 1719 | M105: 1684.15 | N105: 8969700 | O105: 1.79%
A106: 96 | B106: Technology | C106: INFIBEAM | D106: 43.95 | E106: 44.50 | F106: 42.35 | G106: 40.75 | H106: 38.60 | I106: 46.10 | J106: 48.25 | K106: 49.85 | L106: 46.65 | M106: 42.9 | N106: 17212000 | O106: -7.68%
A107: 97 | B107: Telecom | C107: INFRATEL | D107: 314.85 | E107: 315.83 | F107: 311.67 | G107: 308.48 | H107: 304.32 | I107: 319.02 | J107: 323.18 | K107: 326.37 | L107: 320 | M107: 312.65 | N107: 7430000 | O107: 3.40%
A108: 98 | B108: Technology | C108: INFY | D108: 722.25 | E108: 720.83 | F108: 714.42 | G108: 706.58 | H108: 700.17 | I108: 728.67 | J108: 735.08 | K108: 742.92 | L108: 727.25 | M108: 713 | N108: 53287200 | O108: 3.05%
A109: 99 | B109: Oil_Gas | C109: IOC | D109: 153.45 | E109: 151.85 | F109: 149.15 | G109: 144.85 | H109: 142.15 | I109: 156.15 | J109: 158.85 | K109: 163.15 | L109: 154.55 | M109: 147.55 | N109: 44632000 | O109: 11.12%
A110: 100 | B110: Infrastructure | C110: IRB | D110: 151.30 | E110: 151.58 | F110: 149.67 | G110: 148.03 | H110: 146.12 | I110: 153.22 | J110: 155.13 | K110: 156.77 | L110: 153.5 | M110: 149.95 | N110: 6348800 | O110: -2.79%
A111: 101 | B111: FMCG | C111: ITC | D111: 292.25 | E111: 293.60 | F111: 289.50 | G111: 286.75 | H111: 282.65 | I111: 296.35 | J111: 300.45 | K111: 303.20 | L111: 297.7 | M111: 290.85 | N111: 66043200 | O111: 10.30%
A112: 102 | B112: Others | C112: JETAIRWAYS | D112: 221.90 | E112: 220.45 | F112: 215.50 | G112: 209.10 | H112: 204.15 | I112: 226.85 | J112: 231.80 | K112: 238.20 | L112: 225.4 | M112: 214.05 | N112: 6188600 | O112: -0.32%
A113: 103 | B113: Metals | C113: JINDALSTEL | D113: 166.55 | E113: 166.22 | F113: 164.43 | G113: 162.32 | H113: 160.53 | I113: 168.33 | J113: 170.12 | K113: 172.23 | L113: 168 | M113: 164.1 | N113: 24565500 | O113: -2.22%
A114: 104 | B114: Others | C114: JISLJALEQS | D114: 62.40 | E114: 62.47 | F114: 61.48 | G114: 60.57 | H114: 59.58 | I114: 63.38 | J114: 64.37 | K114: 65.28 | L114: 63.45 | M114: 61.55 | N114: 40275000 | O114: -0.20%
A115: 105 | B115: Realty | C115: JPASSOCIAT | D115: 6.15 | E115: 6.20 | F115: 5.95 | G115: 5.75 | H115: 5.50 | I115: 6.40 | J115: 6.65 | K115: 6.85 | L115: 6.45 | M115: 6 | N115: 72215000 | O115: 0.15%
A116: 106 | B116: Metals | C116: JSWSTEEL | D116: 289.40 | E116: 289.22 | F116: 286.18 | G116: 282.97 | H116: 279.93 | I116: 292.43 | J116: 295.47 | K116: 298.68 | L116: 292.25 | M116: 286 | N116: 58839000 | O116: -0.40%
A117: 107 | B117: Others | C117: JUBLFOOD | D117: 1348.15 | E117: 1349.83 | F117: 1334.92 | G117: 1321.68 | H117: 1306.77 | I117: 1363.07 | J117: 1377.98 | K117: 1391.22 | L117: 1364.75 | M117: 1336.6 | N117: 3319000 | O117: 1.97%
A118: 108 | B118: Others | C118: JUSTDIAL | D118: 599.55 | E118: 601.85 | F118: 593.70 | G118: 587.85 | H118: 579.70 | I118: 607.70 | J118: 615.85 | K118: 621.70 | L118: 610 | M118: 596 | N118: 3627400 | O118: -5.64%
A119: 109 | B119: Others | C119: KAJARIACER | D119: 573.75 | E119: 577.95 | F119: 567.90 | G119: 562.05 | H119: 552.00 | I119: 583.80 | J119: 593.85 | K119: 599.70 | L119: 588 | M119: 572.1 | N119: 2341300 | O119: 7.27%
A120: 110 | B120: Banking | C120: KOTAKBANK | D120: 1330.80 | E120: 1317.03 | F120: 1287.77 | G120: 1244.73 | H120: 1215.47 | I120: 1360.07 | J120: 1389.33 | K120: 1432.37 | L120: 1346.3 | M120: 1274 | N120: 15496800 | O120: 11.53%
A121: 111 | B121: Technology | C121: BSOFT | D121: 101.55 | E121: 102.35 | F121: 99.50 | G121: 97.45 | H121: 94.60 | I121: 104.40 | J121: 107.25 | K121: 109.30 | L121: 105.2 | M121: 100.3 | N121: 5436000 | O121: 0.04%
A122: 112 | B122: Others | C122: KSCL | D122: 439.35 | E122: 440.20 | F122: 434.15 | G122: 428.95 | H122: 422.90 | I122: 445.40 | J122: 451.45 | K122: 456.65 | L122: 446.25 | M122: 435 | N122: 1500000 | O122: -3.57%
A123: 113 | B123: Banking | C123: KTKBANK | D123: 128.50 | E123: 128.70 | F123: 127.20 | G123: 125.90 | H123: 124.40 | I123: 130.00 | J123: 131.50 | K123: 132.80 | L123: 130.2 | M123: 127.4 | N123: 17728400 | O123: 0.94%
A124: 114 | B124: Finance | C124: L&TFH | D124: 146.95 | E124: 146.88 | F124: 144.22 | G124: 141.48 | H124: 138.82 | I124: 149.62 | J124: 152.28 | K124: 155.02 | L124: 149.55 | M124: 144.15 | N124: 18297000 | O124: -2.94%
A125: 115 | B125: Finance | C125: LICHSGFIN | D125: 512.45 | E125: 512.32 | F125: 507.28 | G125: 502.12 | H125: 497.08 | I125: 517.48 | J125: 522.52 | K125: 527.68 | L125: 517.35 | M125: 507.15 | N125: 7914500 | O125: -3.57%
A126: 116 | B126: Capital_Goods | C126: LT | D126: 1402.80 | E126: 1401.25 | F126: 1386.60 | G126: 1370.40 | H126: 1355.75 | I126: 1417.45 | J126: 1432.10 | K126: 1448.30 | L126: 1415.9 | M126: 1385.05 | N126: 7877250 | O126: 9.63%
A127: 117 | B127: Pharma | C127: LUPIN | D127: 788.60 | E127: 784.23 | F127: 774.92 | G127: 761.23 | H127: 751.92 | I127: 797.92 | J127: 807.23 | K127: 820.92 | L127: 793.55 | M127: 770.55 | N127: 9818200 | O127: -2.11%
A128: 118 | B128: Automobile | C128: M&M | D128: 696.10 | E128: 694.33 | F128: 689.77 | G128: 683.43 | H128: 678.87 | I128: 700.67 | J128: 705.23 | K128: 711.57 | L128: 698.9 | M128: 688 | N128: 20179000 | O128: -0.07%
A129: 119 | B129: Finance | C129: M&MFIN | D129: 436.80 | E129: 434.98 | F129: 428.22 | G129: 419.63 | H129: 412.87 | I129: 443.57 | J129: 450.33 | K129: 458.92 | L129: 441.75 | M129: 426.4 | N129: 11931250 | O129: -0.16%
A130: 120 | B130: Others | C130: MANAPPURAM | D130: 120.00 | E130: 119.85 | F130: 118.95 | G130: 117.90 | H130: 117.00 | I130: 120.90 | J130: 121.80 | K130: 122.85 | L130: 120.75 | M130: 118.8 | N130: 10848000 | O130: -3.93%
A131: 121 | B131: FMCG | C131: MARICO | D131: 340.10 | E131: 342.27 | F131: 336.53 | G131: 332.97 | H131: 327.23 | I131: 345.83 | J131: 351.57 | K131: 355.13 | L131: 348 | M131: 338.7 | N131: 7098000 | O131: 3.45%
A132: 122 | B132: Automobile | C132: MARUTI | D132: 7122.35 | E132: 7131.80 | F132: 7075.65 | G132: 7028.95 | H132: 6972.80 | I132: 7178.50 | J132: 7234.65 | K132: 7281.35 | L132: 7187.95 | M132: 7085.1 | N132: 2834100 | O132: 3.11%
A133: 123 | B133: FMCG | C133: MCDOWELL-N | D133: 586.70 | E133: 589.08 | F133: 581.07 | G133: 575.43 | H133: 567.42 | I133: 594.72 | J133: 602.73 | K133: 608.37 | L133: 597.1 | M133: 583.45 | N133: 10773750 | O133: -0.44%
A134: 124 | B134: Others | C134: MCX | D134: 788.55 | E134: 788.77 | F134: 776.53 | G134: 764.52 | H134: 752.28 | I134: 800.78 | J134: 813.02 | K134: 825.03 | L134: 801 | M134: 776.75 | N134: 2382800 | O134: 2.01%
A135: 125 | B135: Finance | C135: MFSL | D135: 438.45 | E135: 439.08 | F135: 435.17 | G135: 431.88 | H135: 427.97 | I135: 442.37 | J135: 446.28 | K135: 449.57 | L135: 443 | M135: 435.8 | N135: 1612800 | O135: 0.83%
A136: 126 | B136: Others | C136: MGL | D136: 934.05 | E136: 934.18 | F136: 926.87 | G136: 919.68 | H136: 912.37 | I136: 941.37 | J136: 948.68 | K136: 955.87 | L136: 941.5 | M136: 927 | N136: 610200 | O136: 1.60%
A137: 127 | B137: Technology | C137: MINDTREE | D137: 949.45 | E137: 952.97 | F137: 939.03 | G137: 928.62 | H137: 914.68 | I137: 963.38 | J137: 977.32 | K137: 987.73 | L137: 966.9 | M137: 942.55 | N137: 3663600 | O137: -3.96%
A138: 128 | B138: Automobile | C138: MOTHERSUMI | D138: 165.45 | E138: 165.63 | F138: 163.42 | G138: 161.38 | H138: 159.17 | I138: 167.67 | J138: 169.88 | K138: 171.92 | L138: 167.85 | M138: 163.6 | N138: 30329700 | O138: -0.74%
A139: 129 | B139: Automobile | C139: MRF | D139: 57858.70 | E139: 57765.12 | F139: 57194.58 | G139: 56530.47 | H139: 55959.93 | I139: 58429.23 | J139: 58999.77 | K139: 59663.88 | L139: 58335.65 | M139: 57101 | N139: 41750 | O139: 0.70%
A140: 130 | B140: Others | C140: MRPL | D140: 72.80 | E140: 73.02 | F140: 71.78 | G140: 70.77 | H140: 69.53 | I140: 74.03 | J140: 75.27 | K140: 76.28 | L140: 74.25 | M140: 72 | N140: 4123000 | O140: 1.73%
A141: 131 | B141: Finance | C141: MUTHOOTFIN | D141: 596.25 | E141: 597.83 | F141: 590.67 | G141: 585.08 | H141: 577.92 | I141: 603.42 | J141: 610.58 | K141: 616.17 | L141: 605 | M141: 592.25 | N141: 2592000 | O141: -0.97%
A142: 132 | B142: Others | C142: NATIONALUM | D142: 54.45 | E142: 54.12 | F142: 53.48 | G142: 52.52 | H142: 51.88 | I142: 55.08 | J142: 55.72 | K142: 56.68 | L142: 54.75 | M142: 53.15 | N142: 33480000 | O142: -2.45%
A143: 133 | B143: Others | C143: NBCC | D143: 65.25 | E143: 64.95 | F143: 63.85 | G143: 62.45 | H143: 61.35 | I143: 66.35 | J143: 67.45 | K143: 68.85 | L143: 66.05 | M143: 63.55 | N143: 38272000 | O143: -7.20%
A144: 134 | B144: Infrastructure | C144: NCC | D144: 106.30 | E144: 107.03 | F144: 104.87 | G144: 103.43 | H144: 101.27 | I144: 108.47 | J144: 110.63 | K144: 112.07 | L144: 109.2 | M144: 105.6 | N144: 44888000 | O144: -2.77%
A145: 135 | B145: Others | C145: NESTLEIND | D145: 10342.80 | E145: 10489.67 | F145: 10136.28 | G145: 9929.77 | H145: 9576.38 | I145: 10696.18 | J145: 11049.57 | K145: 11256.08 | L145: 10843.05 | M145: 10283.15 | N145: 377450 | O145: 7.08%
A146: 136 | B146: Power | C146: NHPC | D146: 25.30 | E146: 25.20 | F146: 25.05 | G146: 24.80 | H146: 24.65 | I146: 25.45 | J146: 25.60 | K146: 25.85 | L146: 25.35 | M146: 24.95 | N146: 23328000 | O146: -5.47%
A147: 137 | B147: Technology | C147: NIITTECH | D147: 1337.05 | E147: 1339.00 | F147: 1325.55 | G147: 1314.05 | H147: 1300.60 | I147: 1350.50 | J147: 1363.95 | K147: 1375.45 | L147: 1352.45 | M147: 1327.5 | N147: 1113750 | O147: -8.28%
A148: 138 | B148: Metals | C148: NMDC | D148: 108.85 | E148: 108.60 | F148: 108.05 | G148: 107.25 | H148: 106.70 | I148: 109.40 | J148: 109.95 | K148: 110.75 | L148: 109.15 | M148: 107.8 | N148: 14910000 | O148: -1.89%
A149: 139 | B149: Power | C149: NTPC | D149: 155.00 | E149: 153.70 | F149: 151.40 | G149: 147.80 | H149: 145.50 | I149: 157.30 | J149: 159.60 | K149: 163.20 | L149: 156 | M149: 150.1 | N149: 40712000 | O149: 15.36%
A150: 140 | B150: Technology | C150: OFSS | D150: 3373.85 | E150: 3385.02 | F150: 3327.58 | G150: 3281.32 | H150: 3223.88 | I150: 3431.28 | J150: 3488.72 | K150: 3534.98 | L150: 3442.45 | M150: 3338.75 | N150: 206400 | O150: 6.67%
A151: 141 | B151: Oil_Gas | C151: OIL | D151: 178.20 | E151: 177.67 | F151: 176.33 | G151: 174.47 | H151: 173.13 | I151: 179.53 | J151: 180.87 | K151: 182.73 | L151: 179 | M151: 175.8 | N151: 10054242 | O151: 4.15%
A152: 142 | B152: Oil_Gas | C152: ONGC | D152: 154.05 | E152: 153.18 | F152: 150.87 | G152: 147.68 | H152: 145.37 | I152: 156.37 | J152: 158.68 | K152: 161.87 | L152: 155.5 | M152: 150 | N152: 42930000 | O152: 4.94%
A153: 143 | B153: Banking | C153: ORIENTBANK | D153: 99.45 | E153: 100.42 | F153: 97.88 | G153: 96.32 | H153: 93.78 | I153: 101.98 | J153: 104.52 | K153: 106.08 | L153: 102.95 | M153: 98.85 | N153: 14133000 | O153: -6.53%
A154: 144 | B154: Textile | C154: PAGEIND | D154: 23756.05 | E154: 23828.02 | F154: 23579.03 | G154: 23402.02 | H154: 23153.03 | I154: 24005.03 | J154: 24254.02 | K154: 24431.03 | L154: 24077 | M154: 23651 | N154: 117500 | O154: 0.02%
A155: 145 | B155: Others | C155: PCJEWELLER | D155: 83.10 | E155: 84.23 | F155: 81.32 | G155: 79.53 | H155: 76.62 | I155: 86.02 | J155: 88.93 | K155: 90.72 | L155: 87.15 | M155: 82.45 | N155: 12421500 | O155: -4.83%
A156: 146 | B156: Pharma | C156: PEL | D156: 2647.75 | E156: 2660.67 | F156: 2626.98 | G156: 2606.22 | H156: 2572.53 | I156: 2681.43 | J156: 2715.12 | K156: 2735.88 | L156: 2694.35 | M156: 2639.9 | N156: 3193952 | O156: -0.43%
A157: 147 | B157: Oil_Gas | C157: PETRONET | D157: 237.25 | E157: 239.37 | F157: 233.98 | G157: 230.72 | H157: 225.33 | I157: 242.63 | J157: 248.02 | K157: 251.28 | L157: 244.75 | M157: 236.1 | N157: 11259000 | O157: -1.68%
A158: 148 | B158: Finance | C158: PFC | D158: 111.85 | E158: 111.43 | F158: 109.87 | G158: 107.88 | H158: 106.32 | I158: 113.42 | J158: 114.98 | K158: 116.97 | L158: 113 | M158: 109.45 | N158: 32159400 | O158: 2.92%
A159: 149 | B159: FMCG | C159: PIDILITIND | D159: 1171.10 | E159: 1177.30 | F159: 1159.30 | G159: 1147.50 | H159: 1129.50 | I159: 1189.10 | J159: 1207.10 | K159: 1218.90 | L159: 1195.3 | M159: 1165.5 | N159: 2275500 | O159: -1.92%
A160: 150 | B160: Banking | C160: PNB | D160: 86.30 | E160: 86.47 | F160: 85.23 | G160: 84.17 | H160: 82.93 | I160: 87.53 | J160: 88.77 | K160: 89.83 | L160: 87.7 | M160: 85.4 | N160: 113631000 | O160: 0.61%
A161: 151 | B161: Power | C161: POWERGRID | D161: 193.40 | E161: 192.02 | F161: 189.78 | G161: 186.17 | H161: 183.93 | I161: 195.63 | J161: 197.87 | K161: 201.48 | L161: 194.25 | M161: 188.4 | N161: 16128000 | O161: 6.30%
A162: 152 | B162: Others | C162: PVR | D162: 1636.85 | E162: 1642.00 | F162: 1625.75 | G162: 1614.65 | H162: 1598.40 | I162: 1653.10 | J162: 1669.35 | K162: 1680.45 | L162: 1658.25 | M162: 1630.9 | N162: 1225600 | O162: -1.00%
A163: 153 | B163: Cement | C163: RAMCOCEM | D163: 707.85 | E163: 711.83 | F163: 700.67 | G163: 693.48 | H163: 682.32 | I163: 719.02 | J163: 730.18 | K163: 737.37 | L163: 723 | M163: 704.65 | N163: 936800 | O163: 1.83%
A164: 154 | B164: Others | C164: RAYMOND | D164: 817.30 | E164: 822.07 | F164: 809.63 | G164: 801.97 | H164: 789.53 | I164: 829.73 | J164: 842.17 | K164: 849.83 | L164: 834.5 | M164: 814.4 | N164: 3227200 | O164: -3.26%
A165: 155 | B165: Banking | C165: RBLBANK | D165: 642.50 | E165: 644.17 | F165: 634.88 | G165: 627.27 | H165: 617.98 | I165: 651.78 | J165: 661.07 | K165: 668.68 | L165: 653.45 | M165: 636.55 | N165: 9645600 | O165: 53.40%
A166: 157 | B166: Power | C166: RECLTD | D166: 144.05 | E166: 142.17 | F166: 139.28 | G166: 134.52 | H166: 131.63 | I166: 146.93 | J166: 149.82 | K166: 154.58 | L166: 145.05 | M166: 137.4 | N166: 30108000 | O166: -0.77%
A167: 158 | B167: Finance | C167: RELCAPITAL | D167: 172.75 | E167: 169.92 | F167: 165.33 | G167: 157.92 | H167: 153.33 | I167: 177.33 | J167: 181.92 | K167: 189.33 | L167: 174.5 | M167: 162.5 | N167: 12760500 | O167: 6.46%
A168: 159 | B168: Oil_Gas | C168: RELIANCE | D168: 1328.30 | E168: 1336.38 | F168: 1309.87 | G168: 1291.43 | H168: 1264.92 | I168: 1354.82 | J168: 1381.33 | K168: 1399.77 | L168: 1362.9 | M168: 1317.95 | N168: 51456000 | O168: 3.37%
A169: 160 | B169: Power | C169: RELINFRA | D169: 132.10 | E169: 129.42 | F169: 124.38 | G169: 116.67 | H169: 111.63 | I169: 137.13 | J169: 142.17 | K169: 149.88 | L169: 134.45 | M169: 121.7 | N169: 13210600 | O169: -4.73%
A170: 161 | B170: Others | C170: REPCOHOME | D170: 456.70 | E170: 457.02 | F170: 452.98 | G170: 449.27 | H170: 445.23 | I170: 460.73 | J170: 464.77 | K170: 468.48 | L170: 461.05 | M170: 453.3 | N170: 1311200 | O170: 2.49%
A171: 162 | B171: Power | C171: RPOWER | D171: 10.85 | E171: 10.80 | F171: 10.50 | G171: 10.15 | H171: 9.85 | I171: 11.15 | J171: 11.45 | K171: 11.80 | L171: 11.1 | M171: 10.45 | N171: 81184000 | O171: -2.72%
A172: 163 | B172: Metals | C172: SAIL | D172: 51.85 | E172: 52.27 | F172: 50.88 | G172: 49.92 | H172: 48.53 | I172: 53.23 | J172: 54.62 | K172: 55.58 | L172: 53.65 | M172: 51.3 | N172: 89976000 | O172: 10.59%
A173: 164 | B173: Banking | C173: SBIN | D173: 299.20 | E173: 298.20 | F173: 294.40 | G173: 289.60 | H173: 285.80 | I173: 303.00 | J173: 306.80 | K173: 311.60 | L173: 302 | M173: 293.4 | N173: 77688000 | O173: 0.63%
A174: 165 | B174: Cement | C174: SHREECEM | D174: 17615.00 | E174: 17679.87 | F174: 17465.78 | G174: 17316.57 | H174: 17102.48 | I174: 17829.08 | J174: 18043.17 | K174: 18192.38 | L174: 17893.95 | M174: 17530.65 | N174: 81650 | O174: 0.06%
A175: 166 | B175: Capital_Goods | C175: SIEMENS | D175: 1041.35 | E175: 1042.47 | F175: 1035.23 | G175: 1029.12 | H175: 1021.88 | I175: 1048.58 | J175: 1055.82 | K175: 1061.93 | L175: 1049.7 | M175: 1036.35 | N175: 1825450 | O175: 1.31%
A176: 167 | B176: Banking | C176: SOUTHBANK | D176: 15.55 | E176: 15.53 | F176: 15.27 | G176: 14.98 | H176: 14.72 | I176: 15.82 | J176: 16.08 | K176: 16.37 | L176: 15.8 | M176: 15.25 | N176: 140882391 | O176: -8.26%
A177: 169 | B177: Textile | C177: SRF | D177: 2418.25 | E177: 2407.42 | F177: 2375.83 | G177: 2333.42 | H177: 2301.83 | I177: 2449.83 | J177: 2481.42 | K177: 2523.83 | L177: 2439 | M177: 2365 | N177: 826000 | O177: 9.40%
A178: 170 | B178: Finance | C178: SRTRANSFIN | D178: 1268.85 | E178: 1264.02 | F178: 1253.13 | G178: 1237.42 | H178: 1226.53 | I178: 1279.73 | J178: 1290.62 | K178: 1306.33 | L178: 1274.9 | M178: 1248.3 | N178: 3925800 | O178: 1.55%
A179: 171 | B179: Pharma | C179: STAR | D179: 438.90 | E179: 442.43 | F179: 433.47 | G179: 428.03 | H179: 419.07 | I179: 447.87 | J179: 456.83 | K179: 462.27 | L179: 451.4 | M179: 437 | N179: 4728900 | O179: 2.72%
A180: 172 | B180: Pharma | C180: SUNPHARMA | D180: 466.75 | E180: 467.52 | F180: 463.23 | G180: 459.72 | H180: 455.43 | I180: 471.03 | J180: 475.32 | K180: 478.83 | L180: 471.8 | M180: 464 | N180: 51173100 | O180: 1.71%
A181: 173 | B181: Media | C181: SUNTV | D181: 618.00 | E181: 619.60 | F181: 608.40 | G181: 598.80 | H181: 587.60 | I181: 629.20 | J181: 640.40 | K181: 650.00 | L181: 630.8 | M181: 610 | N181: 6705000 | O181: -0.19%
A182: 174 | B182: Power | C182: SUZLON | D182: 6.85 | E182: 6.90 | F182: 6.70 | G182: 6.55 | H182: 6.35 | I182: 7.05 | J182: 7.25 | K182: 7.40 | L182: 7.1 | M182: 6.75 | N182: 238488000 | O182: 0.71%
A183: 175 | B183: Banking | C183: SYNDIBANK | D183: 38.75 | E183: 39.00 | F183: 38.20 | G183: 37.65 | H183: 36.85 | I183: 39.55 | J183: 40.35 | K183: 40.90 | L183: 39.8 | M183: 38.45 | N183: 27150000 | O183: 2.26%
A184: 176 | B184: Fertilisers | C184: TATACHEM | D184: 586.65 | E184: 585.73 | F184: 580.87 | G184: 575.08 | H184: 570.22 | I184: 591.52 | J184: 596.38 | K184: 602.17 | L184: 590.6 | M184: 579.95 | N184: 4830750 | O184: -3.62%
A185: 177 | B185: Telecom | C185: TATACOMM | D185: 610.90 | E185: 611.08 | F185: 604.27 | G185: 597.63 | H185: 590.82 | I185: 617.72 | J185: 624.53 | K185: 631.17 | L185: 617.9 | M185: 604.45 | N185: 3127000 | O185: -0.54%
A186: 178 | B186: Technology | C186: TATAELXSI | D186: 983.75 | E186: 974.28 | F186: 957.27 | G186: 930.78 | H186: 913.77 | I186: 1000.77 | J186: 1017.78 | K186: 1044.27 | L186: 991.3 | M186: 947.8 | N186: 1643200 | O186: -3.66%
A187: 179 | B187: FMCG | C187: TATAGLOBAL | D187: 204.15 | E187: 205.72 | F187: 201.83 | G187: 199.52 | H187: 195.63 | I187: 208.03 | J187: 211.92 | K187: 214.23 | L187: 209.6 | M187: 203.4 | N187: 13065750 | O187: 2.27%
A188: 180 | B188: Automobile | C188: TATAMOTORS | D188: 180.60 | E188: 180.27 | F188: 178.43 | G188: 176.27 | H188: 174.43 | I188: 182.43 | J188: 184.27 | K188: 186.43 | L188: 182.1 | M188: 178.1 | N188: 54812000 | O188: -0.71%
A189: 181 | B189: Automobile | C189: TATAMTRDVR | D189: 90.15 | E189: 89.93 | F189: 88.62 | G189: 87.08 | H189: 85.77 | I189: 91.47 | J189: 92.78 | K189: 94.32 | L189: 91.25 | M189: 88.4 | N189: 30555800 | O189: 2.64%
A190: 182 | B190: Power | C190: TATAPOWER | D190: 74.20 | E190: 74.15 | F190: 73.25 | G190: 72.30 | H190: 71.40 | I190: 75.10 | J190: 76.00 | K190: 76.95 | L190: 75.05 | M190: 73.2 | N190: 54054000 | O190: 1.59%
A191: 183 | B191: Metals | C191: TATASTEEL | D191: 516.75 | E191: 517.38 | F191: 512.77 | G191: 508.78 | H191: 504.17 | I191: 521.37 | J191: 525.98 | K191: 529.97 | L191: 522 | M191: 513.4 | N191: 29082010 | O191: 0.92%
A192: 184 | B192: Technology | C192: TCS | D192: 2049.00 | E192: 2042.42 | F192: 2005.13 | G192: 1961.27 | H192: 1923.98 | I192: 2086.28 | J192: 2123.57 | K192: 2167.43 | L192: 2079.7 | M192: 1998.55 | N192: 16304000 | O192: 6.60%
A193: 185 | B193: Technology | C193: TECHM | D193: 803.10 | E193: 801.92 | F193: 792.28 | G193: 781.47 | H193: 771.83 | I193: 812.73 | J193: 822.37 | K193: 833.18 | L193: 811.55 | M193: 791.1 | N193: 12798000 | O193: 1.28%
A194: 186 | B194: FMCG | C194: TITAN | D194: 1098.95 | E194: 1099.38 | F194: 1083.77 | G194: 1068.58 | H194: 1052.97 | I194: 1114.57 | J194: 1130.18 | K194: 1145.37 | L194: 1115 | M194: 1084.2 | N194: 10485750 | O194: -4.25%
A195: 187 | B195: Pharma | C195: TORNTPHARM | D195: 1851.30 | E195: 1849.03 | F195: 1829.52 | G195: 1807.73 | H195: 1788.22 | I195: 1870.82 | J195: 1890.33 | K195: 1912.12 | L195: 1868.55 | M195: 1827.25 | N195: 573000 | O195: -1.63%
A196: 188 | B196: Power | C196: TORNTPOWER | D196: 257.40 | E196: 257.45 | F196: 255.65 | G196: 253.90 | H196: 252.10 | I196: 259.20 | J196: 261.00 | K196: 262.75 | L196: 259.25 | M196: 255.7 | N196: 1836000 | O196: -3.62%
A197: 189 | B197: Media | C197: TV18BRDCST | D197: 35.80 | E197: 36.07 | F197: 35.33 | G197: 34.87 | H197: 34.13 | I197: 36.53 | J197: 37.27 | K197: 37.73 | L197: 36.8 | M197: 35.6 | N197: 57681000 | O197: 4.79%
A198: 190 | B198: Automobile | C198: TVSMOTOR | D198: 490.15 | E198: 491.92 | F198: 480.83 | G198: 471.52 | H198: 460.43 | I198: 501.23 | J198: 512.32 | K198: 521.63 | L198: 503 | M198: 482.6 | N198: 5191000 | O198: 1.92%
A199: 191 | B199: FMCG | C199: UBL | D199: 1388.65 | E199: 1391.90 | F199: 1379.80 | G199: 1370.95 | H199: 1358.85 | I199: 1400.75 | J199: 1412.85 | K199: 1421.70 | L199: 1404 | M199: 1383.05 | N199: 2667700 | O199: -2.63%
A200: 192 | B200: Finance | C200: UJJIVAN | D200: 336.35 | E200: 338.22 | F200: 331.13 | G200: 325.92 | H200: 318.83 | I200: 343.43 | J200: 350.52 | K200: 355.73 | L200: 345.3 | M200: 333 | N200: 4043200 | O200: -2.58%
A201: 193 | B201: Cement | C201: ULTRACEMCO | D201: 3929.10 | E201: 3947.08 | F201: 3897.62 | G201: 3866.13 | H201: 3816.67 | I201: 3978.57 | J201: 4028.03 | K201: 4059.52 | L201: 3996.55 | M201: 3915.6 | N201: 2049000 | O201: 2.91%
A202: 194 | B202: Banking | C202: UNIONBANK | D202: 83.35 | E202: 83.95 | F202: 82.20 | G202: 81.05 | H202: 79.30 | I202: 85.10 | J202: 86.85 | K202: 88.00 | L202: 85.7 | M202: 82.8 | N202: 33334000 | O202: 2.45%
A203: 195 | B203: Fertilisers | C203: UPL | D203: 926.05 | E203: 921.15 | F203: 911.55 | G203: 897.05 | H203: 887.45 | I203: 935.65 | J203: 945.25 | K203: 959.75 | L203: 930.75 | M203: 906.65 | N203: 15174000 | O203: -0.16%
A204: 196 | B204: Metals | C204: VEDL | D204: 176.00 | E204: 174.47 | F204: 172.28 | G204: 168.57 | H204: 166.38 | I204: 178.18 | J204: 180.37 | K204: 184.08 | L204: 176.65 | M204: 170.75 | N204: 32292000 | O204: 3.08%
A205: 197 | B205: Others | C205: VGUARD | D205: 217.50 | E205: 218.47 | F205: 214.03 | G205: 210.57 | H205: 206.13 | I205: 221.93 | J205: 226.37 | K205: 229.83 | L205: 222.9 | M205: 215 | N205: 2745000 | O205: 1.44%
A206: 198 | B206: Capital_Goods | C206: VOLTAS | D206: 600.50 | E206: 602.17 | F206: 596.33 | G206: 592.17 | H206: 586.33 | I206: 606.33 | J206: 612.17 | K206: 616.33 | L206: 608 | M206: 598 | N206: 5399000 | O206: -3.92%
... 19 more rows

Sheet Cash Intra
M5: Back to Main Page
A6: FOR INTRA DAY TRADING | K6: =Main!B10 -> 2019-03-18
A8: Sr.no | B8: Scrip | C8: CLOSE RATE | D8: Pivot Point | E8: Supports | H8: Resistances
C9: Point | E9: S1 | F9: S2 | G9: S3 | H9: R1 | I9: R2 | J9: R3 | K9: HIGH | L9: LOW | M9: Total Trade Quanity in Lakhs
A10: 1 | B10: Nifty 50 | C10: 11426.85 | D10: 11428.22 | E10: 11369.43 | F10: 11312.02 | G10: 11253.23 | H10: 11485.63 | I10: 11544.42 | J10: 11601.83 | K10: 11487 | L10: 11370.8
A11: 2 | B11: Nifty Bank | C11: 29381.45 | D11: 29297.67 | E11: 29074.63 | F11: 28767.82 | G11: 28544.78 | H11: 29604.48 | I11: 29827.52 | J11: 30134.33 | K11: 29520.7 | L11: 28990.85
A12: 3 | B12: Nifty CPSE | C12: 2223.8 | D12: 2208.10 | E12: 2178.70 | F12: 2133.60 | G12: 2104.20 | H12: 2253.20 | I12: 2282.60 | J12: 2327.70 | K12: 2237.5 | L12: 2163
A13: 4 | B13: Nifty Infra | C13: 3173.25 | D13: 3165.73 | E13: 3151.32 | F13: 3129.38 | G13: 3114.97 | H13: 3187.67 | I13: 3202.08 | J13: 3224.02 | K13: 3180.15 | L13: 3143.8
A14: 5 | B14: Nifty IT | C14: 15546.6 | D14: 15506.90 | E14: 15364.55 | F14: 15182.50 | G14: 15040.15 | H14: 15688.95 | I14: 15831.30 | J14: 16013.35 | K14: 15649.25 | L14: 15324.85
A15: 6 | B15: Nifty PSE | C15: 3537.95 | D15: 3515.85 | E15: 3480.45 | F15: 3422.95 | G15: 3387.55 | H15: 3573.35 | I15: 3608.75 | J15: 3666.25 | K15: 3551.25 | L15: 3458.35
A16: 7 | B16: Nifty Midcap 50 | C16: 4932.8 | D16: 4928.57 | E16: 4908.98 | F16: 4885.17 | G16: 4865.58 | H16: 4952.38 | I16: 4971.97 | J16: 4995.78 | K16: 4948.15 | L16: 4904.75
A17: 8 | B17: ABB | C17: 1303.8 | D17: 1305.77 | E17: 1294.13 | F17: 1284.47 | G17: 1272.83 | H17: 1315.43 | I17: 1327.07 | J17: 1336.73 | K17: 1317.4 | L17: 1296.1 | M17: 2.18031
A18: 9 | B18: ACC | C18: 1531.85 | D18: 1539.20 | E18: 1519.10 | F18: 1506.35 | G18: 1486.25 | H18: 1551.95 | I18: 1572.05 | J18: 1584.80 | K18: 1559.3 | L18: 1526.45 | M18: 8.34141
A19: 10 | B19: AIAENG | C19: 1759.25 | D19: 1759.75 | E19: 1739.50 | F19: 1719.75 | G19: 1699.50 | H19: 1779.50 | I19: 1799.75 | J19: 1819.50 | K19: 1780 | L19: 1740 | M19: 0.0758
A20: 11 | B20: AUBANK | C20: 610.9 | D20: 607.28 | E20: 598.62 | F20: 586.33 | G20: 577.67 | H20: 619.57 | I20: 628.23 | J20: 640.52 | K20: 615.95 | L20: 595 | M20: 2.59528
A21: 12 | B21: ADANIENT | C21: 141.85 | D21: 143.67 | E21: 138.43 | F21: 135.02 | G21: 129.78 | H21: 147.08 | I21: 152.32 | J21: 155.73 | K21: 148.9 | L21: 140.25 | M21: 59.81701
A22: 13 | B22: ADANIPORTS | C22: 367.1 | D22: 365.85 | E22: 362.75 | F22: 358.40 | G22: 355.30 | H22: 370.20 | I22: 373.30 | J22: 377.65 | K22: 368.95 | L22: 361.5 | M22: 30.57825
A23: 14 | B23: ADANIPOWER | C23: 50.85 | D23: 50.77 | E23: 50.28 | F23: 49.72 | G23: 49.23 | H23: 51.33 | I23: 51.82 | J23: 52.38 | K23: 51.25 | L23: 50.2 | M23: 108.27468
A24: 15 | B24: ABFRL | C24: 227.1 | D24: 228.70 | E24: 224.40 | F24: 221.70 | G24: 217.40 | H24: 231.40 | I24: 235.70 | J24: 238.40 | K24: 233 | L24: 226 | M24: 15.94351
A25: 16 | B25: AJANTPHARM | C25: 1014.2 | D25: 1022.85 | E25: 1001.00 | F25: 987.80 | G25: 965.95 | H25: 1036.05 | I25: 1057.90 | J25: 1071.10 | K25: 1044.7 | L25: 1009.65 | M25: 3.36768
A26: 17 | B26: ALKEM | C26: 1760.4 | D26: 1756.53 | E26: 1732.07 | F26: 1703.73 | G26: 1679.27 | H26: 1784.87 | I26: 1809.33 | J26: 1837.67 | K26: 1781 | L26: 1728.2 | M26: 3.49087
A27: 18 | B27: AMARAJABAT | C27: 746.55 | D27: 747.57 | E27: 742.13 | F27: 737.72 | G27: 732.28 | H27: 751.98 | I27: 757.42 | J27: 761.83 | K27: 753 | L27: 743.15 | M27: 2.22911
A28: 19 | B28: AMBUJACEM | C28: 225.35 | D28: 226.13 | E28: 222.77 | F28: 220.18 | G28: 216.82 | H28: 228.72 | I28: 232.08 | J28: 234.67 | K28: 229.5 | L28: 223.55 | M28: 32.26639
A29: 20 | B29: APOLLOHOSP | C29: 1124.15 | D29: 1129.02 | E29: 1105.13 | F29: 1086.12 | G29: 1062.23 | H29: 1148.03 | I29: 1171.92 | J29: 1190.93 | K29: 1152.9 | L29: 1110 | M29: 7.31215
A30: 21 | B30: APOLLOTYRE | C30: 222.25 | D30: 222.83 | E30: 220.52 | F30: 218.78 | G30: 216.47 | H30: 224.57 | I30: 226.88 | J30: 228.62 | K30: 225.15 | L30: 221.1 | M30: 25.91655
A31: 22 | B31: ARVIND | C31: 95.75 | D31: 95.62 | E31: 94.63 | F31: 93.52 | G31: 92.53 | H31: 96.73 | I31: 97.72 | J31: 98.83 | K31: 96.6 | L31: 94.5 | M31: 63.68305
A32: 23 | B32: ASHOKLEY | C32: 94.1 | D32: 94.25 | E32: 93.50 | F32: 92.90 | G32: 92.15 | H32: 94.85 | I32: 95.60 | J32: 96.20 | K32: 95 | L32: 93.65 | M32: 244.37891
A33: 24 | B33: ASIANPAINT | C33: 1432.55 | D33: 1439.40 | E33: 1421.80 | F33: 1411.05 | G33: 1393.45 | H33: 1450.15 | I33: 1467.75 | J33: 1478.50 | K33: 1457 | L33: 1428.65 | M33: 16.67627
A34: 25 | B34: AUROPHARMA | C34: 771.6 | D34: 775.00 | E34: 765.00 | F34: 758.40 | G34: 748.40 | H34: 781.60 | I34: 791.60 | J34: 798.20 | K34: 785 | L34: 768.4 | M34: 18.60397
A35: 26 | B35: DMART | C35: 1478.5 | D35: 1480.15 | E35: 1470.30 | F35: 1462.10 | G35: 1452.25 | H35: 1488.35 | I35: 1498.20 | J35: 1506.40 | K35: 1490 | L35: 1471.95 | M35: 4.49001
A36: 27 | B36: AXISBANK | C36: 735.1 | D36: 738.58 | E36: 728.22 | F36: 721.33 | G36: 710.97 | H36: 745.47 | I36: 755.83 | J36: 762.72 | K36: 748.95 | L36: 731.7 | M36: 145.60368
A37: 28 | B37: BAJAJ-AUTO | C37: 3023.8 | D37: 3012.00 | E37: 2991.80 | F37: 2959.80 | G37: 2939.60 | H37: 3044.00 | I37: 3064.20 | J37: 3096.20 | K37: 3032.2 | L37: 2980 | M37: 5.38508
A38: 29 | B38: BAJFINANCE | C38: 2860.75 | D38: 2858.25 | E38: 2817.50 | F38: 2774.25 | G38: 2733.50 | H38: 2901.50 | I38: 2942.25 | J38: 2985.50 | K38: 2899 | L38: 2815 | M38: 20.91562
A39: 30 | B39: BAJAJFINSV | C39: 6927.95 | D39: 6943.98 | E39: 6883.97 | F39: 6839.98 | G39: 6779.97 | H39: 6987.97 | I39: 7047.98 | J39: 7091.97 | K39: 7004 | L39: 6900 | M39: 2.19456
A40: 31 | B40: BALKRISIND | C40: 931.65 | D40: 936.12 | E40: 923.33 | F40: 915.02 | G40: 902.23 | H40: 944.43 | I40: 957.22 | J40: 965.53 | K40: 948.9 | L40: 927.8 | M40: 5.87325
A41: 32 | B41: BANKBARODA | C41: 118.15 | D41: 118.00 | E41: 116.15 | F41: 114.15 | G41: 112.30 | H41: 120.00 | I41: 121.85 | J41: 123.85 | K41: 119.85 | L41: 116 | M41: 211.21349
A42: 33 | B42: BANKINDIA | C42: 93.15 | D42: 93.62 | E42: 92.23 | F42: 91.32 | G42: 89.93 | H42: 94.53 | I42: 95.92 | J42: 96.83 | K42: 95 | L42: 92.7 | M42: 116.33846
A43: 34 | B43: BATAINDIA | C43: 1374.2 | D43: 1373.03 | E43: 1359.47 | F43: 1344.73 | G43: 1331.17 | H43: 1387.77 | I43: 1401.33 | J43: 1416.07 | K43: 1386.6 | L43: 1358.3 | M43: 19.20819
A44: 35 | B44: BERGEPAINT | C44: 309.35 | D44: 308.90 | E44: 306.80 | F44: 304.25 | G44: 302.15 | H44: 311.45 | I44: 313.55 | J44: 316.10 | K44: 311 | L44: 306.35 | M44: 8.15337
A45: 36 | B45: BEL | C45: 94.95 | D45: 94.25 | E45: 93.05 | F45: 91.15 | G45: 89.95 | H45: 96.15 | I45: 97.35 | J45: 99.25 | K45: 95.45 | L45: 92.35 | M45: 211.85335
A46: 37 | B46: BHARATFIN | C46: 1064.8 | D46: 1065.27 | E46: 1055.53 | F46: 1046.27 | G46: 1036.53 | H46: 1074.53 | I46: 1084.27 | J46: 1093.53 | K46: 1075 | L46: 1056 | M46: 13.15495
A47: 38 | B47: BHARATFORG | C47: 535.55 | D47: 536.70 | E47: 525.15 | F47: 514.75 | G47: 503.20 | H47: 547.10 | I47: 558.65 | J47: 569.05 | K47: 548.25 | L47: 526.3 | M47: 39.143
A48: 39 | B48: BHEL | C48: 67.8 | D48: 67.32 | E48: 66.58 | F48: 65.37 | G48: 64.63 | H48: 68.53 | I48: 69.27 | J48: 70.48 | K48: 68.05 | L48: 66.1 | M48: 68.78337
A49: 40 | B49: BPCL | C49: 396.3 | D49: 394.67 | E49: 391.03 | F49: 385.77 | G49: 382.13 | H49: 399.93 | I49: 403.57 | J49: 408.83 | K49: 398.3 | L49: 389.4 | M49: 86.29091
A50: 41 | B50: BHARTIARTL | C50: 337.7 | D50: 337.92 | E50: 330.98 | F50: 324.27 | G50: 317.33 | H50: 344.63 | I50: 351.57 | J50: 358.28 | K50: 344.85 | L50: 331.2 | M50: 103.97551
A51: 42 | B51: INFRATEL | C51: 313.2 | D51: 314.82 | E51: 309.63 | F51: 306.07 | G51: 300.88 | H51: 318.38 | I51: 323.57 | J51: 327.13 | K51: 320 | L51: 311.25 | M51: 28.80482
A52: 43 | B52: BIOCON | C52: 623 | D52: 623.30 | E52: 617.70 | F52: 612.40 | G52: 606.80 | H52: 628.60 | I52: 634.20 | J52: 639.50 | K52: 628.9 | L52: 618 | M52: 9.75101
A53: 44 | B53: BOSCHLTD | C53: 18365.25 | D53: 18453.57 | E53: 18217.23 | F53: 18069.22 | G53: 17832.88 | H53: 18601.58 | I53: 18837.92 | J53: 18985.93 | K53: 18689.9 | L53: 18305.55 | M53: 0.30082
A54: 45 | B54: BRITANNIA | C54: 3066.55 | D54: 3096.75 | E54: 3024.50 | F54: 2982.45 | G54: 2910.20 | H54: 3138.80 | I54: 3211.05 | J54: 3253.10 | K54: 3169 | L54: 3054.7 | M54: 4.03251
A55: 46 | B55: CRISIL | C55: 1438.75 | D55: 1448.43 | E55: 1421.87 | F55: 1404.98 | G55: 1378.42 | H55: 1465.32 | I55: 1491.88 | J55: 1508.77 | K55: 1475 | L55: 1431.55 | M55: 4.12621
A56: 47 | B56: CADILAHC | C56: 342.45 | D56: 340.43 | E56: 331.42 | F56: 320.38 | G56: 311.37 | H56: 351.47 | I56: 360.48 | J56: 371.52 | K56: 349.45 | L56: 329.4 | M56: 37.77187
A57: 48 | B57: CANBK | C57: 264.6 | D57: 265.53 | E57: 261.22 | F57: 257.83 | G57: 253.52 | H57: 268.92 | I57: 273.23 | J57: 276.62 | K57: 269.85 | L57: 262.15 | M57: 56.45857
A58: 49 | B58: CASTROLIND | C58: 165.35 | D58: 164.83 | E58: 160.17 | F58: 154.98 | G58: 150.32 | H58: 170.02 | I58: 174.68 | J58: 179.87 | K58: 169.5 | L58: 159.65 | M58: 96.7801
A59: 50 | B59: CENTRALBK | C59: 33.9 | D59: 34.12 | E59: 33.63 | F59: 33.37 | G59: 32.88 | H59: 34.38 | I59: 34.87 | J59: 35.13 | K59: 34.6 | L59: 33.85 | M59: 5.24784
A60: 51 | B60: CENTURYTEX | C60: 887.95 | D60: 890.00 | E60: 878.50 | F60: 869.05 | G60: 857.55 | H60: 899.45 | I60: 910.95 | J60: 920.40 | K60: 901.5 | L60: 880.55 | M60: 3.97492
A61: 52 | B61: CHOLAFIN | C61: 1390.1 | D61: 1385.47 | E61: 1367.93 | F61: 1345.77 | G61: 1328.23 | H61: 1407.63 | I61: 1425.17 | J61: 1447.33 | K61: 1403 | L61: 1363.3 | M61: 5.2991
A62: 53 | B62: CIPLA | C62: 532.6 | D62: 532.32 | E62: 529.23 | F62: 525.87 | G62: 522.78 | H62: 535.68 | I62: 538.77 | J62: 542.13 | K62: 535.4 | L62: 528.95 | M62: 20.1924
A63: 54 | B63: COALINDIA | C63: 244.35 | D63: 242.83 | E63: 239.52 | F63: 234.68 | G63: 231.37 | H63: 247.67 | I63: 250.98 | J63: 255.82 | K63: 246.15 | L63: 238 | M63: 164.65364
A64: 55 | B64: COLPAL | C64: 1272.85 | D64: 1277.97 | E64: 1262.88 | F64: 1252.92 | G64: 1237.83 | H64: 1287.93 | I64: 1303.02 | J64: 1312.98 | K64: 1293.05 | L64: 1268 | M64: 6.59113
A65: 56 | B65: CONCOR | C65: 515.45 | D65: 513.43 | E65: 509.27 | F65: 503.08 | G65: 498.92 | H65: 519.62 | I65: 523.78 | J65: 529.97 | K65: 517.6 | L65: 507.25 | M65: 10.69396
A66: 57 | B66: COROMANDEL | C66: 479.5 | D66: 481.07 | E66: 473.63 | F66: 467.77 | G66: 460.33 | H66: 486.93 | I66: 494.37 | J66: 500.23 | K66: 488.5 | L66: 475.2 | M66: 1.04235
A67: 58 | B67: CROMPTON | C67: 228 | D67: 227.77 | E67: 226.53 | F67: 225.07 | G67: 223.83 | H67: 229.23 | I67: 230.47 | J67: 231.93 | K67: 229 | L67: 226.3 | M67: 3.0644
A68: 59 | B68: CUMMINSIND | C68: 740.95 | D68: 744.17 | E68: 734.78 | F68: 728.62 | G68: 719.23 | H68: 750.33 | I68: 759.72 | J68: 765.88 | K68: 753.55 | L68: 738 | M68: 3.15823
A69: 60 | B69: DLF | C69: 197.45 | D69: 199.25 | E69: 194.75 | F69: 192.05 | G69: 187.55 | H69: 201.95 | I69: 206.45 | J69: 209.15 | K69: 203.75 | L69: 196.55 | M69: 93.17938
A70: 61 | B70: DABUR | C70: 425.45 | D70: 429.37 | E70: 419.58 | F70: 413.72 | G70: 403.93 | H70: 435.23 | I70: 445.02 | J70: 450.88 | K70: 439.15 | L70: 423.5 | M70: 27.71756
A71: 62 | B71: DHFL | C71: 132.2 | D71: 131.30 | E71: 129.30 | F71: 126.40 | G71: 124.40 | H71: 134.20 | I71: 136.20 | J71: 139.10 | K71: 133.3 | L71: 128.4 | M71: 156.48972
A72: 63 | B72: DISHTV | C72: 39.6 | D72: 38.98 | E72: 37.87 | F72: 36.13 | G72: 35.02 | H72: 40.72 | I72: 41.83 | J72: 43.57 | K72: 40.1 | L72: 37.25 | M72: 186.32759
A73: 64 | B73: DIVISLAB | C73: 1708 | D73: 1709.87 | E73: 1693.13 | F73: 1678.27 | G73: 1661.53 | H73: 1724.73 | I73: 1741.47 | J73: 1756.33 | K73: 1726.6 | L73: 1695 | M73: 8.30304
A74: 65 | B74: LALPATHLAB | C74: 1058.95 | D74: 1047.47 | E74: 1027.58 | F74: 996.22 | G74: 976.33 | H74: 1078.83 | I74: 1098.72 | J74: 1130.08 | K74: 1067.35 | L74: 1016.1 | M74: 3.32569
A75: 66 | B75: DRREDDY | C75: 2658.9 | D75: 2664.53 | E75: 2635.32 | F75: 2611.73 | G75: 2582.52 | H75: 2688.12 | I75: 2717.33 | J75: 2740.92 | K75: 2693.75 | L75: 2640.95 | M75: 14.36054
A76: 67 | B76: EDELWEISS | C76: 187.85 | D76: 189.80 | E76: 184.10 | F76: 180.35 | G76: 174.65 | H76: 193.55 | I76: 199.25 | J76: 203.00 | K76: 195.5 | L76: 186.05 | M76: 54.02209
A77: 68 | B77: EICHERMOT | C77: 22612.35 | D77: 22625.45 | E77: 22412.90 | F77: 22213.45 | G77: 22000.90 | H77: 22824.90 | I77: 23037.45 | J77: 23236.90 | K77: 22838 | L77: 22426 | M77: 0.9819
A78: 69 | B78: EMAMILTD | C78: 393.7 | D78: 394.53 | E78: 386.17 | F78: 378.63 | G78: 370.27 | H78: 402.07 | I78: 410.43 | J78: 417.97 | K78: 402.9 | L78: 387 | M78: 8.11161
A79: 70 | B79: ENDURANCE | C79: 1154.65 | D79: 1154.80 | E79: 1144.85 | F79: 1135.05 | G79: 1125.10 | H79: 1164.60 | I79: 1174.55 | J79: 1184.35 | K79: 1164.75 | L79: 1145 | M79: 2.06914
A80: 71 | B80: ENGINERSIN | C80: 114 | D80: 114.07 | E80: 113.13 | F80: 112.27 | G80: 111.33 | H80: 114.93 | I80: 115.87 | J80: 116.73 | K80: 115 | L80: 113.2 | M80: 29.6433
A81: 72 | B81: EXIDEIND | C81: 229.65 | D81: 230.47 | E81: 227.28 | F81: 224.92 | G81: 221.73 | H81: 232.83 | I81: 236.02 | J81: 238.38 | K81: 233.65 | L81: 228.1 | M81: 26.52857
A82: 73 | B82: FEDERALBNK | C82: 91.4 | D82: 91.42 | E82: 90.03 | F82: 88.67 | G82: 87.28 | H82: 92.78 | I82: 94.17 | J82: 95.53 | K82: 92.8 | L82: 90.05 | M82: 237.36072
A83: 74 | B83: GAIL | C83: 359.35 | D83: 357.12 | E83: 352.23 | F83: 345.12 | G83: 340.23 | H83: 364.23 | I83: 369.12 | J83: 376.23 | K83: 362 | L83: 350 | M83: 74.63044
A84: 75 | B84: GMRINFRA | C84: 16.95 | D84: 16.95 | E84: 16.70 | F84: 16.45 | G84: 16.20 | H84: 17.20 | I84: 17.45 | J84: 17.70 | K84: 17.2 | L84: 16.7 | M84: 492.25734
A85: 76 | B85: GSKCONS | C85: 7060.55 | D85: 7093.52 | E85: 6993.83 | F85: 6927.12 | G85: 6827.43 | H85: 7160.23 | I85: 7259.92 | J85: 7326.63 | K85: 7193.2 | L85: 7026.8 | M85: 0.35316
A86: 77 | B86: GLAXO | C86: 1301.15 | D86: 1303.97 | E86: 1293.98 | F86: 1286.82 | G86: 1276.83 | H86: 1311.13 | I86: 1321.12 | J86: 1328.28 | K86: 1313.95 | L86: 1296.8 | M86: 0.14562
A87: 78 | B87: GLENMARK | C87: 641.55 | D87: 642.22 | E87: 632.43 | F87: 623.32 | G87: 613.53 | H87: 651.33 | I87: 661.12 | J87: 670.23 | K87: 652 | L87: 633.1 | M87: 15.33529
A88: 79 | B88: GODREJCP | C88: 701.6 | D88: 707.13 | E88: 691.37 | F88: 681.13 | G88: 665.37 | H88: 717.37 | I88: 733.13 | J88: 743.37 | K88: 722.9 | L88: 696.9 | M88: 24.13757
A89: 80 | B89: GODREJIND | C89: 534.35 | D89: 532.90 | E89: 528.80 | F89: 523.25 | G89: 519.15 | H89: 538.45 | I89: 542.55 | J89: 548.10 | K89: 537 | L89: 527.35 | M89: 3.20028
A90: 81 | B90: GRUH | C90: 281.9 | D90: 283.08 | E90: 277.72 | F90: 273.53 | G90: 268.17 | H90: 287.27 | I90: 292.63 | J90: 296.82 | K90: 288.45 | L90: 278.9 | M90: 23.34267
A91: 82 | B91: GPPL | C91: 92.9 | D91: 93.22 | E91: 92.18 | F91: 91.47 | G91: 90.43 | H91: 93.93 | I91: 94.97 | J91: 95.68 | K91: 94.25 | L91: 92.5 | M91: 1.61808
A92: 83 | B92: GSPL | C92: 181.5 | D92: 181.80 | E92: 179.00 | F92: 176.50 | G92: 173.70 | H92: 184.30 | I92: 187.10 | J92: 189.60 | K92: 184.6 | L92: 179.3 | M92: 2.49587
A93: 84 | B93: HCLTECH | C93: 1029.3 | D93: 1023.98 | E93: 1014.12 | F93: 998.93 | G93: 989.07 | H93: 1039.17 | I93: 1049.03 | J93: 1064.22 | K93: 1033.85 | L93: 1008.8 | M93: 26.03844
A94: 85 | B94: HDFCBANK | C94: 2253 | D94: 2246.98 | E94: 2234.07 | F94: 2215.13 | G94: 2202.22 | H94: 2265.92 | I94: 2278.83 | J94: 2297.77 | K94: 2259.9 | L94: 2228.05 | M94: 31.90772
A95: 86 | B95: HAVELLS | C95: 745.1 | D95: 747.03 | E95: 740.07 | F95: 735.03 | G95: 728.07 | H95: 752.07 | I95: 759.03 | J95: 764.07 | K95: 754 | L95: 742 | M95: 16.82674
A96: 87 | B96: HEROMOTOCO | C96: 2735.85 | D96: 2741.32 | E96: 2711.63 | F96: 2687.42 | G96: 2657.73 | H96: 2765.53 | I96: 2795.22 | J96: 2819.43 | K96: 2771 | L96: 2717.1 | M96: 9.1687
A97: 88 | B97: HEXAWARE | C97: 341.5 | D97: 341.18 | E97: 336.32 | F97: 331.13 | G97: 326.27 | H97: 346.37 | I97: 351.23 | J97: 356.42 | K97: 346.05 | L97: 336 | M97: 11.67129
A98: 89 | B98: HINDALCO | C98: 199.05 | D98: 199.62 | E98: 196.68 | F98: 194.32 | G98: 191.38 | H98: 201.98 | I98: 204.92 | J98: 207.28 | K98: 202.55 | L98: 197.25 | M98: 74.89589
A99: 90 | B99: HINDPETRO | C99: 276.95 | D99: 274.12 | E99: 268.23 | F99: 259.52 | G99: 253.63 | H99: 282.83 | I99: 288.72 | J99: 297.43 | K99: 280 | L99: 265.4 | M99: 119.07408
A100: 91 | B100: HINDUNILVR | C100: 1698.4 | D100: 1713.12 | E100: 1679.73 | F100: 1661.07 | G100: 1627.68 | H100: 1731.78 | I100: 1765.17 | J100: 1783.83 | K100: 1746.5 | L100: 1694.45 | M100: 35.71762
A101: 92 | B101: HINDZINC | C101: 275.1 | D101: 273.90 | E101: 271.70 | F101: 268.30 | G101: 266.10 | H101: 277.30 | I101: 279.50 | J101: 282.90 | K101: 276.1 | L101: 270.5 | M101: 6.17716
A102: 93 | B102: HUDCO | C102: 44.5 | D102: 44.78 | E102: 44.02 | F102: 43.53 | G102: 42.77 | H102: 45.27 | I102: 46.03 | J102: 46.52 | K102: 45.55 | L102: 44.3 | M102: 10.54349
A103: 94 | B103: HDFC | C103: 1974.65 | D103: 1974.08 | E103: 1956.47 | F103: 1938.28 | G103: 1920.67 | H103: 1992.27 | I103: 2009.88 | J103: 2028.07 | K103: 1991.7 | L103: 1955.9 | M103: 59.84639
A104: 95 | B104: ITC | C104: 290.8 | D104: 292.23 | E104: 287.92 | F104: 285.03 | G104: 280.72 | H104: 295.12 | I104: 299.43 | J104: 302.32 | K104: 296.55 | L104: 289.35 | M104: 213.95473
A105: 96 | B105: ICICIBANK | C105: 395.3 | D105: 393.88 | E105: 389.52 | F105: 383.73 | G105: 379.37 | H105: 399.67 | I105: 404.03 | J105: 409.82 | K105: 398.25 | L105: 388.1 | M105: 314.66545
A106: 97 | B106: ICICIPRULI | C106: 340.55 | D106: 339.65 | E106: 336.00 | F106: 331.45 | G106: 327.80 | H106: 344.20 | I106: 347.85 | J106: 352.40 | K106: 343.3 | L106: 335.1 | M106: 12.32849
A107: 98 | B107: IDBI | C107: 42.8 | D107: 43.07 | E107: 42.28 | F107: 41.77 | G107: 40.98 | H107: 43.58 | I107: 44.37 | J107: 44.88 | K107: 43.85 | L107: 42.55 | M107: 212.41201
A108: 99 | B108: IDFCFIRSTB | C108: 52.05 | D108: 51.80 | E108: 51.05 | F108: 50.05 | G108: 49.30 | H108: 52.80 | I108: 53.55 | J108: 54.55 | K108: 52.55 | L108: 50.8 | M108: 426.89785
A109: 100 | B109: IDFC | C109: 44.3 | D109: 43.88 | E109: 42.52 | F109: 40.73 | G109: 39.37 | H109: 45.67 | I109: 47.03 | J109: 48.82 | K109: 45.25 | L109: 42.1 | M109: 218.80421
A110: 101 | B110: IRB | C110: 150.9 | D110: 151.23 | E110: 149.47 | F110: 148.03 | G110: 146.27 | H110: 152.67 | I110: 154.43 | J110: 155.87 | K110: 153 | L110: 149.8 | M110: 17.24246
A111: 102 | B111: IDEA | C111: 33.95 | D111: 33.95 | E111: 33.65 | F111: 33.35 | G111: 33.05 | H111: 34.25 | I111: 34.55 | J111: 34.85 | K111: 34.25 | L111: 33.65 | M111: 163.14084
A112: 103 | B112: IBULHSGFIN | C112: 700.05 | D112: 702.55 | E112: 690.75 | F112: 681.45 | G112: 669.65 | H112: 711.85 | I112: 723.65 | J112: 732.95 | K112: 714.35 | L112: 693.25 | M112: 65.44528
A113: 104 | B113: INDIANB | C113: 267.2 | D113: 268.43 | E113: 264.37 | F113: 261.53 | G113: 257.47 | H113: 271.27 | I113: 275.33 | J113: 278.17 | K113: 272.5 | L113: 265.6 | M113: 13.45326
A114: 105 | B114: INDHOTEL | C114: 149.15 | D114: 149.68 | E114: 147.52 | F114: 145.88 | G114: 143.72 | H114: 151.32 | I114: 153.48 | J114: 155.12 | K114: 151.85 | L114: 148.05 | M114: 15.99045
A115: 106 | B115: IOC | C115: 157.35 | D115: 155.75 | E115: 152.30 | F115: 147.25 | G115: 143.80 | H115: 160.80 | I115: 164.25 | J115: 169.30 | K115: 159.2 | L115: 150.7 | M115: 296.34224
A116: 107 | B116: IGL | C116: 290.85 | D116: 292.12 | E116: 288.23 | F116: 285.62 | G116: 281.73 | H116: 294.73 | I116: 298.62 | J116: 301.23 | K116: 296 | L116: 289.5 | M116: 12.68235
A117: 108 | B117: INDUSINDBK | C117: 1703.25 | D117: 1702.12 | E117: 1686.23 | F117: 1669.22 | G117: 1653.33 | H117: 1719.13 | I117: 1735.02 | J117: 1752.03 | K117: 1718 | L117: 1685.1 | M117: 38.84063
A118: 109 | B118: NAUKRI | C118: 1867.75 | D118: 1876.25 | E118: 1836.50 | F118: 1805.25 | G118: 1765.50 | H118: 1907.50 | I118: 1947.25 | J118: 1978.50 | K118: 1916 | L118: 1845 | M118: 3.6928
A119: 110 | B119: INFY | C119: 718.55 | D119: 717.30 | E119: 710.85 | F119: 703.15 | G119: 696.70 | H119: 725.00 | I119: 731.45 | J119: 739.15 | K119: 723.75 | L119: 709.6 | M119: 146.38664
A120: 111 | B120: INDIGO | C120: 1296.05 | D120: 1298.98 | E120: 1283.07 | F120: 1270.08 | G120: 1254.17 | H120: 1311.97 | I120: 1327.88 | J120: 1340.87 | K120: 1314.9 | L120: 1286 | M120: 8.05058
A121: 112 | B121: IPCALAB | C121: 885.55 | D121: 891.97 | E121: 869.13 | F121: 852.72 | G121: 829.88 | H121: 908.38 | I121: 931.22 | J121: 947.63 | K121: 914.8 | L121: 875.55 | M121: 1.83627
A122: 113 | B122: JSWENERGY | C122: 67.05 | D122: 67.33 | E122: 66.02 | F122: 64.98 | G122: 63.67 | H122: 68.37 | I122: 69.68 | J122: 70.72 | K122: 68.65 | L122: 66.3 | M122: 22.26365
A123: 114 | B123: JSWSTEEL | C123: 288.45 | D123: 288.33 | E123: 285.42 | F123: 282.38 | G123: 279.47 | H123: 291.37 | I123: 294.28 | J123: 297.32 | K123: 291.25 | L123: 285.3 | M123: 70.53371
A124: 115 | B124: JINDALSTEL | C124: 166.35 | D124: 165.90 | E124: 164.30 | F124: 162.25 | G124: 160.65 | H124: 167.95 | I124: 169.55 | J124: 171.60 | K124: 167.5 | L124: 163.85 | M124: 83.43875
A125: 116 | B125: JUBLFOOD | C125: 1343.2 | D125: 1344.67 | E125: 1330.63 | F125: 1318.07 | G125: 1304.03 | H125: 1357.23 | I125: 1371.27 | J125: 1383.83 | K125: 1358.7 | L125: 1332.1 | M125: 18.05206
A126: 117 | B126: JUBILANT | C126: 873.5 | D126: 872.80 | E126: 860.80 | F126: 848.10 | G126: 836.10 | H126: 885.50 | I126: 897.50 | J126: 910.20 | K126: 884.8 | L126: 860.1 | M126: 6.97447
A127: 118 | B127: KARURVYSYA | C127: 73.05 | D127: 73.03 | E127: 71.17 | F127: 69.28 | G127: 67.42 | H127: 74.92 | I127: 76.78 | J127: 78.67 | K127: 74.9 | L127: 71.15 | M127: 31.70748
A128: 119 | B128: KOTAKBANK | C128: 1325.15 | D128: 1311.50 | E128: 1283.65 | F128: 1242.15 | G128: 1214.30 | H128: 1353.00 | I128: 1380.85 | J128: 1422.35 | K128: 1339.35 | L128: 1270 | M128: 103.93505
A129: 120 | B129: L&TFH | C129: 146.65 | D129: 146.42 | E129: 143.83 | F129: 141.02 | G129: 138.43 | H129: 149.23 | I129: 151.82 | J129: 154.63 | K129: 149 | L129: 143.6 | M129: 78.2385
A130: 121 | B130: LICHSGFIN | C130: 509.85 | D130: 511.03 | E130: 505.32 | F130: 500.78 | G130: 495.07 | H130: 515.57 | I130: 521.28 | J130: 525.82 | K130: 516.75 | L130: 506.5 | M130: 21.53827
A131: 122 | B131: LT | C131: 1396.5 | D131: 1395.30 | E131: 1379.80 | F131: 1363.10 | G131: 1347.60 | H131: 1412.00 | I131: 1427.50 | J131: 1444.20 | K131: 1410.8 | L131: 1378.6 | M131: 57.2398
A132: 123 | B132: LUPIN | C132: 785.15 | D132: 780.58 | E132: 771.57 | F132: 757.98 | G132: 748.97 | H132: 794.17 | I132: 803.18 | J132: 816.77 | K132: 789.6 | L132: 767 | M132: 36.51344
A133: 124 | B133: MRF | C133: 57609.5 | D133: 57506.83 | E133: 57013.67 | F133: 56417.83 | G133: 55924.67 | H133: 58102.67 | I133: 58595.83 | J133: 59191.67 | K133: 58000 | L133: 56911 | M133: 0.08692
A134: 125 | B134: MGL | C134: 939.05 | D134: 937.12 | E134: 930.28 | F134: 921.52 | G134: 914.68 | H134: 945.88 | I134: 952.72 | J134: 961.48 | K134: 943.95 | L134: 928.35 | M134: 7.61997
A135: 126 | B135: M&MFIN | C135: 435.4 | D135: 433.33 | E135: 426.17 | F135: 416.93 | G135: 409.77 | H135: 442.57 | I135: 449.73 | J135: 458.97 | K135: 440.5 | L135: 424.1 | M135: 32.11869
A136: 127 | B136: M&M | C136: 694.6 | D136: 692.87 | E136: 688.73 | F136: 682.87 | G136: 678.73 | H136: 698.73 | I136: 702.87 | J136: 708.73 | K136: 697 | L136: 687 | M136: 52.08071
A137: 128 | B137: MANAPPURAM | C137: 119.5 | D137: 119.50 | E137: 118.55 | F137: 117.60 | G137: 116.65 | H137: 120.45 | I137: 121.40 | J137: 122.35 | K137: 120.45 | L137: 118.55 | M137: 34.93558
A138: 129 | B138: MRPL | C138: 73.45 | D138: 73.25 | E138: 72.40 | F138: 71.35 | G138: 70.50 | H138: 74.30 | I138: 75.15 | J138: 76.20 | K138: 74.1 | L138: 72.2 | M138: 8.10377
A139: 130 | B139: MARICO | C139: 338.65 | D139: 341.17 | E139: 334.43 | F139: 330.22 | G139: 323.48 | H139: 345.38 | I139: 352.12 | J139: 356.33 | K139: 347.9 | L139: 336.95 | M139: 19.88067
A140: 131 | B140: MARUTI | C140: 7084 | D140: 7100.33 | E140: 7043.67 | F140: 7003.33 | G140: 6946.67 | H140: 7140.67 | I140: 7197.33 | J140: 7237.67 | K140: 7157 | L140: 7060 | M140: 8.61945
A141: 132 | B141: MFSL | C141: 438.75 | D141: 439.28 | E141: 435.22 | F141: 431.68 | G141: 427.62 | H141: 442.82 | I141: 446.88 | J141: 450.42 | K141: 443.35 | L141: 435.75 | M141: 4.28908
A142: 133 | B142: MINDTREE | C142: 947.4 | D142: 950.82 | E142: 936.93 | F142: 926.47 | G142: 912.58 | H142: 961.28 | I142: 975.17 | J142: 985.63 | K142: 964.7 | L142: 940.35 | M142: 27.37367
A143: 134 | B143: MOTHERSUMI | C143: 165.2 | D143: 165.07 | E143: 162.98 | F143: 160.77 | G143: 158.68 | H143: 167.28 | I143: 169.37 | J143: 171.58 | K143: 167.15 | L143: 162.85 | M143: 52.11235
A144: 135 | B144: MPHASIS | C144: 987.65 | D144: 978.65 | E144: 963.40 | F144: 939.15 | G144: 923.90 | H144: 1002.90 | I144: 1018.15 | J144: 1042.40 | K144: 993.9 | L144: 954.4 | M144: 3.118
A145: 136 | B145: MUTHOOTFIN | C145: 596.9 | D145: 599.07 | E145: 591.33 | F145: 585.77 | G145: 578.03 | H145: 604.63 | I145: 612.37 | J145: 617.93 | K145: 606.8 | L145: 593.5 | M145: 23.31463
A146: 137 | B146: NATCOPHARM | C146: 587.95 | D146: 585.48 | E146: 580.97 | F146: 573.98 | G146: 569.47 | H146: 592.47 | I146: 596.98 | J146: 603.97 | K146: 590 | L146: 578.5 | M146: 2.6576
A147: 138 | B147: NBCC | C147: 65.75 | D147: 65.40 | E147: 64.05 | F147: 62.35 | G147: 61.00 | H147: 67.10 | I147: 68.45 | J147: 70.15 | K147: 66.75 | L147: 63.7 | M147: 380.8099
A148: 139 | B148: NHPC | C148: 25.15 | D148: 25.08 | E148: 24.87 | F148: 24.58 | G148: 24.37 | H148: 25.37 | I148: 25.58 | J148: 25.87 | K148: 25.3 | L148: 24.8 | M148: 97.59475
A149: 140 | B149: NMDC | C149: 114.6 | D149: 114.63 | E149: 113.82 | F149: 113.03 | G149: 112.22 | H149: 115.42 | I149: 116.23 | J149: 117.02 | K149: 115.45 | L149: 113.85 | M149: 38.6849
A150: 141 | B150: NTPC | C150: 158.05 | D150: 156.65 | E150: 154.05 | F150: 150.05 | G150: 147.45 | H150: 160.65 | I150: 163.25 | J150: 167.25 | K150: 159.25 | L150: 152.65 | M150: 169.63953
A151: 142 | B151: NATIONALUM | C151: 54.7 | D151: 54.23 | E151: 53.17 | F151: 51.63 | G151: 50.57 | H151: 55.77 | I151: 56.83 | J151: 58.37 | K151: 55.3 | L151: 52.7 | M151: 374.69203
A152: 143 | B152: OBEROIRLTY | C152: 487.5 | D152: 486.52 | E152: 481.93 | F152: 476.37 | G152: 471.78 | H152: 492.08 | I152: 496.67 | J152: 502.23 | K152: 491.1 | L152: 480.95 | M152: 3.0708
A153: 144 | B153: ONGC | C153: 156 | D153: 154.88 | E153: 152.32 | F153: 148.63 | G153: 146.07 | H153: 158.57 | I153: 161.13 | J153: 164.82 | K153: 157.45 | L153: 151.2 | M153: 154.83879
A154: 145 | B154: OIL | C154: 178.5 | D154: 178.42 | E154: 177.38 | F154: 176.27 | G154: 175.23 | H154: 179.53 | I154: 180.57 | J154: 181.68 | K154: 179.45 | L154: 177.3 | M154: 8.5279
A155: 146 | B155: OFSS | C155: 3356.15 | D155: 3370.55 | E155: 3321.10 | F155: 3286.05 | G155: 3236.60 | H155: 3405.60 | I155: 3455.05 | J155: 3490.10 | K155: 3420 | L155: 3335.5 | M155: 0.80572
A156: 147 | B156: PCJEWELLER | C156: 83 | D156: 84.05 | E156: 81.10 | F156: 79.20 | G156: 76.25 | H156: 85.95 | I156: 88.90 | J156: 90.80 | K156: 87 | L156: 82.15 | M156: 133.84888
A157: 148 | B157: PIIND | C157: 1013.3 | D157: 1014.07 | E157: 998.13 | F157: 982.97 | G157: 967.03 | H157: 1029.23 | I157: 1045.17 | J157: 1060.33 | K157: 1030 | L157: 998.9 | M157: 1.50366
A158: 149 | B158: PNBHOUSING | C158: 875.95 | D158: 882.65 | E158: 864.40 | F158: 852.85 | G158: 834.60 | H158: 894.20 | I158: 912.45 | J158: 924.00 | K158: 900.9 | L158: 871.1 | M158: 4.35742
A159: 150 | B159: PAGEIND | C159: 23675.3 | D159: 23731.67 | E159: 23473.33 | F159: 23271.37 | G159: 23013.03 | H159: 23933.63 | I159: 24191.97 | J159: 24393.93 | K159: 23990 | L159: 23529.7 | M159: 0.2079
A160: 151 | B160: PETRONET | C160: 236.55 | D160: 238.68 | E160: 233.07 | F160: 229.58 | G160: 223.97 | H160: 242.17 | I160: 247.78 | J160: 251.27 | K160: 244.3 | L160: 235.2 | M160: 71.84644
A161: 152 | B161: PIDILITIND | C161: 1165.45 | D161: 1173.10 | E161: 1152.35 | F161: 1139.25 | G161: 1118.50 | H161: 1186.20 | I161: 1206.95 | J161: 1220.05 | K161: 1193.85 | L161: 1160 | M161: 7.18477
A162: 153 | B162: PEL | C162: 2643.9 | D162: 2651.63 | E162: 2619.27 | F162: 2594.63 | G162: 2562.27 | H162: 2676.27 | I162: 2708.63 | J162: 2733.27 | K162: 2684 | L162: 2627 | M162: 5.24233
A163: 154 | B163: PFC | C163: 111.9 | D163: 111.60 | E163: 110.40 | F163: 108.90 | G163: 107.70 | H163: 113.10 | I163: 114.30 | J163: 115.80 | K163: 112.8 | L163: 110.1 | M163: 75.0144
A164: 155 | B164: POWERGRID | C164: 193.25 | D164: 191.52 | E164: 188.83 | F164: 184.42 | G164: 181.73 | H164: 195.93 | I164: 198.62 | J164: 203.03 | K164: 194.2 | L164: 187.1 | M164: 80.44829
A165: 156 | B165: PRESTIGE | C165: 215.6 | D165: 216.13 | E165: 211.27 | F165: 206.93 | G165: 202.07 | H165: 220.47 | I165: 225.33 | J165: 229.67 | K165: 221 | L165: 211.8 | M165: 8.4489
A166: 157 | B166: PGHH | C166: 10268.8 | D166: 10351.43 | E166: 10122.92 | F166: 9977.03 | G166: 9748.52 | H166: 10497.32 | I166: 10725.83 | J166: 10871.72 | K166: 10579.95 | L166: 10205.55 | M166: 0.07428
A167: 158 | B167: PNB | C167: 86.05 | D167: 86.15 | E167: 85.00 | F167: 83.95 | G167: 82.80 | H167: 87.20 | I167: 88.35 | J167: 89.40 | K167: 87.3 | L167: 85.1 | M167: 477.65635
A168: 159 | B168: RBLBANK | C168: 648.15 | D168: 647.45 | E168: 640.95 | F168: 633.75 | G168: 627.25 | H168: 654.65 | I168: 661.15 | J168: 668.35 | K168: 653.95 | L168: 640.25 | M168: 207.65318
A169: 160 | B169: RAJESHEXPO | C169: 629.8 | D169: 625.83 | E169: 619.97 | F169: 610.13 | G169: 604.27 | H169: 635.67 | I169: 641.53 | J169: 651.37 | K169: 631.7 | L169: 616 | M169: 11.10395
A170: 161 | B170: RELCAPITAL | C170: 174.55 | D170: 172.25 | E170: 167.50 | F170: 160.45 | G170: 155.70 | H170: 179.30 | I170: 184.05 | J170: 191.10 | K170: 177 | L170: 165.2 | M170: 206.4608
A171: 162 | B171: RCOM | C171: 4.4 | D171: 4.48 | E171: 4.27 | F171: 4.13 | G171: 3.92 | H171: 4.62 | I171: 4.83 | J171: 4.97 | K171: 4.7 | L171: 4.35 | M171: 490.90349
A172: 163 | B172: RELIANCE | C172: 1321.65 | D172: 1330.55 | E172: 1302.30 | F172: 1282.95 | G172: 1254.70 | H172: 1349.90 | I172: 1378.15 | J172: 1397.50 | K172: 1358.8 | L172: 1311.2 | M172: 158.93093
A173: 164 | B173: RELINFRA | C173: 131.65 | D173: 129.07 | E173: 123.68 | F173: 115.72 | G173: 110.33 | H173: 137.03 | I173: 142.42 | J173: 150.38 | K173: 134.45 | L173: 121.1 | M173: 200.51293
A174: 165 | B174: RPOWER | C174: 10.8 | D174: 10.77 | E174: 10.43 | F174: 10.07 | G174: 9.73 | H174: 11.13 | I174: 11.47 | J174: 11.83 | K174: 11.1 | L174: 10.4 | M174: 618.18021
A175: 166 | B175: RECLTD | C175: 144.95 | D175: 142.88 | E175: 139.47 | F175: 133.98 | G175: 130.57 | H175: 148.37 | I175: 151.78 | J175: 157.27 | K175: 146.3 | L175: 137.4 | M175: 259.02293
A176: 167 | B176: SRF | C176: 2418.1 | D176: 2403.90 | E176: 2372.80 | F176: 2327.50 | G176: 2296.40 | H176: 2449.20 | I176: 2480.30 | J176: 2525.60 | K176: 2435 | L176: 2358.6 | M176: 8.90492
A177: 168 | B177: SHREECEM | C177: 17520.7 | D177: 17609.40 | E177: 17362.70 | F177: 17204.70 | G177: 16958.00 | H177: 17767.40 | I177: 18014.10 | J177: 18172.10 | K177: 17856.1 | L177: 17451.4 | M177: 0.33538
A178: 169 | B178: SRTRANSFIN | C178: 1267.1 | D178: 1261.60 | E178: 1250.70 | F178: 1234.30 | G178: 1223.40 | H178: 1278.00 | I178: 1288.90 | J178: 1305.30 | K178: 1272.5 | L178: 1245.2 | M178: 10.32597
A179: 170 | B179: SIEMENS | C179: 1035.85 | D179: 1037.43 | E179: 1029.87 | F179: 1023.88 | G179: 1016.32 | H179: 1043.42 | I179: 1050.98 | J179: 1056.97 | K179: 1045 | L179: 1031.45 | M179: 2.45333
A180: 171 | B180: SBIN | C180: 298.4 | D180: 297.40 | E180: 293.50 | F180: 288.60 | G180: 284.70 | H180: 302.30 | I180: 306.20 | J180: 311.10 | K180: 301.3 | L180: 292.5 | M180: 379.2848
A181: 172 | B181: SAIL | C181: 51.55 | D181: 51.98 | E181: 50.62 | F181: 49.68 | G181: 48.32 | H181: 52.92 | I181: 54.28 | J181: 55.22 | K181: 53.35 | L181: 51.05 | M181: 316.65508
A182: 173 | B182: SPARC | C182: 200.35 | D182: 200.02 | E182: 197.03 | F182: 193.72 | G182: 190.73 | H182: 203.33 | I182: 206.32 | J182: 209.63 | K182: 203 | L182: 196.7 | M182: 12.85679
A183: 174 | B183: SUNPHARMA | C183: 464.35 | D183: 465.53 | E183: 461.12 | F183: 457.88 | G183: 453.47 | H183: 468.77 | I183: 473.18 | J183: 476.42 | K183: 469.95 | L183: 462.3 | M183: 58.77969
A184: 175 | B184: SUNTV | C184: 617.5 | D184: 619.48 | E184: 608.22 | F184: 598.93 | G184: 587.67 | H184: 628.77 | I184: 640.03 | J184: 649.32 | K184: 630.75 | L184: 610.2 | M184: 34.55081
A185: 176 | B185: SUZLON | C185: 6.8 | D185: 6.87 | E185: 6.63 | F185: 6.47 | G185: 6.23 | H185: 7.03 | I185: 7.27 | J185: 7.43 | K185: 7.1 | L185: 6.7 | M185: 586.78228
A186: 177 | B186: SYNDIBANK | C186: 38.45 | D186: 38.75 | E186: 37.90 | F186: 37.35 | G186: 36.50 | H186: 39.30 | I186: 40.15 | J186: 40.70 | K186: 39.6 | L186: 38.2 | M186: 43.61712
A187: 178 | B187: SYNGENE | C187: 580 | D187: 586.57 | E187: 568.43 | F187: 556.87 | G187: 538.73 | H187: 598.13 | I187: 616.27 | J187: 627.83 | K187: 604.7 | L187: 575 | M187: 1.60105
A188: 179 | B188: TV18BRDCST | C188: 35.6 | D188: 35.83 | E188: 35.07 | F188: 34.53 | G188: 33.77 | H188: 36.37 | I188: 37.13 | J188: 37.67 | K188: 36.6 | L188: 35.3 | M188: 68.01917
A189: 180 | B189: TVSMOTOR | C189: 493.25 | D189: 496.17 | E189: 483.33 | F189: 473.42 | G189: 460.58 | H189: 506.08 | I189: 518.92 | J189: 528.83 | K189: 509 | L189: 486.25 | M189: 27.80053
A190: 181 | B190: TATACHEM | C190: 585.75 | D190: 583.60 | E190: 578.80 | F190: 571.85 | G190: 567.05 | H190: 590.55 | I190: 595.35 | J190: 602.30 | K190: 588.4 | L190: 576.65 | M190: 7.2312
A191: 182 | B191: TATACOMM | C191: 608.85 | D191: 608.28 | E191: 602.02 | F191: 595.18 | G191: 588.92 | H191: 615.12 | I191: 621.38 | J191: 628.22 | K191: 614.55 | L191: 601.45 | M191: 3.32808
A192: 183 | B192: TCS | C192: 2039.95 | D192: 2033.30 | E192: 1997.65 | F192: 1955.35 | G192: 1919.70 | H192: 2075.60 | I192: 2111.25 | J192: 2153.55 | K192: 2068.95 | L192: 1991 | M192: 51.84318
A193: 184 | B193: TATAGLOBAL | C193: 203.2 | D193: 204.72 | E193: 200.83 | F193: 198.47 | G193: 194.58 | H193: 207.08 | I193: 210.97 | J193: 213.33 | K193: 208.6 | L193: 202.35 | M193: 20.25761
A194: 185 | B194: TATAMTRDVR | C194: 89.95 | D194: 89.72 | E194: 88.48 | F194: 87.02 | G194: 85.78 | H194: 91.18 | I194: 92.42 | J194: 93.88 | K194: 90.95 | L194: 88.25 | M194: 43.51921
A195: 186 | B195: TATAMOTORS | C195: 180 | D195: 179.67 | E195: 177.93 | F195: 175.87 | G195: 174.13 | H195: 181.73 | I195: 183.47 | J195: 185.53 | K195: 181.4 | L195: 177.6 | M195: 174.90993
A196: 187 | B196: TATAPOWER | C196: 73.8 | D196: 73.78 | E196: 72.82 | F196: 71.83 | G196: 70.87 | H196: 74.77 | I196: 75.73 | J196: 76.72 | K196: 74.75 | L196: 72.8 | M196: 77.51928
A197: 188 | B197: TATASTEEL | C197: 515.45 | D197: 516.28 | E197: 511.62 | F197: 507.78 | G197: 503.12 | H197: 520.12 | I197: 524.78 | J197: 528.62 | K197: 520.95 | L197: 512.45 | M197: 42.33938
A198: 189 | B198: TECHM | C198: 799.3 | D198: 797.93 | E198: 788.37 | F198: 777.43 | G198: 767.87 | H198: 808.87 | I198: 818.43 | J198: 829.37 | K198: 807.5 | L198: 787 | M198: 38.54238
A199: 190 | B199: RAMCOCEM | C199: 703.65 | D199: 707.87 | E199: 696.33 | F199: 689.02 | G199: 677.48 | H199: 715.18 | I199: 726.72 | J199: 734.03 | K199: 719.4 | L199: 700.55 | M199: 3.56646
A200: 191 | B200: TITAN | C200: 1097.25 | D200: 1097.68 | E200: 1081.57 | F200: 1065.88 | G200: 1049.77 | H200: 1113.37 | I200: 1129.48 | J200: 1145.17 | K200: 1113.8 | L200: 1082 | M200: 53.1866
A201: 192 | B201: TORNTPHARM | C201: 1856.15 | D201: 1848.00 | E201: 1830.65 | F201: 1805.15 | G201: 1787.80 | H201: 1873.50 | I201: 1890.85 | J201: 1916.35 | K201: 1865.35 | L201: 1822.5 | M201: 1.79119
A202: 193 | B202: TORNTPOWER | C202: 256.7 | D202: 256.53 | E202: 254.62 | F202: 252.53 | G202: 250.62 | H202: 258.62 | I202: 260.53 | J202: 262.62 | K202: 258.45 | L202: 254.45 | M202: 3.48927
A203: 194 | B203: UPL | C203: 923.45 | D203: 918.08 | E203: 907.77 | F203: 892.08 | G203: 881.77 | H203: 933.77 | I203: 944.08 | J203: 959.77 | K203: 928.4 | L203: 902.4 | M203: 26.09765
A204: 195 | B204: ULTRACEMCO | C204: 3916.1 | D204: 3937.03 | E204: 3884.07 | F204: 3852.03 | G204: 3799.07 | H204: 3969.07 | I204: 4022.03 | J204: 4054.07 | K204: 3990 | L204: 3905 | M204: 3.39118
A205: 196 | B205: UNIONBANK | C205: 82.9 | D205: 83.45 | E205: 81.90 | F205: 80.90 | G205: 79.35 | H205: 84.45 | I205: 86.00 | J205: 87.00 | K205: 85 | L205: 82.45 | M205: 115.99757
... 29 more rows

Sheet MidCap Intra
L5: Back To Main Page
A6: FOR INTRA DAY TRADING | K6: =Main!B10 -> 2019-03-18
A9: Sr.no | B9: Scrip | C9: CLOSE RATE | D9: Pivot Point | E9: Supports | H9: Resistances
C10: Point | E10: S1 | F10: S2 | G10: S3 | H10: R1 | I10: R2 | J10: R3 | K10: HIGH | L10: LOW | M10: Total Trade Quanity in Lakhs
A11: 1 | B11: 3MINDIA | C11: 23742.05 | D11: 23830.07 | E11: 23212.98 | F11: 22683.92 | G11: 22066.83 | H11: 24359.13 | I11: 24976.22 | J11: 25505.28 | K11: 24447.15 | L11: 23301 | M11: 0.68736
A12: 2 | B12: 8KMILES | C12: 103.35 | D12: 104.62 | E12: 101.23 | F12: 99.12 | G12: 95.73 | H12: 106.73 | I12: 110.12 | J12: 112.23 | K12: 108 | L12: 102.5 | M12: 2.0463
A13: 3 | B13: AARTIIND | C13: 1424.55 | D13: 1424.50 | E13: 1400.05 | F13: 1375.55 | G13: 1351.10 | H13: 1449.00 | I13: 1473.45 | J13: 1497.95 | K13: 1448.95 | L13: 1400 | M13: 5.82194
A14: 4 | B14: ABAN | C14: 66.15 | D14: 66.15 | E14: 66.15 | F14: 66.15 | G14: 66.15 | H14: 66.15 | I14: 66.15 | J14: 66.15 | K14: 66.15 | L14: 66.15 | M14: 0.46449
A15: 5 | B15: ABB | C15: 1303.8 | D15: 1305.77 | E15: 1294.13 | F15: 1284.47 | G15: 1272.83 | H15: 1315.43 | I15: 1327.07 | J15: 1336.73 | K15: 1317.4 | L15: 1296.1 | M15: 2.18031
A16: 6 | B16: ABCAPITAL | C16: 99.5 | D16: 98.67 | E16: 96.88 | F16: 94.27 | G16: 92.48 | H16: 101.28 | I16: 103.07 | J16: 105.68 | K16: 100.45 | L16: 96.05 | M16: 169.33643
A17: 7 | B17: ABFRL | C17: 227.1 | D17: 228.70 | E17: 224.40 | F17: 221.70 | G17: 217.40 | H17: 231.40 | I17: 235.70 | J17: 238.40 | K17: 233 | L17: 226 | M17: 15.94351
A18: 8 | B18: ACC | C18: 1531.85 | D18: 1539.20 | E18: 1519.10 | F18: 1506.35 | G18: 1486.25 | H18: 1551.95 | I18: 1572.05 | J18: 1584.80 | K18: 1559.3 | L18: 1526.45 | M18: 8.34141
A19: 9 | B19: ADANIPORTS | C19: 367.1 | D19: 365.85 | E19: 362.75 | F19: 358.40 | G19: 355.30 | H19: 370.20 | I19: 373.30 | J19: 377.65 | K19: 368.95 | L19: 361.5 | M19: 30.57825
A20: 10 | B20: ADANIPOWER | C20: 50.85 | D20: 50.77 | E20: 50.28 | F20: 49.72 | G20: 49.23 | H20: 51.33 | I20: 51.82 | J20: 52.38 | K20: 51.25 | L20: 50.2 | M20: 108.27468
A21: 11 | B21: ADANITRANS | C21: 235.2 | D21: 228.95 | E21: 213.60 | F21: 192.00 | G21: 176.65 | H21: 250.55 | I21: 265.90 | J21: 287.50 | K21: 244.3 | L21: 207.35 | M21: 28.81276
A22: 12 | B22: ADVENZYMES | C22: 183.3 | D22: 185.78 | E22: 177.57 | F22: 171.83 | G22: 163.62 | H22: 191.52 | I22: 199.73 | J22: 205.47 | K22: 194 | L22: 180.05 | M22: 9.64673
A23: 13 | B23: AEGISCHEM | C23: 203.95 | D23: 203.98 | E23: 202.62 | F23: 201.28 | G23: 199.92 | H23: 205.32 | I23: 206.68 | J23: 208.02 | K23: 205.35 | L23: 202.65 | M23: 2.45533
A24: 14 | B24: AIAENG | C24: 1759.25 | D24: 1759.75 | E24: 1739.50 | F24: 1719.75 | G24: 1699.50 | H24: 1779.50 | I24: 1799.75 | J24: 1819.50 | K24: 1780 | L24: 1740 | M24: 0.0758
A25: 15 | B25: AJANTPHARM | C25: 1014.2 | D25: 1022.85 | E25: 1001.00 | F25: 987.80 | G25: 965.95 | H25: 1036.05 | I25: 1057.90 | J25: 1071.10 | K25: 1044.7 | L25: 1009.65 | M25: 3.36768
A26: 16 | B26: AKZOINDIA | C26: 1740.15 | D26: 1753.05 | E26: 1717.10 | F26: 1694.05 | G26: 1658.10 | H26: 1776.10 | I26: 1812.05 | J26: 1835.10 | K26: 1789 | L26: 1730 | M26: 0.05629
A27: 17 | B27: ALBK | C27: 55.5 | D27: 55.75 | E27: 54.65 | F27: 53.80 | G27: 52.70 | H27: 56.60 | I27: 57.70 | J27: 58.55 | K27: 56.85 | L27: 54.9 | M27: 80.46399
A28: 18 | B28: ALKEM | C28: 1760.4 | D28: 1756.53 | E28: 1732.07 | F28: 1703.73 | G28: 1679.27 | H28: 1784.87 | I28: 1809.33 | J28: 1837.67 | K28: 1781 | L28: 1728.2 | M28: 3.49087
A29: 19 | B29: ALLCARGO | C29: 120.05 | D29: 121.17 | E29: 117.88 | F29: 115.72 | G29: 112.43 | H29: 123.33 | I29: 126.62 | J29: 128.78 | K29: 124.45 | L29: 119 | M29: 6.9126
A30: 20 | B30: AMARAJABAT | C30: 746.55 | D30: 747.57 | E30: 742.13 | F30: 737.72 | G30: 732.28 | H30: 751.98 | I30: 757.42 | J30: 761.83 | K30: 753 | L30: 743.15 | M30: 2.22911
A31: 21 | B31: AMBUJACEM | C31: 225.35 | D31: 226.13 | E31: 222.77 | F31: 220.18 | G31: 216.82 | H31: 228.72 | I31: 232.08 | J31: 234.67 | K31: 229.5 | L31: 223.55 | M31: 32.26639
A32: 22 | B32: ANDHRABANK | C32: 25.8 | D32: 25.95 | E32: 25.00 | F32: 24.20 | G32: 23.25 | H32: 26.75 | I32: 27.70 | J32: 28.50 | K32: 26.9 | L32: 25.15 | M32: 13.99652
A33: 23 | B33: APLAPOLLO | C33: 1368.4 | D33: 1364.90 | E33: 1337.85 | F33: 1307.30 | G33: 1280.25 | H33: 1395.45 | I33: 1422.50 | J33: 1453.05 | K33: 1391.95 | L33: 1334.35 | M33: 0.19473
A34: 24 | B34: APLLTD | C34: 547.15 | D34: 548.83 | E34: 544.57 | F34: 541.98 | G34: 537.72 | H34: 551.42 | I34: 555.68 | J34: 558.27 | K34: 553.1 | L34: 546.25 | M34: 0.30958
A35: 25 | B35: APOLLOHOSP | C35: 1124.15 | D35: 1129.02 | E35: 1105.13 | F35: 1086.12 | G35: 1062.23 | H35: 1148.03 | I35: 1171.92 | J35: 1190.93 | K35: 1152.9 | L35: 1110 | M35: 7.31215
A36: 26 | B36: APOLLOTYRE | C36: 222.25 | D36: 222.83 | E36: 220.52 | F36: 218.78 | G36: 216.47 | H36: 224.57 | I36: 226.88 | J36: 228.62 | K36: 225.15 | L36: 221.1 | M36: 25.91655
A37: 27 | B37: ARVIND | C37: 95.75 | D37: 95.62 | E37: 94.63 | F37: 93.52 | G37: 92.53 | H37: 96.73 | I37: 97.72 | J37: 98.83 | K37: 96.6 | L37: 94.5 | M37: 63.68305
A38: 28 | B38: ASAHIINDIA | C38: 265.75 | D38: 266.55 | E38: 262.90 | F38: 260.05 | G38: 256.40 | H38: 269.40 | I38: 273.05 | J38: 275.90 | K38: 270.2 | L38: 263.7 | M38: 0.08147
A39: 29 | B39: ASHOKA | C39: 137.45 | D39: 137.88 | E39: 135.57 | F39: 133.68 | G39: 131.37 | H39: 139.77 | I39: 142.08 | J39: 143.97 | K39: 140.2 | L39: 136 | M39: 4.2807
A40: 30 | B40: ASHOKLEY | C40: 94.1 | D40: 94.25 | E40: 93.50 | F40: 92.90 | G40: 92.15 | H40: 94.85 | I40: 95.60 | J40: 96.20 | K40: 95 | L40: 93.65 | M40: 244.37891
A41: 31 | B41: ASIANPAINT | C41: 1432.55 | D41: 1439.40 | E41: 1421.80 | F41: 1411.05 | G41: 1393.45 | H41: 1450.15 | I41: 1467.75 | J41: 1478.50 | K41: 1457 | L41: 1428.65 | M41: 16.67627
A42: 32 | B42: ASTRAL | C42: 1154.55 | D42: 1171.52 | E42: 1108.03 | F42: 1061.52 | G42: 998.03 | H42: 1218.03 | I42: 1281.52 | J42: 1328.03 | K42: 1235 | L42: 1125 | M42: 6.8458
A43: 33 | B43: ATUL | C43: 3263.8 | D43: 3266.25 | E43: 3197.55 | F43: 3131.30 | G43: 3062.60 | H43: 3332.50 | I43: 3401.20 | J43: 3467.45 | K43: 3334.95 | L43: 3200 | M43: 0.09089
A44: 34 | B44: AUBANK | C44: 610.9 | D44: 607.28 | E44: 598.62 | F44: 586.33 | G44: 577.67 | H44: 619.57 | I44: 628.23 | J44: 640.52 | K44: 615.95 | L44: 595 | M44: 2.59528
A45: 35 | B45: AUROPHARMA | C45: 771.6 | D45: 775.00 | E45: 765.00 | F45: 758.40 | G45: 748.40 | H45: 781.60 | I45: 791.60 | J45: 798.20 | K45: 785 | L45: 768.4 | M45: 18.60397
A46: 36 | B46: AVANTIFEED | C46: 417 | D46: 422.82 | E46: 409.18 | F46: 401.37 | G46: 387.73 | H46: 430.63 | I46: 444.27 | J46: 452.08 | K46: 436.45 | L46: 415 | M46: 6.46013
A47: 37 | B47: AXISBANK | C47: 735.1 | D47: 738.58 | E47: 728.22 | F47: 721.33 | G47: 710.97 | H47: 745.47 | I47: 755.83 | J47: 762.72 | K47: 748.95 | L47: 731.7 | M47: 145.60368
A48: 38 | B48: BAJAJ-AUTO | C48: 3023.8 | D48: 3012.00 | E48: 2991.80 | F48: 2959.80 | G48: 2939.60 | H48: 3044.00 | I48: 3064.20 | J48: 3096.20 | K48: 3032.2 | L48: 2980 | M48: 5.38508
A49: 39 | B49: BAJAJCON | C49: 323.7 | D49: 324.73 | E49: 321.47 | F49: 319.23 | G49: 315.97 | H49: 326.97 | I49: 330.23 | J49: 332.47 | K49: 328 | L49: 322.5 | M49: 3.4134
A50: 40 | B50: BAJAJELEC | C50: 516.5 | D50: 516.52 | E50: 503.98 | F50: 491.47 | G50: 478.93 | H50: 529.03 | I50: 541.57 | J50: 554.08 | K50: 529.05 | L50: 504 | M50: 4.69422
A51: 41 | B51: BAJAJFINSV | C51: 6927.95 | D51: 6943.98 | E51: 6883.97 | F51: 6839.98 | G51: 6779.97 | H51: 6987.97 | I51: 7047.98 | J51: 7091.97 | K51: 7004 | L51: 6900 | M51: 2.19456
A52: 42 | B52: BAJAJHIND | C52: 8.5 | D52: 8.57 | E52: 8.38 | F52: 8.27 | G52: 8.08 | H52: 8.68 | I52: 8.87 | J52: 8.98 | K52: 8.75 | L52: 8.45 | M52: 14.03921
A53: 43 | B53: BAJAJHLDNG | C53: 3337.2 | D53: 3337.75 | E53: 3299.45 | F53: 3261.70 | G53: 3223.40 | H53: 3375.50 | I53: 3413.80 | J53: 3451.55 | K53: 3376.05 | L53: 3300 | M53: 0.49372
A54: 44 | B54: BAJFINANCE | C54: 2860.75 | D54: 2858.25 | E54: 2817.50 | F54: 2774.25 | G54: 2733.50 | H54: 2901.50 | I54: 2942.25 | J54: 2985.50 | K54: 2899 | L54: 2815 | M54: 20.91562
A55: 45 | B55: BALKRISIND | C55: 931.65 | D55: 936.12 | E55: 923.33 | F55: 915.02 | G55: 902.23 | H55: 944.43 | I55: 957.22 | J55: 965.53 | K55: 948.9 | L55: 927.8 | M55: 5.87325
A56: 46 | B56: BALLARPUR | C56: 3.2 | D56: 3.32 | E56: 3.08 | F56: 2.97 | G56: 2.73 | H56: 3.43 | I56: 3.67 | J56: 3.78 | K56: 3.55 | L56: 3.2 | M56: 25.92944
A57: 47 | B57: BALMLAWRIE | C57: 193.15 | D57: 191.62 | E57: 189.23 | F57: 185.32 | G57: 182.93 | H57: 195.53 | I57: 197.92 | J57: 201.83 | K57: 194 | L57: 187.7 | M57: 1.3804
A58: 48 | B58: BALRAMCHIN | C58: 132.9 | D58: 133.20 | E58: 131.10 | F58: 129.30 | G58: 127.20 | H58: 135.00 | I58: 137.10 | J58: 138.90 | K58: 135.3 | L58: 131.4 | M58: 15.3716
A59: 49 | B59: BANKBARODA | C59: 118.15 | D59: 118.00 | E59: 116.15 | F59: 114.15 | G59: 112.30 | H59: 120.00 | I59: 121.85 | J59: 123.85 | K59: 119.85 | L59: 116 | M59: 211.21349
A60: 50 | B60: BANKINDIA | C60: 93.15 | D60: 93.62 | E60: 92.23 | F60: 91.32 | G60: 89.93 | H60: 94.53 | I60: 95.92 | J60: 96.83 | K60: 95 | L60: 92.7 | M60: 116.33846
A61: 51 | B61: BASF | C61: 1390.8 | D61: 1399.22 | E61: 1365.63 | F61: 1340.47 | G61: 1306.88 | H61: 1424.38 | I61: 1457.97 | J61: 1483.13 | K61: 1432.8 | L61: 1374.05 | M61: 0.64976
A62: 52 | B62: BATAINDIA | C62: 1374.2 | D62: 1373.03 | E62: 1359.47 | F62: 1344.73 | G62: 1331.17 | H62: 1387.77 | I62: 1401.33 | J62: 1416.07 | K62: 1386.6 | L62: 1358.3 | M62: 19.20819
A63: 53 | B63: BBTC | C63: 1311.8 | D63: 1319.60 | E63: 1296.20 | F63: 1280.60 | G63: 1257.20 | H63: 1335.20 | I63: 1358.60 | J63: 1374.20 | K63: 1343 | L63: 1304 | M63: 0.61121
A64: 54 | B64: BEL | C64: 94.95 | D64: 94.25 | E64: 93.05 | F64: 91.15 | G64: 89.95 | H64: 96.15 | I64: 97.35 | J64: 99.25 | K64: 95.45 | L64: 92.35 | M64: 211.85335
A65: 55 | B65: BEML | C65: 965.25 | D65: 967.45 | E65: 955.90 | F65: 946.55 | G65: 935.00 | H65: 976.80 | I65: 988.35 | J65: 997.70 | K65: 979 | L65: 958.1 | M65: 18.23308
A66: 56 | B66: BERGEPAINT | C66: 309.35 | D66: 308.90 | E66: 306.80 | F66: 304.25 | G66: 302.15 | H66: 311.45 | I66: 313.55 | J66: 316.10 | K66: 311 | L66: 306.35 | M66: 8.15337
A67: 57 | B67: BFUTILITIE | C67: 195.4 | D67: 197.80 | E67: 189.85 | F67: 184.30 | G67: 176.35 | H67: 203.35 | I67: 211.30 | J67: 216.85 | K67: 205.75 | L67: 192.25 | M67: 6.43488
A68: 58 | B68: BGRENERGY | C68: 63.1 | D68: 64.03 | E68: 61.57 | F68: 60.03 | G68: 57.57 | H68: 65.57 | I68: 68.03 | J68: 69.57 | K68: 66.5 | L68: 62.5 | M68: 1.37764
A69: 59 | B69: BHARATFIN | C69: 1064.8 | D69: 1065.27 | E69: 1055.53 | F69: 1046.27 | G69: 1036.53 | H69: 1074.53 | I69: 1084.27 | J69: 1093.53 | K69: 1075 | L69: 1056 | M69: 13.15495
A70: 60 | B70: BHARATFORG | C70: 535.55 | D70: 536.70 | E70: 525.15 | F70: 514.75 | G70: 503.20 | H70: 547.10 | I70: 558.65 | J70: 569.05 | K70: 548.25 | L70: 526.3 | M70: 39.143
A71: 61 | B71: BHARTIARTL | C71: 337.7 | D71: 337.92 | E71: 330.98 | F71: 324.27 | G71: 317.33 | H71: 344.63 | I71: 351.57 | J71: 358.28 | K71: 344.85 | L71: 331.2 | M71: 103.97551
A72: 62 | B72: BHEL | C72: 67.8 | D72: 67.32 | E72: 66.58 | F72: 65.37 | G72: 64.63 | H72: 68.53 | I72: 69.27 | J72: 70.48 | K72: 68.05 | L72: 66.1 | M72: 68.78337
A73: 63 | B73: BIOCON | C73: 623 | D73: 623.30 | E73: 617.70 | F73: 612.40 | G73: 606.80 | H73: 628.60 | I73: 634.20 | J73: 639.50 | K73: 628.9 | L73: 618 | M73: 9.75101
A74: 64 | B74: BIRLACORPN | C74: 537.85 | D74: 538.67 | E74: 530.18 | F74: 522.52 | G74: 514.03 | H74: 546.33 | I74: 554.82 | J74: 562.48 | K74: 547.15 | L74: 531 | M74: 0.62067
A75: 65 | B75: BLISSGVS | C75: 168.3 | D75: 169.42 | E75: 165.63 | F75: 162.97 | G75: 159.18 | H75: 172.08 | I75: 175.87 | J75: 178.53 | K75: 173.2 | L75: 166.75 | M75: 6.78275
A76: 66 | B76: BLUEDART | C76: 3285.4 | D76: 3273.13 | E76: 3246.27 | F76: 3207.13 | G76: 3180.27 | H76: 3312.27 | I76: 3339.13 | J76: 3378.27 | K76: 3300 | L76: 3234 | M76: 0.04729
A77: 67 | B77: BLUESTARCO | C77: 670.65 | D77: 673.35 | E77: 664.30 | F77: 657.95 | G77: 648.90 | H77: 679.70 | I77: 688.75 | J77: 695.10 | K77: 682.4 | L77: 667 | M77: 0.36607
A78: 68 | B78: BOMDYEING | C78: 133.5 | D78: 135.93 | E78: 129.57 | F78: 125.63 | G78: 119.27 | H78: 139.87 | I78: 146.23 | J78: 150.17 | K78: 142.3 | L78: 132 | M78: 24.49381
A79: 69 | B79: BOSCHLTD | C79: 18365.25 | D79: 18453.57 | E79: 18217.23 | F79: 18069.22 | G79: 17832.88 | H79: 18601.58 | I79: 18837.92 | J79: 18985.93 | K79: 18689.9 | L79: 18305.55 | M79: 0.30082
A80: 70 | B80: BPCL | C80: 396.3 | D80: 394.67 | E80: 391.03 | F80: 385.77 | G80: 382.13 | H80: 399.93 | I80: 403.57 | J80: 408.83 | K80: 398.3 | L80: 389.4 | M80: 86.29091
A81: 71 | B81: BRFL | C81: 8.9 | D81: 8.88 | E81: 8.72 | F81: 8.53 | G81: 8.37 | H81: 9.07 | I81: 9.23 | J81: 9.42 | K81: 9.05 | L81: 8.7 | M81: 0.34041
A82: 72 | B82: BRIGADE | C82: 226.65 | D82: 228.33 | E82: 224.57 | F82: 222.48 | G82: 218.72 | H82: 230.42 | I82: 234.18 | J82: 236.27 | K82: 232.1 | L82: 226.25 | M82: 0.55348
A83: 73 | B83: BRITANNIA | C83: 3066.55 | D83: 3096.75 | E83: 3024.50 | F83: 2982.45 | G83: 2910.20 | H83: 3138.80 | I83: 3211.05 | J83: 3253.10 | K83: 3169 | L83: 3054.7 | M83: 4.03251
A84: 74 | B84: BSE | C84: 615.85 | D84: 619.17 | E84: 611.68 | F84: 607.52 | G84: 600.03 | H84: 623.33 | I84: 630.82 | J84: 634.98 | K84: 626.65 | L84: 615 | M84: 1.27764
A85: 75 | B85: BSOFT | C85: 100.95 | D85: 101.90 | E85: 99.15 | F85: 97.35 | G85: 94.60 | H85: 103.70 | I85: 106.45 | J85: 108.25 | K85: 104.65 | L85: 100.1 | M85: 14.73906
A86: 77 | B86: CADILAHC | C86: 342.45 | D86: 340.43 | E86: 331.42 | F86: 320.38 | G86: 311.37 | H86: 351.47 | I86: 360.48 | J86: 371.52 | K86: 349.45 | L86: 329.4 | M86: 37.77187
A87: 78 | B87: CANBK | C87: 264.6 | D87: 265.53 | E87: 261.22 | F87: 257.83 | G87: 253.52 | H87: 268.92 | I87: 273.23 | J87: 276.62 | K87: 269.85 | L87: 262.15 | M87: 56.45857
A88: 79 | B88: CANFINHOME | C88: 314.95 | D88: 316.92 | E88: 309.23 | F88: 303.52 | G88: 295.83 | H88: 322.63 | I88: 330.32 | J88: 336.03 | K88: 324.6 | L88: 311.2 | M88: 15.47006
A89: 80 | B89: CAPLIPOINT | C89: 425 | D89: 427.67 | E89: 418.33 | F89: 411.67 | G89: 402.33 | H89: 434.33 | I89: 443.67 | J89: 450.33 | K89: 437 | L89: 421 | M89: 0.46065
A90: 81 | B90: CARBORUNIV | C90: 381.4 | D90: 379.53 | E90: 374.07 | F90: 366.73 | G90: 361.27 | H90: 386.87 | I90: 392.33 | J90: 399.67 | K90: 385 | L90: 372.2 | M90: 0.3088
A91: 82 | B91: CARERATING | C91: 994 | D91: 996.67 | E91: 978.33 | F91: 962.67 | G91: 944.33 | H91: 1012.33 | I91: 1030.67 | J91: 1046.33 | K91: 1015 | L91: 981 | M91: 5.63036
A92: 83 | B92: CASTROLIND | C92: 165.35 | D92: 164.83 | E92: 160.17 | F92: 154.98 | G92: 150.32 | H92: 170.02 | I92: 174.68 | J92: 179.87 | K92: 169.5 | L92: 159.65 | M92: 96.7801
A93: 84 | B93: CCL | C93: 290.3 | D93: 289.97 | E93: 288.38 | F93: 286.47 | G93: 284.88 | H93: 291.88 | I93: 293.47 | J93: 295.38 | K93: 291.55 | L93: 288.05 | M93: 0.69215
A94: 85 | B94: CDSL | C94: 227.9 | D94: 230.15 | E94: 223.30 | F94: 218.70 | G94: 211.85 | H94: 234.75 | I94: 241.60 | J94: 246.20 | K94: 237 | L94: 225.55 | M94: 2.35891
A95: 86 | B95: CEATLTD | C95: 1165.15 | D95: 1163.77 | E95: 1148.53 | F95: 1131.92 | G95: 1116.68 | H95: 1180.38 | I95: 1195.62 | J95: 1212.23 | K95: 1179 | L95: 1147.15 | M95: 9.03086
A96: 87 | B96: CENTRALBK | C96: 33.9 | D96: 34.12 | E96: 33.63 | F96: 33.37 | G96: 32.88 | H96: 34.38 | I96: 34.87 | J96: 35.13 | K96: 34.6 | L96: 33.85 | M96: 5.24784
A97: 88 | B97: CENTURYPLY | C97: 193.25 | D97: 194.25 | E97: 191.00 | F97: 188.75 | G97: 185.50 | H97: 196.50 | I97: 199.75 | J97: 202.00 | K97: 197.5 | L97: 192 | M97: 1.79366
A98: 89 | B98: CENTURYTEX | C98: 887.95 | D98: 890.00 | E98: 878.50 | F98: 869.05 | G98: 857.55 | H98: 899.45 | I98: 910.95 | J98: 920.40 | K98: 901.5 | L98: 880.55 | M98: 3.97492
A99: 90 | B99: CERA | C99: 2633.45 | D99: 2628.08 | E99: 2616.12 | F99: 2598.78 | G99: 2586.82 | H99: 2645.42 | I99: 2657.38 | J99: 2674.72 | K99: 2640.05 | L99: 2610.75 | M99: 0.01979
A100: 91 | B100: CGPOWER | C100: 43.95 | D100: 43.65 | E100: 42.10 | F100: 40.25 | G100: 38.70 | H100: 45.50 | I100: 47.05 | J100: 48.90 | K100: 45.2 | L100: 41.8 | M100: 372.10991
A101: 92 | B101: CHAMBLFERT | C101: 165.75 | D101: 166.33 | E101: 162.27 | F101: 158.78 | G101: 154.72 | H101: 169.82 | I101: 173.88 | J101: 177.37 | K101: 170.4 | L101: 162.85 | M101: 3.11153
A102: 93 | B102: CHENNPETRO | C102: 263.55 | D102: 265.12 | E102: 259.98 | F102: 256.42 | G102: 251.28 | H102: 268.68 | I102: 273.82 | J102: 277.38 | K102: 270.25 | L102: 261.55 | M102: 5.98433
A103: 94 | B103: CHOLAFIN | C103: 1390.1 | D103: 1385.47 | E103: 1367.93 | F103: 1345.77 | G103: 1328.23 | H103: 1407.63 | I103: 1425.17 | J103: 1447.33 | K103: 1403 | L103: 1363.3 | M103: 5.2991
A104: 95 | B104: CIPLA | C104: 532.6 | D104: 532.32 | E104: 529.23 | F104: 525.87 | G104: 522.78 | H104: 535.68 | I104: 538.77 | J104: 542.13 | K104: 535.4 | L104: 528.95 | M104: 20.1924
A105: 96 | B105: COALINDIA | C105: 244.35 | D105: 242.83 | E105: 239.52 | F105: 234.68 | G105: 231.37 | H105: 247.67 | I105: 250.98 | J105: 255.82 | K105: 246.15 | L105: 238 | M105: 164.65364
A106: 97 | B106: COCHINSHIP | C106: 379.45 | D106: 381.42 | E106: 376.03 | F106: 372.62 | G106: 367.23 | H106: 384.83 | I106: 390.22 | J106: 393.63 | K106: 386.8 | L106: 378 | M106: 0.70135
A107: 98 | B107: COFFEEDAY | C107: 300.85 | D107: 302.50 | E107: 296.50 | F107: 292.15 | G107: 286.15 | H107: 306.85 | I107: 312.85 | J107: 317.20 | K107: 308.5 | L107: 298.15 | M107: 4.16103
A108: 99 | B108: COLPAL | C108: 1272.85 | D108: 1277.97 | E108: 1262.88 | F108: 1252.92 | G108: 1237.83 | H108: 1287.93 | I108: 1303.02 | J108: 1312.98 | K108: 1293.05 | L108: 1268 | M108: 6.59113
A109: 100 | B109: CONCOR | C109: 515.45 | D109: 513.43 | E109: 509.27 | F109: 503.08 | G109: 498.92 | H109: 519.62 | I109: 523.78 | J109: 529.97 | K109: 517.6 | L109: 507.25 | M109: 10.69396
A110: 101 | B110: COROMANDEL | C110: 479.5 | D110: 481.07 | E110: 473.63 | F110: 467.77 | G110: 460.33 | H110: 486.93 | I110: 494.37 | J110: 500.23 | K110: 488.5 | L110: 475.2 | M110: 1.04235
A111: 102 | B111: COX&KINGS | C111: 150.4 | D111: 152.13 | E111: 146.27 | F111: 142.13 | G111: 136.27 | H111: 156.27 | I111: 162.13 | J111: 166.27 | K111: 158 | L111: 148 | M111: 1.07766
A112: 103 | B112: CRISIL | C112: 1438.75 | D112: 1448.43 | E112: 1421.87 | F112: 1404.98 | G112: 1378.42 | H112: 1465.32 | I112: 1491.88 | J112: 1508.77 | K112: 1475 | L112: 1431.55 | M112: 4.12621
A113: 104 | B113: CROMPTON | C113: 228 | D113: 227.77 | E113: 226.53 | F113: 225.07 | G113: 223.83 | H113: 229.23 | I113: 230.47 | J113: 231.93 | K113: 229 | L113: 226.3 | M113: 3.0644
A114: 105 | B114: CUB | C114: 188.7 | D114: 187.88 | E114: 186.37 | F114: 184.03 | G114: 182.52 | H114: 190.22 | I114: 191.73 | J114: 194.07 | K114: 189.4 | L114: 185.55 | M114: 14.69835
A115: 106 | B115: CUMMINSIND | C115: 740.95 | D115: 744.17 | E115: 734.78 | F115: 728.62 | G115: 719.23 | H115: 750.33 | I115: 759.72 | J115: 765.88 | K115: 753.55 | L115: 738 | M115: 3.15823
A116: 107 | B116: CYIENT | C116: 661.9 | D116: 665.58 | E116: 648.97 | F116: 636.03 | G116: 619.42 | H116: 678.52 | I116: 695.13 | J116: 708.07 | K116: 682.2 | L116: 652.65 | M116: 1.88508
A117: 108 | B117: DABUR | C117: 425.45 | D117: 429.37 | E117: 419.58 | F117: 413.72 | G117: 403.93 | H117: 435.23 | I117: 445.02 | J117: 450.88 | K117: 439.15 | L117: 423.5 | M117: 27.71756
A118: 109 | B118: DBCORP | C118: 200.7 | D118: 201.37 | E118: 197.58 | F118: 194.47 | G118: 190.68 | H118: 204.48 | I118: 208.27 | J118: 211.38 | K118: 205.15 | L118: 198.25 | M118: 0.91149
A119: 110 | B119: DBL | C119: 655.8 | D119: 640.35 | E119: 616.70 | F119: 577.60 | G119: 553.95 | H119: 679.45 | I119: 703.10 | J119: 742.20 | K119: 664 | L119: 601.25 | M119: 19.27504
A120: 111 | B120: DBREALTY | C120: 20.75 | D120: 20.82 | E120: 20.43 | F120: 20.12 | G120: 19.73 | H120: 21.13 | I120: 21.52 | J120: 21.83 | K120: 21.2 | L120: 20.5 | M120: 1.2318
A121: 112 | B121: DCAL | C121: 211.8 | D121: 212.12 | E121: 208.53 | F121: 205.27 | G121: 201.68 | H121: 215.38 | I121: 218.97 | J121: 222.23 | K121: 215.7 | L121: 208.85 | M121: 1.00156
A122: 113 | B122: DCBBANK | C122: 201.2 | D122: 202.23 | E122: 196.77 | F122: 192.33 | G122: 186.87 | H122: 206.67 | I122: 212.13 | J122: 216.57 | K122: 207.7 | L122: 197.8 | M122: 88.9148
A123: 114 | B123: DCMSHRIRAM | C123: 443.8 | D123: 450.65 | E123: 416.40 | F123: 389.00 | G123: 354.75 | H123: 478.05 | I123: 512.30 | J123: 539.70 | K123: 484.9 | L123: 423.25 | M123: 2.35146
A124: 115 | B124: DEEPAKFERT | C124: 133.85 | D124: 134.87 | E124: 130.98 | F124: 128.12 | G124: 124.23 | H124: 137.73 | I124: 141.62 | J124: 144.48 | K124: 138.75 | L124: 132 | M124: 1.96998
A125: 116 | B125: DELTACORP | C125: 246.15 | D125: 247.70 | E125: 243.05 | F125: 239.95 | G125: 235.30 | H125: 250.80 | I125: 255.45 | J125: 258.55 | K125: 252.35 | L125: 244.6 | M125: 8.51928
A126: 117 | B126: DEN | C126: 74.6 | D126: 74.93 | E126: 73.37 | F126: 72.13 | G126: 70.57 | H126: 76.17 | I126: 77.73 | J126: 78.97 | K126: 76.5 | L126: 73.7 | M126: 0.36557
A127: 118 | B127: DHFL | C127: 132.2 | D127: 131.30 | E127: 129.30 | F127: 126.40 | G127: 124.40 | H127: 134.20 | I127: 136.20 | J127: 139.10 | K127: 133.3 | L127: 128.4 | M127: 156.48972
A128: 119 | B128: DISHTV | C128: 39.6 | D128: 38.98 | E128: 37.87 | F128: 36.13 | G128: 35.02 | H128: 40.72 | I128: 41.83 | J128: 43.57 | K128: 40.1 | L128: 37.25 | M128: 186.32759
A129: 120 | B129: DIVISLAB | C129: 1708 | D129: 1709.87 | E129: 1693.13 | F129: 1678.27 | G129: 1661.53 | H129: 1724.73 | I129: 1741.47 | J129: 1756.33 | K129: 1726.6 | L129: 1695 | M129: 8.30304
A130: 121 | B130: DIXON | C130: 2510.3 | D130: 2523.43 | E130: 2486.87 | F130: 2463.43 | G130: 2426.87 | H130: 2546.87 | I130: 2583.43 | J130: 2606.87 | K130: 2560 | L130: 2500 | M130: 0.04911
A131: 122 | B131: DLF | C131: 197.45 | D131: 199.25 | E131: 194.75 | F131: 192.05 | G131: 187.55 | H131: 201.95 | I131: 206.45 | J131: 209.15 | K131: 203.75 | L131: 196.55 | M131: 93.17938
A132: 123 | B132: DMART | C132: 1478.5 | D132: 1480.15 | E132: 1470.30 | F132: 1462.10 | G132: 1452.25 | H132: 1488.35 | I132: 1498.20 | J132: 1506.40 | K132: 1490 | L132: 1471.95 | M132: 4.49001
A133: 124 | B133: DREDGECORP | C133: 406 | D133: 410.67 | E133: 399.63 | F133: 393.27 | G133: 382.23 | H133: 417.03 | I133: 428.07 | J133: 434.43 | K133: 421.7 | L133: 404.3 | M133: 1.50364
A134: 125 | B134: DRREDDY | C134: 2658.9 | D134: 2664.53 | E134: 2635.32 | F134: 2611.73 | G134: 2582.52 | H134: 2688.12 | I134: 2717.33 | J134: 2740.92 | K134: 2693.75 | L134: 2640.95 | M134: 14.36054
A135: 126 | B135: ECLERX | C135: 1116.35 | D135: 1129.45 | E135: 1099.90 | F135: 1083.45 | G135: 1053.90 | H135: 1145.90 | I135: 1175.45 | J135: 1191.90 | K135: 1159 | L135: 1113 | M135: 1.07625
A136: 127 | B136: EDELWEISS | C136: 187.85 | D136: 189.80 | E136: 184.10 | F136: 180.35 | G136: 174.65 | H136: 193.55 | I136: 199.25 | J136: 203.00 | K136: 195.5 | L136: 186.05 | M136: 54.02209
A137: 128 | B137: EICHERMOT | C137: 22612.35 | D137: 22625.45 | E137: 22412.90 | F137: 22213.45 | G137: 22000.90 | H137: 22824.90 | I137: 23037.45 | J137: 23236.90 | K137: 22838 | L137: 22426 | M137: 0.9819
A138: 129 | B138: EIDPARRY | C138: 213.85 | D138: 215.40 | E138: 208.80 | F138: 203.75 | G138: 197.15 | H138: 220.45 | I138: 227.05 | J138: 232.10 | K138: 222 | L138: 210.35 | M138: 1.81827
A139: 130 | B139: EIHOTEL | C139: 199.9 | D139: 200.70 | E139: 194.40 | F139: 188.90 | G139: 182.60 | H139: 206.20 | I139: 212.50 | J139: 218.00 | K139: 207 | L139: 195.2 | M139: 25.242
A140: 131 | B140: EMAMILTD | C140: 393.7 | D140: 394.53 | E140: 386.17 | F140: 378.63 | G140: 370.27 | H140: 402.07 | I140: 410.43 | J140: 417.97 | K140: 402.9 | L140: 387 | M140: 8.11161
A141: 132 | B141: ENDURANCE | C141: 1154.65 | D141: 1154.80 | E141: 1144.85 | F141: 1135.05 | G141: 1125.10 | H141: 1164.60 | I141: 1174.55 | J141: 1184.35 | K141: 1164.75 | L141: 1145 | M141: 2.06914
A142: 133 | B142: ENGINERSIN | C142: 114 | D142: 114.07 | E142: 113.13 | F142: 112.27 | G142: 111.33 | H142: 114.93 | I142: 115.87 | J142: 116.73 | K142: 115 | L142: 113.2 | M142: 29.6433
A143: 134 | B143: EQUITAS | C143: 134.2 | D143: 135.03 | E143: 132.37 | F143: 130.53 | G143: 127.87 | H143: 136.87 | I143: 139.53 | J143: 141.37 | K143: 137.7 | L143: 133.2 | M143: 21.5649
A144: 135 | B144: ERIS | C144: 659.05 | D144: 654.70 | E144: 649.40 | F144: 639.75 | G144: 634.45 | H144: 664.35 | I144: 669.65 | J144: 679.30 | K144: 660 | L144: 645.05 | M144: 0.05731
A145: 136 | B145: EROSMEDIA | C145: 83.4 | D145: 83.93 | E145: 80.47 | F145: 77.53 | G145: 74.07 | H145: 86.87 | I145: 90.33 | J145: 93.27 | K145: 87.4 | L145: 81 | M145: 11.04248
A146: 137 | B146: ESCORTS | C146: 800.55 | D146: 799.12 | E146: 789.53 | F146: 778.52 | G146: 768.93 | H146: 810.13 | I146: 819.72 | J146: 830.73 | K146: 808.7 | L146: 788.1 | M146: 19.76593
A147: 138 | B147: EVEREADY | C147: 209.1 | D147: 211.00 | E147: 205.65 | F147: 202.20 | G147: 196.85 | H147: 214.45 | I147: 219.80 | J147: 223.25 | K147: 216.35 | L147: 207.55 | M147: 19.39796
A148: 139 | B148: EXIDEIND | C148: 229.65 | D148: 230.47 | E148: 227.28 | F148: 224.92 | G148: 221.73 | H148: 232.83 | I148: 236.02 | J148: 238.38 | K148: 233.65 | L148: 228.1 | M148: 26.52857
A149: 140 | B149: FCONSUMER | C149: 44.8 | D149: 45.03 | E149: 43.12 | F149: 41.43 | G149: 39.52 | H149: 46.72 | I149: 48.63 | J149: 50.32 | K149: 46.95 | L149: 43.35 | M149: 124.68223
A150: 141 | B150: FEDERALBNK | C150: 91.4 | D150: 91.42 | E150: 90.03 | F150: 88.67 | G150: 87.28 | H150: 92.78 | I150: 94.17 | J150: 95.53 | K150: 92.8 | L150: 90.05 | M150: 237.36072
A151: 142 | B151: FINCABLES | C151: 487.6 | D151: 485.77 | E151: 472.53 | F151: 457.47 | G151: 444.23 | H151: 500.83 | I151: 514.07 | J151: 529.13 | K151: 499 | L151: 470.7 | M151: 0.87019
A152: 143 | B152: FINPIPE | C152: 535.15 | D152: 536.03 | E152: 533.02 | F152: 530.88 | G152: 527.87 | H152: 538.17 | I152: 541.18 | J152: 543.32 | K152: 539.05 | L152: 533.9 | M152: 0.16197
A153: 144 | B153: FLFL | C153: 471.85 | D153: 471.28 | E153: 466.67 | F153: 461.48 | G153: 456.87 | H153: 476.47 | I153: 481.08 | J153: 486.27 | K153: 475.9 | L153: 466.1 | M153: 1.13925
A154: 145 | B154: FSL | C154: 44.2 | D154: 44.60 | E154: 43.40 | F154: 42.60 | G154: 41.40 | H154: 45.40 | I154: 46.60 | J154: 47.40 | K154: 45.8 | L154: 43.8 | M154: 32.53487
A155: 146 | B155: GAIL | C155: 359.35 | D155: 357.12 | E155: 352.23 | F155: 345.12 | G155: 340.23 | H155: 364.23 | I155: 369.12 | J155: 376.23 | K155: 362 | L155: 350 | M155: 74.63044
A156: 147 | B156: GATI | C156: 84 | D156: 85.07 | E156: 81.93 | F156: 79.87 | G156: 76.73 | H156: 87.13 | I156: 90.27 | J156: 92.33 | K156: 88.2 | L156: 83 | M156: 20.65884
A157: 148 | B157: GDL | C157: 126.55 | D157: 128.08 | E157: 123.32 | F157: 120.08 | G157: 115.32 | H157: 131.32 | I157: 136.08 | J157: 139.32 | K157: 132.85 | L157: 124.85 | M157: 1.86331
A158: 149 | B158: GEPIL | C158: 842.75 | D158: 838.55 | E158: 827.25 | F158: 811.75 | G158: 800.45 | H158: 854.05 | I158: 865.35 | J158: 880.85 | K158: 849.85 | L158: 823.05 | M158: 0.14828
A159: 150 | B159: GESHIP | C159: 284.6 | D159: 287.25 | E159: 280.40 | F159: 276.20 | G159: 269.35 | H159: 291.45 | I159: 298.30 | J159: 302.50 | K159: 294.1 | L159: 283.05 | M159: 0.49618
A160: 151 | B160: GET&D | C160: 292.25 | D160: 293.68 | E160: 287.77 | F160: 283.28 | G160: 277.37 | H160: 298.17 | I160: 304.08 | J160: 308.57 | K160: 299.6 | L160: 289.2 | M160: 0.29667
A161: 152 | B161: GHCL | C161: 233 | D161: 236.87 | E161: 225.23 | F161: 217.47 | G161: 205.83 | H161: 244.63 | I161: 256.27 | J161: 264.03 | K161: 248.5 | L161: 229.1 | M161: 3.8678
A162: 153 | B162: GICRE | C162: 253.95 | D162: 255.05 | E162: 252.05 | F162: 250.15 | G162: 247.15 | H162: 256.95 | I162: 259.95 | J162: 261.85 | K162: 258.05 | L162: 253.15 | M162: 0.89034
A163: 154 | B163: GILLETTE | C163: 6436.5 | D163: 6487.00 | E163: 6324.50 | F163: 6212.50 | G163: 6050.00 | H163: 6599.00 | I163: 6761.50 | J163: 6873.50 | K163: 6649.5 | L163: 6375 | M163: 0.52593
A164: 155 | B164: GLAXO | C164: 1301.15 | D164: 1303.97 | E164: 1293.98 | F164: 1286.82 | G164: 1276.83 | H164: 1311.13 | I164: 1321.12 | J164: 1328.28 | K164: 1313.95 | L164: 1296.8 | M164: 0.14562
A165: 156 | B165: GLENMARK | C165: 641.55 | D165: 642.22 | E165: 632.43 | F165: 623.32 | G165: 613.53 | H165: 651.33 | I165: 661.12 | J165: 670.23 | K165: 652 | L165: 633.1 | M165: 15.33529
A166: 157 | B166: GMDCLTD | C166: 82.55 | D166: 83.60 | E166: 80.95 | F166: 79.35 | G166: 76.70 | H166: 85.20 | I166: 87.85 | J166: 89.45 | K166: 86.25 | L166: 82 | M166: 4.40667
A167: 158 | B167: GMRINFRA | C167: 16.95 | D167: 16.95 | E167: 16.70 | F167: 16.45 | G167: 16.20 | H167: 17.20 | I167: 17.45 | J167: 17.70 | K167: 17.2 | L167: 16.7 | M167: 492.25734
A168: 159 | B168: GNFC | C168: 306.75 | D168: 308.62 | E168: 303.73 | F168: 300.72 | G168: 295.83 | H168: 311.63 | I168: 316.52 | J168: 319.53 | K168: 313.5 | L168: 305.6 | M168: 2.82618
A169: 160 | B169: GODFRYPHLP | C169: 1082.55 | D169: 1083.22 | E169: 1071.43 | F169: 1060.32 | G169: 1048.53 | H169: 1094.33 | I169: 1106.12 | J169: 1117.23 | K169: 1095 | L169: 1072.1 | M169: 3.6353
A170: 161 | B170: GODREJAGRO | C170: 505.65 | D170: 506.87 | E170: 491.93 | F170: 478.22 | G170: 463.28 | H170: 520.58 | I170: 535.52 | J170: 549.23 | K170: 521.8 | L170: 493.15 | M170: 7.96496
A171: 162 | B171: GODREJCP | C171: 701.6 | D171: 707.13 | E171: 691.37 | F171: 681.13 | G171: 665.37 | H171: 717.37 | I171: 733.13 | J171: 743.37 | K171: 722.9 | L171: 696.9 | M171: 24.13757
A172: 163 | B172: GODREJIND | C172: 534.35 | D172: 532.90 | E172: 528.80 | F172: 523.25 | G172: 519.15 | H172: 538.45 | I172: 542.55 | J172: 548.10 | K172: 537 | L172: 527.35 | M172: 3.20028
A173: 164 | B173: GODREJPROP | C173: 694.45 | D173: 695.15 | E173: 683.30 | F173: 672.15 | G173: 660.30 | H173: 706.30 | I173: 718.15 | J173: 729.30 | K173: 707 | L173: 684 | M173: 2.63606
A174: 165 | B174: GPPL | C174: 92.9 | D174: 93.22 | E174: 92.18 | F174: 91.47 | G174: 90.43 | H174: 93.93 | I174: 94.97 | J174: 95.68 | K174: 94.25 | L174: 92.5 | M174: 1.61808
A175: 166 | B175: GRANULES | C175: 113.95 | D175: 113.80 | E175: 111.65 | F175: 109.35 | G175: 107.20 | H175: 116.10 | I175: 118.25 | J175: 120.55 | K175: 115.95 | L175: 111.5 | M175: 16.94712
A176: 167 | B176: GRAPHITE | C176: 459.4 | D176: 460.77 | E176: 451.78 | F176: 444.17 | G176: 435.18 | H176: 468.38 | I176: 477.37 | J176: 484.98 | K176: 469.75 | L176: 453.15 | M176: 15.30259
A177: 168 | B177: GRASIM | C177: 829.85 | D177: 833.23 | E177: 820.67 | F177: 811.48 | G177: 798.92 | H177: 842.42 | I177: 854.98 | J177: 864.17 | K177: 845.8 | L177: 824.05 | M177: 17.50118
A178: 169 | B178: GREAVESCOT | C178: 145.1 | D178: 144.83 | E178: 141.77 | F178: 138.43 | G178: 135.37 | H178: 148.17 | I178: 151.23 | J178: 154.57 | K178: 147.9 | L178: 141.5 | M178: 15.63237
A179: 170 | B179: GREENPLY | C179: 147.35 | D179: 148.03 | E179: 142.47 | F179: 137.58 | G179: 132.02 | H179: 152.92 | I179: 158.48 | J179: 163.37 | K179: 153.6 | L179: 143.15 | M179: 1.09367
A180: 171 | B180: GRUH | C180: 281.9 | D180: 283.08 | E180: 277.72 | F180: 273.53 | G180: 268.17 | H180: 287.27 | I180: 292.63 | J180: 296.82 | K180: 288.45 | L180: 278.9 | M180: 23.34267
A181: 172 | B181: GSFC | C181: 103.05 | D181: 103.00 | E181: 102.05 | F181: 101.05 | G181: 100.10 | H181: 104.00 | I181: 104.95 | J181: 105.95 | K181: 103.95 | L181: 102 | M181: 6.13093
A182: 173 | B182: GSKCONS | C182: 7060.55 | D182: 7093.52 | E182: 6993.83 | F182: 6927.12 | G182: 6827.43 | H182: 7160.23 | I182: 7259.92 | J182: 7326.63 | K182: 7193.2 | L182: 7026.8 | M182: 0.35316
A183: 174 | B183: GSPL | C183: 181.5 | D183: 181.80 | E183: 179.00 | F183: 176.50 | G183: 173.70 | H183: 184.30 | I183: 187.10 | J183: 189.60 | K183: 184.6 | L183: 179.3 | M183: 2.49587
A184: 175 | B184: GUJALKALI | C184: 525 | D184: 523.27 | E184: 520.53 | F184: 516.07 | G184: 513.33 | H184: 527.73 | I184: 530.47 | J184: 534.93 | K184: 526 | L184: 518.8 | M184: 0.37712
A185: 176 | B185: GUJFLUORO | C185: 1064.1 | D185: 1069.70 | E185: 1044.40 | F185: 1024.70 | G185: 999.40 | H185: 1089.40 | I185: 1114.70 | J185: 1134.40 | K185: 1095 | L185: 1050 | M185: 0.62604
A186: 177 | B186: GUJGASLTD | C186: 149.25 | D186: 151.42 | E186: 145.88 | F186: 142.52 | G186: 136.98 | H186: 154.78 | I186: 160.32 | J186: 163.68 | K186: 156.95 | L186: 148.05 | M186: 5.20445
A187: 178 | B187: GULFOILLUB | C187: 850.1 | D187: 843.30 | E187: 831.80 | F187: 813.50 | G187: 802.00 | H187: 861.60 | I187: 873.10 | J187: 891.40 | K187: 854.8 | L187: 825 | M187: 0.14373
A188: 179 | B188: GVKPIL | C188: 7.3 | D188: 7.35 | E188: 7.15 | F188: 7.00 | G188: 6.80 | H188: 7.50 | I188: 7.70 | J188: 7.85 | K188: 7.55 | L188: 7.2 | M188: 14.39058
A189: 180 | B189: HATHWAY | C189: 26.4 | D189: 26.42 | E189: 25.88 | F189: 25.37 | G189: 24.83 | H189: 26.93 | I189: 27.47 | J189: 27.98 | K189: 26.95 | L189: 25.9 | M189: 1.55464
A190: 181 | B190: HATSUN | C190: 713.95 | D190: 715.57 | E190: 707.13 | F190: 700.32 | G190: 691.88 | H190: 722.38 | I190: 730.82 | J190: 737.63 | K190: 724 | L190: 708.75 | M190: 0.03876
A191: 182 | B191: HAVELLS | C191: 745.1 | D191: 747.03 | E191: 740.07 | F191: 735.03 | G191: 728.07 | H191: 752.07 | I191: 759.03 | J191: 764.07 | K191: 754 | L191: 742 | M191: 16.82674
A192: 183 | B192: HCC | C192: 15.45 | D192: 15.58 | E192: 15.02 | F192: 14.58 | G192: 14.02 | H192: 16.02 | I192: 16.58 | J192: 17.02 | K192: 16.15 | L192: 15.15 | M192: 417.22332
A193: 184 | B193: HCL-INSYS | C193: 19.95 | D193: 20.35 | E193: 19.35 | F193: 18.75 | G193: 17.75 | H193: 20.95 | I193: 21.95 | J193: 22.55 | K193: 21.35 | L193: 19.75 | M193: 7.83474
A194: 185 | B194: HCLTECH | C194: 1029.3 | D194: 1023.98 | E194: 1014.12 | F194: 998.93 | G194: 989.07 | H194: 1039.17 | I194: 1049.03 | J194: 1064.22 | K194: 1033.85 | L194: 1008.8 | M194: 26.03844
A195: 186 | B195: HDFC | C195: 1974.65 | D195: 1974.08 | E195: 1956.47 | F195: 1938.28 | G195: 1920.67 | H195: 1992.27 | I195: 2009.88 | J195: 2028.07 | K195: 1991.7 | L195: 1955.9 | M195: 59.84639
A196: 187 | B196: HDFCBANK | C196: 2253 | D196: 2246.98 | E196: 2234.07 | F196: 2215.13 | G196: 2202.22 | H196: 2265.92 | I196: 2278.83 | J196: 2297.77 | K196: 2259.9 | L196: 2228.05 | M196: 31.90772
A197: 188 | B197: HDIL | C197: 25.45 | D197: 25.65 | E197: 25.00 | F197: 24.55 | G197: 23.90 | H197: 26.10 | I197: 26.75 | J197: 27.20 | K197: 26.3 | L197: 25.2 | M197: 34.88361
A198: 189 | B198: HEG | C198: 2166.5 | D198: 2185.25 | E198: 2138.70 | F198: 2110.90 | G198: 2064.35 | H198: 2213.05 | I198: 2259.60 | J198: 2287.40 | K198: 2231.8 | L198: 2157.45 | M198: 2.0638
A199: 190 | B199: HEIDELBERG | C199: 172.45 | D199: 173.65 | E199: 170.30 | F199: 168.15 | G199: 164.80 | H199: 175.80 | I199: 179.15 | J199: 181.30 | K199: 177 | L199: 171.5 | M199: 1.69353
A200: 191 | B200: HERITGFOOD | C200: 541.3 | D200: 539.55 | E200: 533.50 | F200: 525.70 | G200: 519.65 | H200: 547.35 | I200: 553.40 | J200: 561.20 | K200: 545.6 | L200: 531.75 | M200: 0.2847
A201: 192 | B201: HEROMOTOCO | C201: 2735.85 | D201: 2741.32 | E201: 2711.63 | F201: 2687.42 | G201: 2657.73 | H201: 2765.53 | I201: 2795.22 | J201: 2819.43 | K201: 2771 | L201: 2717.1 | M201: 9.1687
A202: 193 | B202: HEXAWARE | C202: 341.5 | D202: 341.18 | E202: 336.32 | F202: 331.13 | G202: 326.27 | H202: 346.37 | I202: 351.23 | J202: 356.42 | K202: 346.05 | L202: 336 | M202: 11.67129
A203: 194 | B203: HFCL | C203: 22.75 | D203: 23.13 | E203: 22.07 | F203: 21.38 | G203: 20.32 | H203: 23.82 | I203: 24.88 | J203: 25.57 | K203: 24.2 | L203: 22.45 | M203: 39.73913
A204: 195 | B204: HIMATSEIDE | C204: 217.15 | D204: 220.00 | E204: 210.55 | F204: 203.95 | G204: 194.50 | H204: 226.60 | I204: 236.05 | J204: 242.65 | K204: 229.45 | L204: 213.4 | M204: 2.78908
A205: 196 | B205: HINDALCO | C205: 199.05 | D205: 199.62 | E205: 196.68 | F205: 194.32 | G205: 191.38 | H205: 201.98 | I205: 204.92 | J205: 207.28 | K205: 202.55 | L205: 197.25 | M205: 74.89589
A206: 197 | B206: HINDCOPPER | C206: 48.45 | D206: 48.65 | E206: 48.00 | F206: 47.55 | G206: 46.90 | H206: 49.10 | I206: 49.75 | J206: 50.20 | K206: 49.3 | L206: 48.2 | M206: 4.26374
... 304 more rows

Sheet Bulk Deals
E6: Back To Main Page
A7: Subject : | B7: BULK DEAL | D7: =Main!B10 -> 2019-03-18
A9: Date | B9: Scrip code | C9: Scrip Name | D9: Client Name | E9: Buy / Sell | F9: Quantity Traded | G9: Trade Price / Wt.Avg.trade price | H9: Exchange
A10: 2019-03-15 | B10: 542012 | C10: AAL | D10: ANSU INVESTMENT | E10: BUY | F10: 100,000 | G10: 54.98 | H10: BSE
A11: 2019-03-15 | B11: 500463 | C11: AGCNET | D11: EBONY ADVISORS LLP | E11: BUY | F11: 300,215 | G11: 110.04 | H11: BSE
A12: 2019-03-15 | B12: 500463 | C12: AGCNET | D12: NARESH KOTHARI | E12: SELL | F12: 288184 | G12: 110 | H12: BSE
A13: 2019-03-15 | B13: 542437 | C13: ANMOL | D13: AJAY SONS (HUF) | E13: BUY | F13: 100000 | G13: 33.35 | H13: BSE
A14: 2019-03-15 | B14: 542437 | C14: ANMOL | D14: RADHU DEVELOPERS PVT LTD. | E14: SELL | F14: 100000 | G14: 33.35 | H14: BSE
A15: 2019-03-15 | B15: 540024 | C15: ASHARI | D15: MAYUR MAHESHKUMAR PANCHAL | E15: SELL | F15: 193000 | G15: 7.1 | H15: BSE
A16: 2019-03-15 | B16: 540024 | C16: ASHARI | D16: AJAYSINH PRAVINSINH DEVDA | E16: BUY | F16: 229100 | G16: 7.1 | H16: BSE
A17: 2019-03-15 | B17: 540024 | C17: ASHARI | D17: RAMU JOMDAR JSONEYA | E17: SELL | F17: 66000 | G17: 7.1 | H17: BSE
A18: 2019-03-15 | B18: 540024 | C18: ASHARI | D18: JAYESHBHAI DINESHBHAI VAGHELA | E18: SELL | F18: 87000 | G18: 7.1 | H18: BSE
A19: 2019-03-15 | B19: 540024 | C19: ASHARI | D19: KRUSHNA NANDLAL CHANDAK | E19: BUY | F19: 50000 | G19: 7 | H19: BSE
A20: 2019-03-15 | B20: 540024 | C20: ASHARI | D20: MANOJKUMAR GUNVANTRAI SOMANI | E20: BUY | F20: 47796 | G20: 7 | H20: BSE
A21: 2019-03-15 | B21: 540024 | C21: ASHARI | D21: MANOJKUMAR GUNVANTRAI SOMANI | E21: SELL | F21: 23194 | G21: 7.13 | H21: BSE
A22: 2019-03-15 | B22: 540024 | C22: ASHARI | D22: VIJAY KUMAR AGGARWAL | E22: SELL | F22: 450000 | G22: 7 | H22: BSE
A23: 2019-03-15 | B23: 540024 | C23: ASHARI | D23: JAY BHAVSAR | E23: SELL | F23: 69,500 | G23: 7.1 | H23: BSE
A24: 2019-03-15 | B24: 540024 | C24: ASHARI | D24: RT SUPER TECHNOLOGIES PRIVATE LIMITED | E24: SELL | F24: 50,000 | G24: 7.1 | H24: BSE
A25: 2019-03-15 | B25: 540024 | C25: ASHARI | D25: HITESHBHAI MISTRI | E25: SELL | F25: 77,500 | G25: 7.1 | H25: BSE
A26: 2019-03-15 | B26: 540024 | C26: ASHARI | D26: HEENABANE SANJAYBHAI SOLANKI | E26: BUY | F26: 46,400 | G26: 7.1 | H26: BSE
A27: 2019-03-15 | B27: 540024 | C27: ASHARI | D27: PANKAJ LABHUBHAI DANGAR | E27: BUY | F27: 200,490 | G27: 7.1 | H27: BSE
A28: 2019-03-15 | B28: 540024 | C28: ASHARI | D28: BHANUDAS NARAYAN SONAWANE | E28: BUY | F28: 350,000 | G28: 7 | H28: BSE
A29: 2019-03-15 | B29: 537766 | C29: BCP | D29: ACHINTYA SECURITIES PVT. LTD. | E29: BUY | F29: 346,026 | G29: 40.16 | H29: BSE
A30: 2019-03-15 | B30: 537766 | C30: BCP | D30: ACHINTYA SECURITIES PVT. LTD. | E30: SELL | F30: 346,026 | G30: 40.02 | H30: BSE
A31: 2019-03-15 | B31: 511710 | C31: CUBIFIN | D31: KANCHENJUNGA ADVERTISING P LTD | E31: SELL | F31: 579,590 | G31: 1.1 | H31: BSE
A32: 2019-03-15 | B32: 511710 | C32: CUBIFIN | D32: VIVEK SOMANI | E32: BUY | F32: 579,590 | G32: 1.1 | H32: BSE
A33: 2019-03-15 | B33: 539770 | C33: DARJEELING | D33: GOENKA BUSINESS & FINANCE LIMITED | E33: BUY | F33: 45,000 | G33: 90.02 | H33: BSE
A34: 2019-03-15 | B34: 539770 | C34: DARJEELING | D34: HIMANSHU SHAH | E34: SELL | F34: 57,307 | G34: 90.03 | H34: BSE
A35: 2019-03-15 | B35: 514358 | C35: EVERLON | D35: EVEREST YARN AGENCY PVT.LTD | E35: BUY | F35: 149,701 | G35: 14.29 | H35: BSE
A36: 2019-03-15 | B36: 514358 | C36: EVERLON | D36: EVERLON SOLAR ENERGY PVT.LTD | E36: SELL | F36: 148,800 | G36: 14.29 | H36: BSE
A37: 2019-03-15 | B37: 540945 | C37: FSSPL | D37: ARUNKUMAR DASHRATHBHAI PRAJAPATI | E37: SELL | F37: 96000 | G37: 6 | H37: BSE
A38: 2019-03-15 | B38: 540945 | C38: FSSPL | D38: VIJAY GHANSHYAMBHAI PUJARA | E38: BUY | F38: 136000 | G38: 6 | H38: BSE
A39: 2019-03-15 | B39: 508918 | C39: GREYCELLS | D39: MALKA SANJIV CHAINANI | E39: BUY | F39: 42000 | G39: 29.8 | H39: BSE
A40: 2019-03-15 | B40: 539522 | C40: GROVY | D40: ASHOK | E40: SELL | F40: 16000 | G40: 27.2 | H40: BSE
A41: 2019-03-15 | B41: 540938 | C41: GUJHYSPIN | D41: RAJESH KANJI SHAH (HUF) | E41: BUY | F41: 420000 | G41: 4.71 | H41: BSE
A42: 2019-03-15 | B42: 540938 | C42: GUJHYSPIN | D42: BHAVIN R SHAH | E42: SELL | F42: 350000 | G42: 4.66 | H42: BSE
A43: 2019-03-15 | B43: 535667 | C43: IFINSEC | D43: TIA ENTERPRISES PRIVATE LIMITED | E43: SELL | F43: 300000 | G43: 14.5 | H43: BSE
A44: 2019-03-15 | B44: 535667 | C44: IFINSEC | D44: GOPAL BANSAL | E44: BUY | F44: 210989 | G44: 14.5 | H44: BSE
A45: 2019-03-15 | B45: 538765 | C45: JSHL | D45: RAM KUMAR SINGH | E45: SELL | F45: 35000 | G45: 9.59 | H45: BSE
A46: 2019-03-15 | B46: 540730 | C46: MEHAI | D46: RATHOD MANOJ CHHAGANLAL HUF | E46: SELL | F46: 54000 | G46: 74 | H46: BSE
A47: 2019-03-15 | B47: 532416 | C47: NEXTMEDIA | D47: RAJASTHAN GLOBAL SECURITIES PRIVATE LIMITED | E47: BUY | F47: 408465 | G47: 26.65 | H47: BSE
A48: 2019-03-15 | B48: 502420 | C48: ORIENTPPR | D48: RATNABALI CAPITAL MARKETS LIMITED | E48: BUY | F48: 1081000 | G48: 35.75 | H48: BSE
A49: 2019-03-15 | B49: 502420 | C49: ORIENTPPR | D49: RATNABALI INVESTMENT PRIVATE LIMITED | E49: SELL | F49: 1080229 | G49: 35.75 | H49: BSE
A50: 2019-03-15 | B50: 541444 | C50: PALMJEWELS | D50: JIGNESH AMRITLAL PATEL | E50: BUY | F50: 52000 | G50: 26.56 | H50: BSE
A51: 2019-03-15 | B51: 511557 | C51: PROFINC | D51: NISHIL SURENDRABHAI MARFATIA | E51: BUY | F51: 89079 | G51: 298.9 | H51: BSE
A52: 2019-03-15 | B52: 511557 | C52: PROFINC | D52: NISHIL SURENDRABHAI MARFATIA | E52: SELL | F52: 101916 | G52: 254.39 | H52: BSE
A53: 2019-03-15 | B53: 511557 | C53: PROFINC | D53: RATHOD MANOJ CHHAGANLAL HUF | E53: BUY | F53: 78139 | G53: 245.11 | H53: BSE
A54: 2019-03-15 | B54: 511557 | C54: PROFINC | D54: RATHOD MANOJ CHHAGANLAL HUF | E54: SELL | F54: 78139 | G54: 298.91 | H54: BSE
A55: 2019-03-15 | B55: 511557 | C55: PROFINC | D55: ARVIND SHANTILAL SHAH | E55: BUY | F55: 53495 | G55: 295.68 | H55: BSE
A56: 2019-03-15 | B56: 511557 | C56: PROFINC | D56: ARVIND SHANTILAL SHAH | E56: SELL | F56: 55000 | G56: 298.45 | H56: BSE
A57: 2019-03-15 | B57: 541601 | C57: RAJNISH | D57: PRAKASH VICHARE (HUF) | E57: BUY | F57: 24000 | G57: 165 | H57: BSE
A58: 2019-03-15 | B58: 534734 | C58: RMCHEM | D58: AJAYSINH PRAVINSINH DEVDA | E58: BUY | F58: 513229 | G58: 2.03 | H58: BSE
A59: 2019-03-15 | B59: 534734 | C59: RMCHEM | D59: AJAYSINH PRAVINSINH DEVDA | E59: SELL | F59: 1504864 | G59: 2.01 | H59: BSE
A60: 2019-03-15 | B60: 542145 | C60: RONI | D60: AMAR MUKESH SHAH | E60: SELL | F60: 30000 | G60: 25 | H60: BSE
A61: 2019-03-15 | B61: 539520 | C61: SHAILJA | D61: SHRI SANJAY J SHAH HUF | E61: BUY | F61: 75000 | G61: 19.5 | H61: BSE
A62: 2019-03-15 | B62: 539520 | C62: SHAILJA | D62: ARVIND SHANTILAL SHAH | E62: SELL | F62: 88473 | G62: 19.56 | H62: BSE
A63: 2019-03-15 | B63: 539520 | C63: SHAILJA | D63: RAHUL GANESH KEDIA | E63: BUY | F63: 18000 | G63: 19.5 | H63: BSE
A64: 2019-03-15 | B64: 540693 | C64: SHISHIND | D64: PRABHULAL LALLUBHAI PAREKH | E64: BUY | F64: 24000 | G64: 39.5 | H64: BSE
A65: 2019-03-15 | B65: 540693 | C65: SHISHIND | D65: BEELINE BROKING LIMITED | E65: SELL | F65: 24000 | G65: 39.5 | H65: BSE
A66: 2019-03-15 | B66: 542019 | C66: SHUBHAM | D66: ANSU INVESTMENT | E66: BUY | F66: 105000 | G66: 41.49 | H66: BSE
A67: 2019-03-15 | B67: 542019 | C67: SHUBHAM | D67: INDRESH WAGHJIBHAI SHAH | E67: SELL | F67: 51000 | G67: 41.1 | H67: BSE
A68: 2019-03-15 | B68: 503806 | C68: SRF | D68: KOTAK MAHINDRA MUTUAL FUND | E68: BUY | F68: 360937 | G68: 2400 | H68: BSE
A69: 2019-03-15 | B69: 538733 | C69: STARLIT | D69: YMS FINANCE PRIVATE LIMITED | E69: SELL | F69: 100000 | G69: 10.78 | H69: BSE
A70: 2019-03-15 | B70: 538733 | C70: STARLIT | D70: ADVANI TRADING COMPANY PRIVATE LTD | E70: BUY | F70: 97000 | G70: 10.78 | H70: BSE
A71: 2019-03-15 | B71: 511764 | C71: UPASAFN | D71: KANCHAN DEVI | E71: BUY | F71: 21815 | G71: 56.39 | H71: BSE
A72: 2019-03-15 | B72: 512229 | C72: VERITAS | D72: KAMALASINI TRADELINK PVT LTD | E72: SELL | F72: 200000 | G72: 49.85 | H72: BSE
A73: 2019-03-15 | B73: 512229 | C73: VERITAS | D73: GROUPE VERITAS LIMITED | E73: BUY | F73: 390846 | G73: 49.85 | H73: BSE
A74: 2019-03-15 | B74: 512229 | C74: VERITAS | D74: SANJAY SHYAMSUNDER AGARWAL | E74: SELL | F74: 150000 | G74: 49.85 | H74: BSE
A75: 2019-03-15 | B75: 539097 | C75: YOGYA | D75: SUJATA MAHESH SANZGIRI | E75: BUY | F75: 40000 | G75: 23 | H75: BSE
A76: 2019-03-15 | B76: 539097 | C76: YOGYA | D76: KAMLESH I JAIN | E76: SELL | F76: 40000 | G76: 23 | H76: BSE
A77: 2019-03-15 | B77: AARTIIND | C77: Aarti Industries Ltd. | D77: THE VANGUARD GROUP INC A/C VANGUARD EMERG. MKTS STOCK INDE | E77: BUY | F77: 416418 | G77: 1425.32 | H77: NSE
A78: 2019-03-15 | B78: AKG | C78: AKG Exim Limited | D78: ANIL HANDA | E78: BUY | F78: 160000 | G78: 31.65 | H78: NSE
A79: 2019-03-15 | B79: AKG | C79: AKG Exim Limited | D79: SATYAM COMEX PRIVATE LIMITED | E79: BUY | F79: 84000 | G79: 31.6 | H79: NSE
A80: 2019-03-15 | B80: BATAINDIA | C80: Bata India Ltd. | D80: THE VANGUARD GROUP INC A/C VANGUARD EMERG. MKTS STOCK INDE | E80: BUY | F80: 851362 | G80: 1374.8 | H80: NSE
A81: 2019-03-15 | B81: CARERATING | C81: CARE Ratings Ltd | D81: VIRTUS EMERGING MARKETS SMALL CAP FUND | E81: BUY | F81: 520530 | G81: 999 | H81: NSE
A82: 2019-03-15 | B82: CASTROLIND | C82: Castrol India Limited | D82: THE VANGUARD GROUP INC A/C VANGUARD EMERG. MKTS STOCK INDE | E82: BUY | F82: 5083059 | G82: 166.05 | H82: NSE
A83: 2019-03-15 | B83: CGPOWER | C83: CG Power & Ind. Sol. Ltd. | D83: BHARTI SBM HOLDINGS PRIVATE LIMITED | E83: BUY | F83: 7554895 | G83: 44 | H83: NSE
A84: 2019-03-15 | B84: DCBBANK | C84: Dcb Bank Limited | D84: THE VANGUARD GROUP INC A/C VANGUARD EMERG. MKTS STOCK INDE | E84: BUY | F84: 4004628 | G84: 201.69 | H84: NSE
A85: 2019-03-15 | B85: JUSTDIAL | C85: Justdial Ltd. | D85: ALPHAGREP SECURITIES PRIVATE LIMITED | E85: BUY | F85: 342384 | G85: 620.82 | H85: NSE
A86: 2019-03-15 | B86: JUSTDIAL | C86: Justdial Ltd. | D86: TOWER RESEARCH CAPITAL MARKETS INDIA PRIVATE LIMITED | E86: BUY | F86: 371764 | G86: 623.2 | H86: NSE
A87: 2019-03-15 | B87: NBCC | C87: Nbcc (India) Ltd | D87: ICICI PRUDENTIAL MUTUAL FUND A/C BHARAT 22 ETF | E87: BUY | F87: 14114114 | G87: 65.73 | H87: NSE
A88: 2019-03-15 | B88: NIITTECH | C88: NIIT Technologies Limited | D88: THE VANGUARD GROUP INC A/C VANGUARD EMERG. MKTS STOCK INDE | E88: BUY | F88: 839889 | G88: 1336.81 | H88: NSE
A89: 2019-03-15 | B89: RBLBANK | C89: RBL Bank Limited | D89: THE VANGUARD GROUP INC A/C VANGUARD EMERG. MKTS STOCK INDE | E89: BUY | F89: 10060965 | G89: 648.49 | H89: NSE
A90: 2019-03-15 | B90: REFEX | C90: Refex Industries Limited | D90: ALPHA LEON ENTERPRISES LLP | E90: BUY | F90: 225443 | G90: 40.15 | H90: NSE
A91: 2019-03-15 | B91: RELCAPITAL | C91: Reliance Capital Limited | D91: ALPHAGREP SECURITIES PRIVATE LIMITED | E91: BUY | F91: 1484800 | G91: 170.03 | H91: NSE
A92: 2019-03-15 | B92: SANGAMIND | C92: Sangam (India) Ltd. | D92: ANURAG SONI | E92: BUY | F92: 1065000 | G92: 70.13 | H92: NSE
A93: 2019-03-15 | B93: SKSTEXTILE | C93: S K S Textiles Limited | D93: ARYAMAN CAPITAL MARKETS LIMITED | E93: BUY | F93: 20000 | G93: 37 | H93: NSE
A94: 2019-03-15 | B94: SPENCERS | C94: Spencer's Retail Limited | D94: RAINBOW INVESTMENTS LIMITED | E94: BUY | F94: 400000 | G94: 169.98 | H94: NSE
A95: 2019-03-15 | B95: SRF | C95: SRF Ltd. | D95: KOTAK MUTUAL FUND | E95: BUY | F95: 361063 | G95: 2400 | H95: NSE
A96: 2019-03-15 | B96: TEAMLEASE | C96: Teamlease Services Ltd. | D96: THE VANGUARD GROUP INC A/C VANGUARD EMERG. MKTS STOCK INDE | E96: BUY | F96: 107447 | G96: 2829.97 | H96: NSE
A97: 2019-03-15 | B97: TTKPRESTIG | C97: TTK Prestige Ltd. | D97: THE VANGUARD GROUP INC A/C VANGUARD EMERG. MKTS STOCK INDE | E97: BUY | F97: 75662 | G97: 8536.06 | H97: NSE
A98: 2019-03-15 | B98: VGUARD | C98: V-Guard Industries Limite | D98: THE VANGUARD GROUP INC A/C VANGUARD EMERG. MKTS STOCK INDE | E98: BUY | F98: 2326669 | G98: 220.69 | H98: NSE
A99: 2019-03-15 | B99: VMART | C99: Vmart Retail Ltd | D99: THE VANGUARD GROUP INC A/C VANGUARD EMERG. MKTS STOCK INDE | E99: BUY | F99: 155838 | G99: 2628.1 | H99: NSE
A100: 2019-03-15 | B100: AKG | C100: AKG Exim Limited | D100: PIYUSH CHANDRAKANT RATHI | E100: SELL | F100: 244000 | G100: 31.63 | H100: NSE
A101: 2019-03-15 | B101: CARERATING | C101: CARE Ratings Ltd | D101: RELIANCE MUTUAL FUND | E101: SELL | F101: 519000 | G101: 999 | H101: NSE
A102: 2019-03-15 | B102: CGPOWER | C102: CG Power & Ind. Sol. Ltd. | D102: BHARTI SBM HOLDINGS PRIVATE LIMITED | E102: SELL | F102: 200000 | G102: 44.75 | H102: NSE
A103: 2019-03-15 | B103: JUSTDIAL | C103: Justdial Ltd. | D103: ALPHAGREP SECURITIES PRIVATE LIMITED | E103: SELL | F103: 342451 | G103: 621.01 | H103: NSE
A104: 2019-03-15 | B104: JUSTDIAL | C104: Justdial Ltd. | D104: TOWER RESEARCH CAPITAL MARKETS INDIA PRIVATE LIMITED | E104: SELL | F104: 371764 | G104: 623.63 | H104: NSE
A105: 2019-03-15 | B105: NAGAROIL | C105: Nagarjuna Oil Refinery | D105: ALPHA LEON ENTERPRISES LLP | E105: SELL | F105: 2187384 | G105: 0.3 | H105: NSE
A106: 2019-03-15 | B106: NAGAROIL | C106: Nagarjuna Oil Refinery | D106: J M GLOBAL EQUITIES PRIVATE LIMITED | E106: SELL | F106: 2700000 | G106: 0.3 | H106: NSE
A107: 2019-03-15 | B107: RBLBANK | C107: RBL Bank Limited | D107: INTEGRATED CORE STRATEGIES (ASIA) PTE.LTD. | E107: SELL | F107: 2749240 | G107: 647.8 | H107: NSE
A108: 2019-03-15 | B108: RCOM | C108: Reliance Comm. Ltd. | D108: INDUSIND BANK LTD CLIENT A/C | E108: SELL | F108: 15786007 | G108: 4.43 | H108: NSE
A109: 2019-03-15 | B109: REFEX | C109: Refex Industries Limited | D109: ALPHA LEON ENTERPRISES LLP | E109: SELL | F109: 254773 | G109: 43.52 | H109: NSE
A110: 2019-03-15 | B110: REFEX | C110: Refex Industries Limited | D110: ARIHANTS SECURITIES LTD | E110: SELL | F110: 97266 | G110: 40.15 | H110: NSE
A111: 2019-03-15 | B111: RELCAPITAL | C111: Reliance Capital Limited | D111: ALPHAGREP SECURITIES PRIVATE LIMITED | E111: SELL | F111: 1484800 | G111: 170.11 | H111: NSE
A112: 2019-03-15 | B112: RUCHISOYA | C112: Ruchi Soya Inds Ltd. | D112: DISHA FOUNDATION | E112: SELL | F112: 1686045 | G112: 7.68 | H112: NSE
A113: 2019-03-15 | B113: SANGAMIND | C113: Sangam (India) Ltd. | D113: GREAT FINTRADE PVT.LTD. | E113: SELL | F113: 277708 | G113: 69.7 | H113: NSE
A114: 2019-03-15 | B114: SANGAMIND | C114: Sangam (India) Ltd. | D114: VELOCITY STOCK MART PRIVATE LIMITED | E114: SELL | F114: 205214 | G114: 69.6 | H114: NSE
A115: 2019-03-15 | B115: SKSTEXTILE | C115: S K S Textiles Limited | D115: MUKESH BABULAL SHAH | E115: SELL | F115: 20000 | G115: 37 | H115: NSE
A116: 2019-03-15 | B116: UNITECH | C116: Unitech Ltd | D116: THE VANGUARD GROUP INC A/C VANGUARD EMERG. MKTS STOCK INDE | E116: SELL | F116: 14774397 | G116: 1.5 | H116: NSE

Sheet Call Tracker (Equity & F&O)
M5: Back To Main Page
A6: Retail Research Technical Calls & Fundamental Performance Report for the month of March -2019
M7: =Main!B10 -> 2019-03-18
B8: Positional Call
A9: Sr.no | B9: Date | D9: Company | E9: Rec | F9: Rec Price | G9: Stop Loss*** | H9: Call Closed At | I9: Target | J9: Remark | K9: Profit / Loss per Share | L9: Gain / Loss % | M9: Status | N9: Closed Date | O9: NSE Closed Price
A10: 1 | B10: 2019-01-24 | D10: ITC | E10: Buy | F10: 280 | G10: 268 | H10: 292 | I10: 305 | J10: Profit of Rs.12/- | K10: =H10-F10 -> 12 | L10: =K10/F10 -> 4.29% | M10: Successful | N10: 2019-03-08 | R10: R
A11: 2 | B11: 2019-03-01 | D11: UPL | E11: Sell | F11: 881.5 | G11: 922.2 | H11: 922.2 | I11: 800 | J11: Loss of Rs.40.7/- | K11: =F11-H11 -> -40.7 | L11: -4.62% | M11: UnSuccessful | N11: 2019-03-15 | R11: R
A12: 3 | B12: 2019-03-01 | D12: BEL | E12: Buy | F12: 83 | G12: 78.5 | H12: 86.25 | I12: 92 | J12: Profit of Rs.3.25/- | K12: 3.25 | L12: =K12/F12 -> 3.92% | M12: Successful | N12: 2019-03-05 | R12: H
A13: 4 | B13: 2019-03-01 | D13: ZEEL | E13: Sell | F13: 478.5 | G13: 507.3 | H13: 458.5 | I13: 435-425 | J13: Profit of Rs.20/- | K13: =F13-H13 -> 20 | L13: =K13/F13 -> 4.18% | M13: Successful | N13: 2019-03-07 | R13: R
A14: 5 | B14: 2019-03-06 | D14: MARUTI | E14: Buy | F14: 7025 | G14: 6700 | H14: 7230 | I14: 7500-7600 | J14: Part Profit of Rs.205/- | K14: 205 | L14: 2.92% | M14: Successful | N14: 2019-03-12 | R14: H
A15: 6 | B15: 2019-03-07 | D15: BPCL | E15: Sell | F15: 376.5 | G15: 395.6 | H15: 365 | I15: 345-335 | J15: Part Profit of Rs.11.5/- | K15: =F15-H15 -> 11.5 | L15: =K15/F15 -> 3.05% | M15: Successful | N15: 2019-03-08 | R15: R
A16: 7 | B16: 2019-03-07 | D16: RAYMOND | E16: Sell | F16: 825-830 | G16: 888.8 | I16: 720-730 | J16: Open | O16: =VLOOKUP(D16,Sheet2!A16:M1811,6,0) -> 816.15 | R16: R
A17: 8 | B17: 2019-03-08 | D17: BHEL | E17: Sell | F17: 67.5 | G17: 70.5 | H17: 70.5 | I17: 63-61 | J17: Loss of Rs.3/- | K17: =F17-H17 -> -3 | L17: =K17/F17 -> -4.44% | M17: UnSuccessful | N17: 2019-03-12 | R17: H
A18: 9 | B18: 2019-03-13 | D18: DLF | E18: Sell | F18: 192-194 | G18: 206.6 | I18: 164-168 | J18: Open | O18: =VLOOKUP(D18,Sheet2!A18:M1813,6,0) -> 197.45 | R18: R
A19: 10 | B19: 2019-03-15 | D19: OFSS | E19: Buy | F19: 3380-3410 | G19: 3250 | I19: 3650-3700 | J19: Open | O19: =VLOOKUP(D19,Sheet2!A19:M1814,6,0) -> 3356.15 | R19: H
A32: CLBS = Closing Basis *** | F32: Reinitiated $
A33: Dividend adjusted <> | F33: Revised stoploss #
A34: Part book {}
A35: Master Trade High Risk
A36: Sr.no | B36: Date | D36: Company | E36: Rec | F36: Rec Price | G36: Stop Loss | H36: Call Closed At | I36: Target | J36: Remark | K36: Profit / Loss per share | L36: Gain / Loss per Lot | M36: Lot | N36: Status | O36: Closed Date
A37: 1 | B37: 2019-03-01 | D37: BATAINDIA MAR FUT | E37: Sell | F37: 1288 | G37: 1335 | H37: 1322 | I37: 1240 | J37: Loss of Rs.21/- | K37: =F37-H37 -> -34 | L37: =-M37*21 -> -11550 | M37: 550 | N37: UnSuccessful | O37: 2019-03-06 | R37: H
D38: BATAINDIA MAR 1240 PE | E38: Sell | F38: 23.5 | H38: 10.5 | K38: =F38-H38 -> 13 | R38: H
A39: 2 | B39: 2019-03-05 | D39: NIFTY MAR | E39: Sell | F39: 10940 | G39: 11166.6 | H39: 11065 | I39: 10700 | J39: Loss of Rs.125/- | K39: =F39-H39 -> -125 | L39: =M39*K39 -> -9375 | M39: 75 | N39: UnSuccessful | O39: 2019-03-06 | R39: R
A40: 3 | B40: 2019-03-08 | D40: ULTRACEMCO MAR FUT | E40: Sell | F40: 3925 | G40: 4030 | H40: 4025 | I40: 3780 | J40: Loss of Rs.69.5/- | K40: =F40-H40 -> -100 | L40: =M40*-69.5 -> -13900 | M40: 200 | N40: UnSuccessful | O40: 2019-03-11 | R40: H
D41: ULTRACEMCO MAR 3800 PE | E41: Sell | F41: 57.5 | H41: 27 | K41: =F41-H41 -> 30.5 | R41: H
A42: 4 | B42: 2019-03-15 | D42: BANKNIFTY MAR FUT | E42: Sell | F42: 29380-29400 | G42: 29650 | J42: Open | R42: H
D43: BANKNIFTY 28-MAR 29000 PE | E43: Sell | F43: 205-210 | R43: H
A51: Master Trade Medium Risk
A52: Sr.no | B52: Date | D52: Company | E52: Rec | F52: Rec Price | G52: Stop Loss | H52: Call Closed At | I52: Target | J52: Remark | K52: Profit/ Loss per lot | L52: Gain / Loss per Lot | M52: Lot | N52: Status | O52: Closed Date
A53: 1 | B53: 2019-03-01 | D53: LT Mar 1320 CE | E53: Buy | F53: 25 | H53: 34.5 | J53: Profit of Rs.5/- | K53: =H53-F53 -> 9.5 | L53: =5*M53 -> 1875 | M53: 375 | N53: Successful | O53: 2019-03-07 | R53: H
D54: LT Mar 1360 CE | E54: Sell | F54: 12 | H54: 16.5 | K54: =F54-H54 -> -4.5 | R54: H
A55: 2 | B55: 2019-03-05 | D55: NIFTY 07-Mar 10850 PE | E55: Buy | F55: 52 | H55: 0 | I55: 80-100 | J55: Loss of Rs.52/- | K55: =H55-F55 -> -52 | L55: =M55*K55 -> -3900 | M55: 75 | N55: UnSuccessful | O55: 2019-03-07 | R55: R
A56: 3 | B56: 2019-03-06 | D56: HDFCBANK MAR 2100 CE | E56: Buy | F56: 35 | G56: 18 | H56: 42.5 | I56: 60 | J56: Profit of Rs.7.5/- | K56: =H56-F56 -> 7.5 | L56: =K56*M56 -> 1875 | M56: 250 | N56: Successful | O56: 2019-03-07 | R56: H
A57: 4 | B57: 2019-03-07 | D57: ASHOKLEY 90 PE MAR | E57: Buy | F57: 2.5 | G57: 1.2 | H57: 2.95 | I57: 5 | J57: Profit of Rs.0.45/- | K57: =H57-F57 -> 0.45 | L57: =K57*M57 -> 1800 | M57: 4000 | N57: Successful | O57: 2019-03-07 | R57: R
A58: 5 | B58: 2019-03-08 | D58: GAIL 320 PE MAR | E58: Buy | F58: 2.3 | G58: 1.1 | H58: 1.5 | I58: 5 | J58: Loss of Rs.0.8/- | K58: =H58-F58 -> -0.8 | L58: =M58*K58 -> -2133.6 | M58: 2667 | N58: UnSuccessful | O58: 2019-03-08 | R58: H
A59: 6 | B59: 2019-03-08 | D59: LT 1340 PE MAR | E59: Buy | F59: 25 | G59: 14 | H59: 31 | I59: 45-50 | J59: Profit of Rs.6/- | K59: =H59-F59 -> 6 | L59: =K59*M59 -> 2250 | M59: 375 | N59: Successful | O59: 2019-03-08 | R59: H
A60: 7 | B60: 2019-03-11 | D60: LT 1340 PE MAR | E60: Buy | F60: 25 | G60: 13 | H60: 13 | I60: 45-50 | J60: Loss of Rs.12/- | K60: =H60-F60 -> -12 | L60: =M60*K60 -> -4500 | M60: 375 | N60: UnSuccessful | O60: 2019-03-12 | R60: H
A61: 8 | B61: 2019-03-11 | D61: NIFTY 14-Mar 11150 PE | E61: Buy | F61: 48 | H61: 0 | I61: 80-100 | J61: Loss of Rs.48/- | K61: =H61-F61 -> -48 | L61: -3600 | M61: 75 | N61: UnSuccessful | O61: 2019-03-14 | R61: H
A62: 9 | B62: 2019-03-14 | D62: NIFTY 14-Mar 11350 PE | E62: Buy | F62: 14 | H62: 31 | I62: 80-100 | J62: Profit of Rs.17/- | K62: =H62-F62 -> 17 | L62: =K62*M62 -> 1275 | M62: 75 | N62: Successful | O62: 2019-03-14 | R62: A
A63: 10 | B63: 2019-03-15 | D63: NIFTY 20-MAR 11300 PE | E63: Buy | F63: 30-32 | I63: 70 | J63: Open | R63: H
B66: Smart Delivery Trade
A67: Sr.no | B67: Date | D67: Company | E67: Rec | F67: Rec Price | G67: Stop Loss*** | H67: Call Closed At | I67: Target | J67: Remark | K67: Profit / Loss per Share | L67: Gain / Loss % | M67: Status | N67: Closed Date | O67: NSE Closed Price
A68: 1 | B68: 2019-02-21 | D68: ICICIBANK | E68: Buy | F68: 351.5 | G68: 339 | H68: 360.5 | I68: 370-375 | J68: Profit of Rs.9/- | K68: =H68-F68 -> 9 | L68: =K68/F68 -> 2.56% | M68: Successful | N68: 2019-03-05 | R68: H
A69: 2 | B69: 2019-02-22 | D69: HDFC | E69: Buy | F69: 1880 | G69: 1819 | H69: 1935.5 | I69: 2000 | J69: Profit of Rs.55.5/- | K69: 55.5 | L69: 2.95% | M69: Successful | N69: 2019-03-12 | R69: H
A70: 3 | B70: 2019-02-27 | D70: CONCOR | E70: Buy | F70: 474.5 | G70: 458.7 | H70: 486 | I70: 500-510 | J70: Profit of Rs.11.5/- | K70: =H70-F70 -> 11.5 | L70: =K70/F70 -> 2.42% | M70: Successful | N70: 2019-03-05 | R70: R
A71: 4 | B71: 2019-03-01 | D71: MINDTREE | E71: Buy | F71: 916 | G71: 888.8 | H71: 933.5 | I71: 970 | J71: Profit of Rs.17.5/- | K71: =H71-F71 -> 17.5 | L71: =K71/F71 -> 1.91% | M71: Successful | N71: 2019-03-01 | R71: R
A72: 5 | B72: 2019-03-05 | D72: TATACHEM | E72: Buy | F72: 576 | G72: 548 | H72: 591 | I72: 620 | J72: Profit of Rs.15/- | K72: 15 | L72: 2.60% | M72: Successful | N72: 2019-03-08 | R72: H
A73: 6 | B73: 2019-03-06 | D73: DLF | E73: Buy | F73: 174 | G73: 167 | H73: 178.5 | I73: 182 | J73: Profit of Rs.4.5/- | K73: =H73-F73 -> 4.5 | L73: =K73/F73 -> 2.59% | M73: Successful | N73: 2019-03-06 | R73: H
A74: 7 | B74: 2019-03-06 | D74: DISHTV | E74: Sell | F74: 41.25 | G74: 43.2 | H74: 39.85 | I74: 38-37 | J74: Profit of Rs.1.4/- | K74: =F74-H74 -> 1.4 | L74: 3.39% | M74: Successful | N74: 2019-03-07 | R74: H
A75: 8 | B75: 2019-03-08 | D75: TITAN | E75: Sell | F75: 1047.5 | G75: 1077.7 | H75: 1077.7 | I75: 990-980 | J75: Loss of Rs.30.2/- | K75: =F75-H75 -> -30.2 | L75: =K75/F75 -> -2.88% | M75: UnSuccessful | N75: 2019-03-12 | R75: R
A76: 9 | B76: 2019-03-08 | D76: NIITTECH | E76: Sell | F76: 1318-1322 | G76: 1361.6 | I76: 1250-1240 | J76: Open | O76: =VLOOKUP(D76,Sheet2!A84:M1579,6,0) -> 1336.65 | R76: R
A77: 10 | B77: 2019-03-08 | D77: RADICO | E77: Sell | F77: 392-395 | G77: 406.6 | I77: 375-370 | J77: Open | O77: =VLOOKUP(D77,Sheet2!A85:M1580,6,0) -> 392.35 | R77: R
A78: 11 | B78: 2019-03-08 | D78: TORNTPHARM | E78: Buy | F78: 1775 | G78: 1717.7 | H78: 1823 | I78: 1860-1880 | J78: Profit of Rs.48/- | K78: =H78-F78 -> 48 | L78: =K78/F78 -> 2.70% | M78: Successful | N78: 2019-03-12 | R78: R
A79: 12 | B79: 2019-03-11 | D79: INDUSINDBK | E79: Buy | F79: 1505 | G79: 1449 | H79: 1541 | I79: 1600-1620 | J79: Profit of Rs.36/- | K79: =H79-F79 -> 36 | L79: =K79/F79 -> 2.39% | M79: Successful | N79: 2019-03-12 | R79: H
A80: 13 | B80: 2019-03-12 | D80: INDIANB | E80: Sell | F80: 270 | G80: 278.7 | H80: 263.25 | I80: 257-255 | J80: Profit of Rs.6.75/- | K80: =F80-H80 -> 6.75 | L80: =K80/F80 -> 2.50% | M80: Successful | N80: 2019-03-13 | R80: R
A81: 14 | B81: 2019-03-13 | D81: INFY | E81: Buy | F81: 710-716 | G81: 688 | I81: 740-750 | J81: Open | O81: =VLOOKUP(D81,Sheet2!A89:M1584,6,0) -> 718.55 | R81: H
A82: 15 | B82: 2019-03-13 | D82: DIVISLAB | E82: Sell | F82: 1690-1698 | G82: 1752 | I82: 1590 | J82: Open | O82: =VLOOKUP(D82,Sheet2!A90:M1585,6,0) -> 1708 | R82: H
A83: 16 | B83: 2019-03-13 | D83: IDFC | E83: Sell | F83: 41.25 | G83: 42.6 | H83: 42.7 | I83: 39-38 | J83: Loss of Rs.1.45/- | K83: =F83-H83 -> -1.45 | L83: =K83/F83 -> -3.52% | M83: UnSuccessful | N83: 2019-03-15 | R83: H
A84: 17 | B84: 2019-03-14 | D84: ICICIBANK | E84: Sell | F84: 390-393 | G84: 405 | I84: 375-370 | J84: Open | O84: =VLOOKUP(D84,Sheet2!A92:M1587,6,0) -> 395.3 | R84: H
A85: 18 | B85: 2019-03-15 | D85: INDIANB | E85: Sell | F85: 271.5 | G85: 281.7 | H85: 265.5 | I85: 255-252 | J85: Profit of Rs.6/- | K85: =F85-H85 -> 6 | L85: =K85/F85 -> 2.21% | M85: Successful | N85: 2019-03-15 | R85: R
A91: CLBS = Closing Basis *** | F91: Reinitiated $
A92: Dividend adjusted <> | F92: Revised stoploss #
B95: Momentum Call
A96: Sr.no | B96: Date | D96: Company | E96: Rec | F96: Rec Price | G96: Stop Loss | H96: Call Closed At | I96: Target | J96: Remark | K96: Profit / Loss per Share/Lot | L96: Gain / Loss % | M96: Gain / Loss per Lot | N96: Lot | O96: Status | P96: Closed Date
A97: 1 | B97: 2019-02-26 | D97: INDUSINDBK MAR FUT | E97: Buy | F97: 1492.5 | G97: 1455 | H97: 1511 | I97: 1550-1560 | J97: Profit of Rs.18.5/- | K97: =H97-F97 -> 18.5 | M97: =N97*K97 -> 5550 | N97: 300 | O97: Successful | P97: 2019-03-01 | R97: H
A98: 2 | B98: 2019-03-01 | D98: TORNTPHARM MAR FUT | E98: Buy | F98: 1802.5 | G98: 1780 | H98: 1780 | I98: 1840 | J98: Loss of Rs 22.5/- | K98: -22.5 | M98: -11250 | N98: 500 | O98: UnSuccessful | P98: 2019-03-05 | R98: N
A99: 3 | B99: 2019-03-05 | D99: TATAMOTORS MAR FUT | E99: Sell | F99: 185.5 | G99: 192 | H99: 192 | I99: 173 | J99: Loss of Rs 6.5/- | K99: =F99-H99 -> -6.5 | M99: =N99*K99 -> -13000 | N99: 2000 | O99: UnSuccessful | P99: 2019-03-05 | R99: R
A100: 4 | B100: 2019-03-05 | D100: ASIANPAINT MAR FUT | E100: Buy | F100: 1398 | G100: 1378 | H100: 1409 | I100: 1430 | J100: Profit of Rs.11/- | K100: =H100-F100 -> 11 | M100: 6600 | N100: 600 | O100: Successful | P100: 2019-03-05 | R100: N
A101: 5 | B101: 2019-03-05 | D101: COLPAL MAR FUT | E101: Buy | F101: 1249 | G101: 1233 | H101: 1260 | I101: 1275 | J101: Profit of Rs.11/- | K101: 11 | M101: 7700 | N101: 700 | O101: Successful | P101: 2019-03-06 | R101: N
A102: 6 | B102: 2019-03-06 | D102: PIDILITIND MAR FUT | E102: Buy | F102: 1157 | G102: 1135 | H102: 1135 | I102: 1200 | J102: Loss of Rs 22/- | K102: -22 | M102: -11000 | N102: 500 | O102: UnSuccessful | P102: 2019-03-08 | R102: N
A103: 7 | B103: 2019-03-06 | D103: SUNPHARMA MAR FUT | E103: Buy | F103: 460 | G103: 448 | H103: 469.5 | I103: 480 | J103: Profit of Rs.9.5/- | K103: =H103-F103 -> 9.5 | M103: =N103*K103 -> 11400 | N103: 1200 | O103: Successful | P103: 2019-03-06 | R103: H
A104: 8 | B104: 2019-03-06 | D104: ASIANPAINT MAR FUT | E104: Buy | F104: 1398 | G104: 1378 | H104: 1412 | I104: 1430 | J104: Profit of Rs.14/- | K104: 14 | M104: 8400 | N104: 600 | O104: Successful | P104: 2019-03-07 | R104: N
A105: 9 | B105: 2019-03-07 | D105: HINDUNILVR MAR FUT | E105: Buy | F105: 1720.5 | G105: 1695 | H105: 1721 | I105: 1760 | J105: Neutral | K105: =H105-F105 -> 0.5 | M105: =N105*K105 -> 300 | N105: 600 | O105: Neutral | P105: 2019-03-11 | R105: H
A106: 10 | B106: 2019-03-07 | D106: BSOFT MAR FUT | E106: Buy | F106: 112.5 | G106: 108 | H106: 108 | I106: 120 | J106: Loss of Rs 4.5/- | K106: =H106-F106 -> -4.5 | M106: =N106*K106 -> -10125 | N106: 2250 | O106: UnSuccessful | P106: 2019-03-08 | R106: H
A107: 11 | B107: 2019-03-07 | D107: SUNPHARMA | E107: Buy | F107: 457.5 | G107: 445 | H107: 467.5 | I107: 485 | J107: Profit of Rs.10/- | K107: 10 | L107: =K107/F107 -> 2.19% | O107: Successful | P107: 2019-03-12 | R107: H
A108: 12 | B108: 2019-03-08 | D108: AMARAJABAT MAR FUT | E108: Buy | F108: 740 | G108: 724 | H108: 752.5 | I108: 770 | J108: Profit of Rs.12.5/- | K108: =H108-F108 -> 12.5 | M108: =N108*K108 -> 8750 | N108: 700 | O108: Successful | P108: 2019-01-11 | R108: N
A109: 13 | B109: 2019-03-08 | D109: ASIANPAINT MAR FUT | E109: Buy | F109: 1390 | G109: 1370 | H109: 1401.5 | I109: 1425 | J109: Profit of Rs11.5/- | K109: 11.5 | M109: 6900 | N109: 600 | O109: Successful | P109: 2019-01-11 | R109: N
A110: 14 | B110: 2019-03-08 | D110: TATACHEM MAR FUT | E110: Buy | F110: 576 | G110: 559 | H110: 585 | I110: 600 | J110: Profit of Rs.9/- | K110: =H110-F110 -> 9 | M110: =N110*K110 -> 6750 | N110: 750 | O110: Successful | P110: 2019-01-11 | R110: H
A111: 15 | B111: 2019-03-08 | D111: AMBUJACEM MAR FUT | E111: Sell | F111: 227.5 | G111: 233.3 | H111: 233.3 | I111: 218-220 | J111: Loss of Rs 5.8/- | K111: =F111-H111 -> -5.8 | M111: -14500 | N111: 2500 | O111: UnSuccessful | P111: 2019-01-11 | R111: R
A112: 16 | B112: 2019-03-11 | D112: INFY MAR FUT | E112: Sell | F112: 720 | G112: 732 | H112: 713.5 | I112: 700-695 | J112: Profit of Rs.6.5/- | K112: =F112-H112 -> 6.5 | M112: =N112*K112 -> 7800 | N112: 1200 | O112: Successful | P112: 2019-01-11 | R112: H
A113: 17 | B113: 2019-03-11 | D113: UBL MAR FUT | E113: Buy | F113: 1391 | G113: 1375 | H113: 1398.5 | I113: 1425 | J113: Profit of Rs.7.5/- | K113: =H113-F113 -> 7.5 | M113: 5250 | N113: 700 | O113: Successful | P113: 2019-03-12 | R113: N
A114: 18 | B114: 2019-03-12 | D114: HCLTECH MAR FUT | E114: Buy | F114: 1018 | G114: 1000 | H114: 1029.5 | I114: 1050 | J114: Profit of Rs.11.5/- | K114: =H114-F114 -> 11.5 | M114: =N114*K114 -> 8050 | N114: 700 | O114: Successful | P114: 2019-03-13 | R114: N
A115: 19 | B115: 2019-03-12 | D115: APOLLOHOSP MAR FUT | E115: Buy | F115: 1195 | G115: 1170 | H115: 1170 | I115: 1235 | J115: Loss of Rs 25/- | K115: =H115-F115 -> -25 | M115: =N115*K115 -> -12500 | N115: 500 | O115: UnSuccessful | P115: 2019-03-12 | R115: N
A116: 20 | B116: 2019-03-12 | D116: ZEEL | E116: Buy | F116: 461 | G116: 447.7 | H116: 470.5 | I116: 485 | J116: Profit of Rs.9.5/- | K116: 9.5 | L116: =K116/F116 -> 2.06% | O116: Successful | P116: 2019-03-12 | R116: R
A117: 21 | B117: 2019-03-12 | D117: AMARAJABAT MAR FUT | E117: Buy | F117: 753 | G117: 736 | H117: 763 | I117: 785 | J117: Profit of Rs.10/- | K117: 10 | M117: =N117*K117 -> 7000 | N117: 700 | O117: Successful | P117: 2019-03-13 | R117: N
A118: 22 | B118: 2019-03-13 | D118: MINDTREE MAR FUT | E118: Buy | F118: 925 | G118: 905 | H118: 937.5 | I118: 955 | J118: Profit of Rs.12.5/- | K118: =H118-F118 -> 12.5 | M118: =N118*K118 -> 7500 | N118: 600 | O118: Successful | P118: 2019-03-13 | R118: N
A119: 23 | B119: 2019-03-13 | D119: CEATLTD MAR FUT | E119: Buy | F119: 1147 | G119: 1117 | H119: 1172 | I119: 1195 | J119: Profit of Rs.25/- | K119: 25 | M119: 10000 | N119: 400 | O119: Successful | P119: 2019-03-15 | R119: N
A120: 24 | B120: 2019-03-13 | D120: HAVELLS MAR FUT | E120: Buy | F120: 766 | G120: 754 | H120: 773 | I120: 780 | J120: Profit of Rs.7/- | K120: =H120-F120 -> 7 | M120: =N120*K120 -> 7000 | N120: 1000 | O120: Successful | P120: 2019-03-14 | R120: N
A121: 25 | B121: 2019-03-14 | D121: HCLTECH MAR FUT | E121: Buy | F121: 1013 | G121: 998 | H121: 1022.5 | I121: 1050 | J121: Profit of Rs.9.5/- | K121: =H121-F121 -> 9.5 | M121: =N121*K121 -> 6650 | N121: 700 | O121: Successful | P121: 2019-03-15 | R121: N
A122: 26 | B122: 2019-03-14 | D122: INDIGO MAR FUT | E122: Sell | F122: 1301-1303 | G122: 1325 | I122: 1260 | J122: Open | R122: R
A123: 27 | B123: 2019-03-14 | D123: MINDTREE | E123: Buy | F123: 940-948 | G123: 917 | I123: 990 | J123: Open | R123: H
A124: 28 | B124: 2019-03-15 | D124: MCDOWELL-N | E124: Buy | F124: 583-586 | G124: 568 | I124: 610-620 | J124: Open | R124: H
A125: 29 | B125: 2019-03-15 | D125: BIOCON MAR FUT | E125: Buy | F125: 626-628 | G125: 615 | I125: 650 | J125: Open | R125: N
A126: 30 | B126: 2019-03-15 | D126: ACC MAR FUT | E126: Buy | F126: 1532-1537 | G126: 1502 | I126: 1585 | J126: Open | R126: R
A127: 31 | B127: 2019-03-15 | D127: TVSMOTOR MAR FUT | E127: Buy | F127: 495-497 | G127: 484 | I127: 520 | J127: Open | R127: H
A128: 32 | B128: 2019-03-15 | D128: AMARAJABAT MAR FUT | E128: Buy | F128: 748-750 | G128: 734 | I128: 775 | J128: Open | R128: N
A132: CLBS = Closing Basis ***
A133: Dividend adjusted <> | F133: Reinitiated $
F134: Revised stoploss #
B135: Quick Pick Intraday
A136: Sr.no | B136: Date | D136: Company | E136: Rec | F136: Rec Price | G136: Stop Loss*** | H136: Call Closed At | I136: Target | J136: Remark | K136: Profit / Loss per Share | L136: Status | M136: Closed Date
A150: Techno -Funda (positional)
A151: Sr.no | B151: Date | D151: Company | E151: Rec | F151: Rec Price | G151: Stop Loss*** | H151: Call Closed At | I151: Target | J151: Remark | K151: Profit / Loss per Share | L151: Gain / Loss % | M151: Status | N151: Closed Date | O151: NSE Closed Price
A154: CLBS = Closing Basis *** | F154: Reinitiated $
A155: Dividend adjusted <> | F155: Revised stoploss #
B160: Investment Idea
A161: Sr.no | B161: Date | D161: Company | E161: Rec | F161: Rec Price | G161: Point of Review | H161: Close Rate | I161: Target | J161: Remark | K161: Profit / Loss per Share | L161: Gain / Loss % | M161: Status | N161: Closed Date
A162: 1 | B162: 2013-11-01 | D162: L&T Finance Holding | E162: Accu | F162: 82.00 | G162: - | H162: 100 | I162: 100.00 | J162: Target Achieved | K162: =H162-F162 -> 18.00 | L162: =K162/F162 -> 21.95% | M162: Successful | N162: 2016-10-14
A163: 2 | B163: 2014-06-04 | D163: Finolex Inds | E163: Buy | F163: 257.00 | G163: - | H163: 300 | I163: 300.00 | J163: Target Achieved | K163: =H163-F163 -> 43.00 | L163: 16.73% | M163: Successful | N163: 2014-07-02
A164: =1+A163 -> 3 | B164: 2014-07-08 | D164: JK Cement | E164: Buy | F164: 393.00 | G164: - | H164: 468 | I164: 468.00 | J164: Target Achieved | K164: =H164-F164 -> 75.00 | L164: 19.08% | M164: Successful | N164: 2014-08-12
A165: 4 | B165: 2014-08-06 | D165: Finolex Cables | E165: Buy | F165: 205.00 | G165: - | H165: 275 | I165: 250.00 | J165: Target Achieved | K165: 70.00 | L165: 34.15% | M165: Successful | N165: 2014-11-19
A166: 5 | B166: 2014-09-04 | D166: Exide Inds | E166: Buy | F166: 162.00 | G166: - | H166: 190 | I166: 190.00 | J166: Target Achieved | K166: 28.00 | L166: 17.28% | M166: Successful | N166: 2015-01-02
A167: 6 | B167: 2014-09-04 | D167: Deepak Nitrite | E167: Buy | F167: 75.00 | G167: - | H167: 91.5 | I167: 95-100 | J167: Profit of Rs.16.50/- | K167: 16.50 | L167: 22.00% | M167: Successful | N167: 2014-11-11
A168: 7 | B168: 2014-10-01 | D168: Mercks | E168: Buy | F168: 850.00 | G168: - | H168: 982.5 | I168: 1050.00 | J168: Profit of Rs.132.50/- | K168: 132.50 | L168: 15.59% | M168: Successful | N168: 2015-02-04
A169: 8 | B169: 2014-10-01 | D169: Grindwell Norton | E169: Buy | F169: 475.00 | G169: - | H169: 515 | I169: 600.00 | J169: Profit of Rs.40/- | K169: 40.00 | L169: 8.42% | M169: Successful | N169: 2014-10-27
A170: 9 | B170: 2014-10-01 | D170: Snowman Logistics | E170: Buy | F170: 86.00 | G170: - | H170: 99 | I170: 140.00 | J170: Profit of Rs.13.00/- | K170: 13.00 | L170: 15.12% | M170: Successful | N170: 2014-10-27
A171: 10 | B171: 2014-10-14 | D171: Birla Corp | E171: Buy | F171: 496.60 | G171: - | H171: 621 | I171: 580.00 | J171: Target Achieved | K171: 124.40 | L171: 25.05% | M171: Successful | N171: 2016-08-23
A172: 11 | B172: 2014-10-14 | D172: Ultratech Cem | E172: Buy | F172: 2481.90 | G172: - | H172: 2840 | I172: 2870.00 | J172: Profit of Rs.358.10/- | K172: 358.10 | L172: 14.43% | M172: Successful | N172: 2015-01-13
A173: =1+A170 -> 10 | B173: 2014-10-16 | D173: Sintex Inds | E173: Buy | F173: 84.50 | G173: - | H173: 93 | I173: 110.00 | J173: Profit of Rs.8.50/- | K173: 8.50 | L173: 10.06% | M173: Successful | N173: 2014-10-27
A174: =1+A173 -> 11 | B174: 2014-10-16 | D174: HSIL | E174: Buy | F174: 401.00 | G174: - | H174: 428 | I174: 450.00 | J174: Profit of Rs.27.00/- | K174: 27.00 | L174: 6.73% | M174: Successful | N174: 2015-01-16
A175: 12 | B175: 2014-10-16 | D175: Eveready Inds | E175: Buy | F175: 101.00 | G175: - | H175: 112 | I175: 120.00 | J175: Profit of Rs.11.00/- | K175: 11.00 | L175: 10.89% | M175: Successful | N175: 2014-10-27
A176: 13 | B176: 2014-11-11 | D176: Pennar Inds | E176: Buy | F176: 59.00 | G176: - | H176: 76 | I176: 76.00 | J176: Target Achieved | K176: 17.00 | L176: 28.81% | M176: Successful | N176: 2017-10-24
A177: 14 | B177: 2014-11-11 | D177: Snowman Logistics | E177: Buy | F177: 99.00 | G177: - | H177: 120 | I177: 120.00 | J177: Profit of Rs.21/- | K177: 21.00 | L177: 21.21% | M177: Successful | N177: 2014-11-17
A178: 15 | B178: 2014-11-13 | D178: Dharamsi Morarji Chem | E178: Buy | F178: 22.00 | G178: - | H178: 33.55 | I178: 32.00 | J178: Profit of Rs 11.55/- | K178: 11.55 | L178: 52.50% | M178: Successful | N178: 2015-07-03
A179: 16 | B179: 2014-12-03 | D179: Tatachem | E179: Buy | F179: 440.00 | G179: - | H179: 520 | I179: 520.00 | J179: Profit of Rs 80.00/- | K179: 80.00 | L179: 18.18% | M179: Successful | N179: 2015-07-23
A180: 17 | B180: 2014-12-03 | D180: Advanta | E180: Buy | F180: 360.00 | G180: - | H180: 427 | I180: 425.00 | J180: Profit of Rs.67.00/- | K180: 67.00 | L180: 18.61% | M180: Successful | N180: 2015-02-23
A181: 18 | B181: 2015-01-08 | D181: GDL | E181: Buy | F181: 360.00 | G181: - | H181: 455 | I181: 420.00 | J181: Profit of Rs.95.00/- | K181: 95.00 | L181: 26.39% | M181: Successful | N181: 2015-01-20
A182: 19 | B182: 2015-01-08 | D182: NRB Bearing | E182: Buy | F182: 130.00 | H182: 175.5 | I182: 165.00 | J182: Profit of Rs 45.50/- | K182: 45.50 | L182: 35.00% | M182: Successful | N182: 2017-12-19
A183: 20 | B183: 2015-02-05 | D183: GSFC | E183: Accu | F183: 98.00 | H183: 120 | I183: 120.00 | J183: Target Achieved | K183: 22.00 | L183: 22.45% | M183: Successful | N183: 2017-01-18
A184: 21 | B184: 2015-02-05 | D184: Sundrmfast | E184: Accu | F184: 196.00 | H184: 262 | I184: 255.00 | J184: Target Achieved | K184: 66.00 | L184: 33.67% | M184: Successful | N184: 2016-08-17
A185: 22 | B185: 2015-03-04 | D185: GPPL | E185: Accu | F185: 235 | H185: 77.00 | I185: 280-285 | J185: Loss of Rs.158/- | K185: =H185-F185 -> -158.00 | L185: -67.23% | M185: Unsuccessful | N185: 2019-02-26
A186: 23 | B186: 2015-03-04 | D186: ORIENTCEM | E186: Accu | F186: 185.00 | H186: 224 | I186: 220-225 | J186: Target Achieved | K186: 39.00 | L186: =K186/F186 -> 21.08% | M186: Successful | N186: 2016-10-04
A187: 24 | B187: 2015-03-27 | D187: PFS | E187: Accu | F187: 49-50 | I187: 67.00 | J187: Open
A188: 25 | B188: 2015-03-30 | D188: Walchandnagar Ind Ltd | E188: Accu | F188: 183.50 | H188: 219 | I188: 218.00 | J188: Profit of Rs.35.50/- | K188: 35.50 | L188: =K188/F188 -> 19.35% | M188: Successful | N188: 2015-04-09
A189: 26 | B189: 2015-04-20 | D189: Kalpataru Power Transmission Ltd | E189: Accu | F189: =(227+237)/2 -> 232.00 | H189: 298 | I189: 298.00 | J189: Target Achieved | K189: 66.00 | L189: 28.45% | M189: Successful | N189: 2017-03-29
A190: 27 | B190: 2015-05-04 | D190: Mastek Ltd | E190: Buy | F190: 385.00 | H190: =212.5+331 -> 543.5 | I190: 510.00 | J190: Profit of Rs 158.50/- | K190: 158.50 | L190: 41.17% | M190: Successful | N190: 2015-08-19
A191: 28 | B191: 2015-05-04 | D191: Suprajit Eng | E191: Buy | F191: 115.50 | H191: 146 | I191: 142.00 | J191: Profit of Rs 30.50/- | K191: 30.50 | L191: 26.41% | M191: Successful | N191: 2015-07-17
A192: 29 | B192: 2015-05-27 | D192: TCI | E192: Buy | F192: 237.50 | H192: 279.5 | I192: 278.00 | J192: Target Achieved | K192: 42.00 | L192: 17.68% | M192: Successful | N192: 2015-08-06
A193: 30 | B193: 2015-06-19 | D193: HSIL | E193: Accu | F193: 340.00 | H193: 448 | I193: 448.00 | J193: Target Achieved | K193: 108.00 | L193: 31.76% | M193: Successful | N193: 2017-10-10
A194: 31 | B194: 2015-07-06 | D194: Capital First | E194: Accu | F194: 390.00 | H194: 460 | I194: 460.00 | J194: Target Achieved | K194: 70.00 | L194: 17.95% | M194: Successful | N194: 2016-04-18
A195: 32 | B195: 2015-07-10 | D195: Dolphin OffShore | E195: Accu | F195: 122.5 | H195: 61.00 | I195: 172.00 | J195: Loss of Rs.61.50/- | K195: -61.50 | L195: -50.20% | M195: Unsuccessful | N195: 2018-08-21
A196: 33 | B196: 2015-08-03 | D196: Allcargo logistics | E196: Accu | F196: 297.50 | H196: 350 | I196: 360.00 | J196: Profit of Rs 52.50/- | K196: 52.50 | L196: =K196/F196 -> 17.65% | M196: Successful | N196: 2015-08-16
A197: 34 | B197: 2015-08-03 | D197: Camline Fine | E197: Accu | F197: 115.50 | H197: 149 | I197: 140.00 | J197: Profit of Rs 33.50/- | K197: 33.50 | L197: 29.00% | M197: Successful | N197: 2017-01-05
A198: 35 | B198: 2015-09-04 | D198: TCI | E198: Accu | F198: 226.00 | H198: 292 | I198: 292.00 | J198: Target Achieved | K198: 66.00 | L198: 29.20% | M198: Successful | N198: 2015-10-09
A199: 36 | B199: 2015-09-07 | D199: Kalpataru Power Transmission Ltd | E199: Accu | F199: 232.50 | H199: 312.5 | I199: 310.00 | J199: Target Achieved | K199: 80.00 | L199: 34.41% | M199: Successful | N199: 2017-03-29
A200: 37 | B200: 2015-09-21 | D200: LLOYD ELECTRIC & ENG LTD | E200: Accu | F200: 196.50 | H200: 238 | I200: 238.00 | J200: Target Achieved | K200: 41.50 | L200: 21.12% | M200: Successful | N200: 2015-10-14
A201: 38 | B201: 2015-09-24 | D201: L&T Finance Holding | E201: Accu | F201: 65.00 | H201: 82 | I201: 82.00 | J201: Target Achieved | K201: 17.00 | L201: 26.15% | M201: Successful | N201: 2016-07-27
A202: 39 | B202: 2015-10-14 | D202: KEC International ltd | E202: Accu | F202: 144.00 | H202: 182.5 | I202: 181.00 | J202: Target Achieved | K202: 38.50 | L202: 26.74% | M202: Successful | N202: 2017-03-23
A203: 40 | B203: 2015-10-14 | D203: Gruh Finance | E203: Accu | F203: 264.00 | H203: 311 | I203: 311.00 | J203: Target Achieved | K203: 47.00 | L203: 17.80% | M203: Successful | N203: 2016-08-22
A204: 41 | B204: 2015-11-10 | D204: Pidilitind | E204: Buy | F204: 549.50 | H204: 630 | I204: 630.00 | J204: Target Achieved | K204: 80.50 | L204: 14.65% | M204: Successful | N204: 2016-02-19
A205: 42 | B205: 2015-12-04 | D205: Zensar Technology | E205: Accu | F205: 1027.50 | H205: 1315 | I205: 1250.00 | J205: Target Achieved | K205: =H205-F205 -> 287.50 | L205: 27.98% | M205: Successful | N205: 2018-05-24
A206: 43 | B206: 2015-12-29 | D206: Vinati Organics Ltd | E206: Accu | F206: 465.00 | H206: 540 | I206: 540.00 | J206: Target Achieved | K206: 75.00 | L206: =K206/F206 -> 16.13% | M206: Successful | N206: 2016-06-09
A207: 44 | B207: 2016-01-11 | D207: GSFC | E207: Buy | F207: 81.00 | H207: 110 | I207: 110.00 | J207: Target Achieved | K207: 29.00 | L207: 35.80% | M207: Successful | N207: 2017-01-10
A208: 45 | B208: 2016-01-13 | D208: SSWL | E208: Buy | F208: 417.50 | H208: 547 | I208: 535.00 | J208: Target Achieved | K208: 129.50 | L208: 31.02% | M208: Successful | N208: 2016-07-27
A209: 46 | B209: 2016-02-08 | D209: Persistent System Ltd | E209: Accu | F209: 650.00 | H209: 800 | I209: 800.00 | J209: Target Achieved | K209: 150.00 | L209: 23.08% | M209: Successful | N209: 2018-02-23
A210: 47 | B210: 2016-03-04 | D210: UPL | E210: Accu | F210: 437.50 | H210: 504.5 | I210: 522.00 | J210: Profit of Rs.67/- | K210: 67.00 | L210: 15.31% | M210: Successful | N210: 2016-04-20
A211: 48 | B211: 2016-03-09 | D211: Ashoka Buildcon Ltd | E211: Accu | F211: 189.50 | H211: 218 | I211: 218.00 | J211: Target Achieved | K211: 28.50 | L211: 15.04% | M211: Successful | N211: 2017-10-26
A212: 49 | B212: 2016-04-11 | D212: PTC INDIA FIN SERV LTD | E212: Accu | F212: 36-37 | I212: 60.00 | J212: Open
A213: 50 | B213: 2016-04-12 | D213: CAMLINFINE $ | E213: Accu | F213: 93.00 | H213: 149 | I213: 140.00 | J213: Profit of Rs 56/- | K213: 56.00 | L213: =K213/F213 -> 60.22% | M213: Successful | N213: 2017-01-05
A214: 51 | B214: 2016-04-12 | D214: Greaves Cotton Ltd. | E214: Accu | F214: 130.00 | H214: 150 | I214: 150-155 | J214: Target Achieved | K214: 20.00 | L214: 15.38% | M214: Successful | N214: 2016-07-13
A215: 52 | B215: 2016-04-13 | D215: DHFL | E215: Accu | F215: 196.00 | H215: 299 | I215: 299.00 | J215: Target Achieved | K215: 103.00 | L215: 52.55% | M215: Successful | N215: 2016-09-07
A216: 53 | B216: 2016-04-13 | D216: Magma | E216: Accu | F216: 88.00 | H216: 103 | I216: 103.00 | J216: Target Achieved | K216: 15.00 | L216: 17.05% | M216: Successful | N216: 2016-06-09
A217: 54 | B217: 2016-05-02 | D217: KEC International ltd $ | E217: Accu | F217: 127.50 | H217: 148 | I217: 148-150 | J217: Target Achieved | K217: 20.50 | L217: 16.08% | M217: Successful | N217: 2016-07-13
A218: 55 | B218: 2016-05-03 | D218: Mindtree | E218: Accu | F218: 675.00 | H218: 815 | I218: 790-800 | J218: Target Achieved | K218: 140.00 | L218: 20.74% | M218: Successful | N218: 2018-02-23
A219: 56 | B219: 2016-06-01 | D219: Atulauto | E219: Accu | F219: 495-505 | I219: 565-570 | J219: Open
A220: 57 | B220: 2016-06-06 | D220: TRITURBINE | E220: Accu | F220: 110.00 | H220: 126.5 | I220: 125.00 | J220: Profit of Rs.16.50/- | K220: 16.50 | L220: =K220/F220 -> 15.00% | M220: Successful | N220: 2016-07-01
A221: 58 | B221: 2016-06-17 | D221: Pennar Industries Ltd | E221: Accu | F221: 44.00 | H221: 69.5 | I221: 69.50 | J221: Profit of Rs.25.50/- | K221: 25.50 | L221: =K221/F221 -> 57.95% | M221: Successful | N221: 2017-08-30
A222: 59 | B222: 2016-06-28 | D222: EVEREADY INDS. IND. LTD. | E222: Accu | F222: 262.50 | H222: 340 | I222: 333.00 | J222: Profit of Rs.77.50/- | K222: 77.50 | L222: =K222/F222 -> 29.52% | M222: Successful | N222: 2017-10-09
A223: 60 | B223: 2016-06-28 | D223: FIEM INDUSTRIES LIMITED | E223: Accu | F223: 840.00 | H223: 1230 | I223: 1230.00 | J223: Target Achieved | K223: 390.00 | L223: =K223/F223 -> 46.43% | M223: Successful | N223: 2016-10-06
A224: 61 | B224: 2016-07-05 | D224: Bajaj Corp Ltd | E224: Accu | F224: 395 | H224: 468.50 | I224: 510.00 | J224: Part profit of Rs.73.50/- | K224: 73.50 | L224: =K224/F224 -> 19% | M224: Successful | N224: 2017-08-30
A225: 62 | B225: 2016-08-02 | D225: GPPL $ | E225: Buy | F225: 169.5 | H225: 77.00 | I225: 198-200 | J225: Loss of Rs.92.5/- | K225: -92.50 | L225: =K225/F225 -> -54.57% | M225: Unsuccessful | N225: 2019-02-26
A226: 63 | B226: 2016-08-04 | D226: WONDERLA HOLIDAYS LTD | E226: Accu | F226: 395-405 | I226: 475.00 | J226: Open
A227: 64 | B227: 2016-08-11 | D227: CAMLINFINE | E227: Accu | F227: 86.50 | H227: 130 | I227: 130.00 | J227: Profit of Rs.43.50/- | K227: =H227-F227 -> 43.50 | L227: =K227/F227 -> 50.29% | M227: Successful | N227: 2017-12-22
A228: 65 | B228: 2016-08-18 | D228: GRANULES | E228: Accu | F228: 133.5 | H228: 126.50 | I228: 178.00 | J228: Exit | K228: -7.00 | L228: -5.24% | M228: Unsuccessful | N228: 2016-09-02
A229: 66 | B229: 2016-08-31 | D229: VA TECH WABAG | E229: Accu | F229: 560.00 | H229: 725 | I229: 725.00 | J229: Target Achieved | K229: 165.00 | L229: 29.46% | M229: Successful | N229: 2016-03-27
A230: 67 | B230: 2016-09-01 | D230: SKIPPER LIMITED | E230: Accu | F230: 160.50 | H230: 210 | I230: 210.00 | J230: Target Achieved | K230: 49.50 | L230: 30.84% | M230: Successful | N230: 2017-05-16
A231: 68 | B231: 2016-10-03 | D231: IFB Industries | E231: Accu | F231: 430.00 | H231: 596 | I231: 575.00 | J231: Profit of Rs.166/- | K231: 166.00 | L231: 38.60% | M231: Successful | N231: 2017-02-03
A232: 69 | B232: 2016-10-14 | D232: ASIANTILES | E232: Accu | F232: 280.00 | H232: 345 | I232: 345.00 | J232: Target Achieved | K232: 65.00 | L232: 23.21% | M232: Successful | N232: 2017-03-20
A233: 70 | B233: 2016-10-14 | D233: DEEPIND | E233: Accu | F233: 245.00 | H233: 325.5 | I233: 330.00 | J233: Profit of Rs.80.5/- | K233: 80.50 | L233: 32.86% | M233: Successful | N233: 2017-02-03
A234: 71 | B234: 2016-10-17 | D234: DCBBANK | E234: Accu | F234: 125.00 | H234: 160 | I234: 160.00 | J234: Target Achieved | K234: 35.00 | L234: 28.00% | M234: Successful | N234: 2017-03-09
A235: 72 | B235: 2016-10-17 | D235: ORIENTREF | E235: Accu | F235: 114.00 | H235: 145 | I235: 145.00 | J235: Target Achieved | K235: 31.00 | L235: =K235/F235 -> 27.19% | M235: Successful | N235: 2017-05-04
A236: 73 | B236: 2016-10-17 | D236: GANECOS | E236: Accu | F236: 212.00 | H236: 280 | I236: 276.00 | J236: Profit of Rs.68/- | K236: 68.00 | L236: =K236/F236 -> 32.08% | M236: Successful | N236: 2017-05-03
A237: 74 | B237: 2016-11-04 | D237: NBCC | E237: Accu | F237: 155.00 | H237: 210 | I237: 210.00 | J237: Profit of Rs.55/- | K237: 55.00 | L237: =K237/F237 -> 35.48% | M237: Successful | N237: 2017-07-28
A238: 75 | B238: 2016-12-06 | D238: PRECAM | E238: Accu | F238: 150.5 | H238: 72.50 | I238: 174.00 | J238: Loss of Rs.78/- | K238: -78.00 | L238: =K238/F238 -> -51.83% | M238: Unsuccessful | N238: 2018-08-21
A239: 76 | B239: 2016-12-08 | D239: INFRATEL | E239: Accu | F239: 380.00 | H239: 478 | I239: 468.00 | J239: Target Achieved | K239: 98.00 | L239: =K239/F239 -> 25.79% | M239: Successful | N239: 2017-10-17
A240: 77 | B240: 2016-12-30 | D240: GODREJPROP | E240: Accu | F240: 305.00 | H240: 375 | I240: 375.00 | J240: Target Achieved | K240: 70.00 | L240: 22.95% | M240: Successful | N240: 2017-02-02
A241: 78 | B241: 2017-01-04 | D241: DEEPAKNTR | E241: Accu | F241: 99.50 | H241: 158 | I241: 158.00 | J241: Target Achieved | K241: 58.50 | L241: 58.79% | M241: Successful | N241: 2017-06-12
A242: 79 | B242: 2017-02-20 | D242: SUBROS | E242: Accu | F242: 202.50 | H242: 234 | I242: 234.00 | J242: Target Achieved | K242: 31.50 | L242: 15.56% | M242: Successful | N242: 2017-04-11
A243: 80 | B243: 2017-02-20 | D243: RECLTD | E243: Accu | F243: 140.50 | H243: 220 | I243: 220.00 | J243: Target Achieved | K243: 79.50 | L243: 56.58% | M243: Successful | N243: 2017-05-09
A244: 81 | B244: 2017-03-24 | D244: VRLLOG | E244: Accu | F244: 300.50 | H244: 417.5 | I244: 420.00 | J244: Profit of Rs.117/- | K244: 117.00 | L244: 38.94% | M244: Successful | N244: 2017-12-01
A245: 82 | B245: 2017-03-24 | D245: FIEMIND | E245: Accu | F245: 850.00 | H245: 1042.5 | I245: 1023.00 | J245: Profit of Rs 192.50/- | K245: 192.50 | L245: 22.65% | M245: Successful | N245: 2017-04-05
A246: 83 | B246: 2017-04-05 | D246: RATNAMANI | E246: Accu | F246: 785.00 | H246: 930 | I246: 920.00 | J246: Profit of Rs.145/- | K246: 145.00 | L246: 18.47% | M246: Successful | N246: 2017-08-29
A247: 84 | B247: 2017-04-06 | D247: ZEEMEDIA | E247: Accu | F247: 40 | H247: 13.10 | I247: 60.00 | J247: Loss of Rs.26.9/- | K247: =H247-F247 -> -26.90 | L247: -67.25% | M247: Unsuccessful | N247: 2018-02-07
A248: 85 | B248: 2017-04-12 | D248: DABUR | E248: Accu | F248: 289.50 | H248: 354 | I248: 360.00 | J248: Profit of Rs.64.5/- | K248: 64.50 | L248: =K248/F248 -> 22.28% | M248: Successful | N248: 2017-11-01
A249: 86 | B249: 2017-04-20 | D249: KPRMILL | E249: Accu | F249: 700.00 | H249: 840 | I249: 840.00 | J249: Profit of Rs.140/- | K249: 140.00 | L249: =K249/F249 -> 20.00% | M249: Successful | N249: 2017-06-07
A250: 87 | B250: 2017-05-22 | D250: GREAVESCOT | E250: Accu | F250: 153-158 | I250: 190.00 | J250: Open
A251: 88 | B251: 2017-06-01 | D251: ESSELPACK | E251: Accu | F251: 130 | H251: 155.50 | I251: 170.00 | J251: Part profit of Rs.51/- | K251: =H251-F251 -> 25.50 | L251: =K251/F251 -> 20% | M251: Successful | N251: 2017-11-17
A252: 89 | B252: 2017-06-15 | D252: KEI | E252: Accu | F252: 214.50 | H252: 262 | I252: 262.00 | J252: Profit of Rs.47.5/- | K252: =H252-F252 -> 47.50 | L252: 22.14% | M252: Successful | N252: 2017-08-30
A253: 90 | B253: 2017-07-17 | D253: MAYURUNIQ | E253: Accu | F253: 370.00 | H253: 447.5 | I253: 450.00 | J253: Target Achieved | K253: 77.50 | L253: 20.95% | M253: Successful | N253: 2017-10-27
A254: 91 | B254: 2017-07-27 | D254: RAMCOCEM | E254: Accu | F254: 657.50 | H254: 825 | I254: 820.00 | J254: Target Achieved | K254: 167.50 | L254: 25.48% | M254: Successful | N254: 2017-12-21
... 57 more rows

Sheet Sheet2 (hidden)
A1: SYMBOL | B1: SERIES | C1: OPEN | D1: HIGH | E1: LOW | F1: CLOSE | G1: LAST | H1: PREVCLOSE | I1: TOTTRDQTY | J1: TOTTRDVAL | K1: TIMESTAMP | L1: TOTALTRADES | M1: ISIN | N1: ISIN
A2: 20MICRONS | B2: EQ | C2: 39.5 | D2: 39.5 | E2: 38.25 | F2: 38.75 | G2: 38.85 | H2: 38.95 | I2: 50883 | J2: 1972433.45 | K2: 2019-03-15 | L2: 297 | M2: INE144J01027
A3: 21STCENMGM | B3: EQ | C3: 19 | D3: 19.15 | E3: 18.8 | F3: 19.15 | G3: 19.15 | H3: 18.8 | I3: 1134 | J3: 21502.25 | K3: 2019-03-15 | L3: 12 | M3: INE253B01015
A4: 3IINFOTECH | B4: EQ | C4: 3.55 | D4: 3.85 | E4: 3.55 | F4: 3.85 | G4: 3.85 | H4: 3.5 | I4: 8380159 | J4: 32029786.9 | K4: 2019-03-15 | L4: 1823 | M4: INE748C01020
A5: 3MINDIA | B5: EQ | C5: 23915 | D5: 24447.15 | E5: 23301 | F5: 23742.05 | G5: 23301 | H5: 23932.25 | I5: 68736 | J5: 1634963262 | K5: 2019-03-15 | L5: 8570 | M5: INE470A01017
A6: 3PLAND | B6: EQ | C6: 12.5 | D6: 12.5 | E6: 11.55 | F6: 11.6 | G6: 11.6 | H6: 11.95 | I6: 517 | J6: 6106.05 | K6: 2019-03-15 | L6: 9 | M6: INE105C01023
A7: 5PAISA | B7: EQ | C7: 224.4 | D7: 230 | E7: 221.95 | F7: 224.15 | G7: 223 | H7: 224.35 | I7: 7689 | J7: 1734201.55 | K7: 2019-03-15 | L7: 258 | M7: INE618L01018
A8: 63MOONS | B8: EQ | C8: 84 | D8: 87.3 | E8: 84 | F8: 84.55 | G8: 84.5 | H8: 83.7 | I8: 358077 | J8: 30689368.5 | K8: 2019-03-15 | L8: 5360 | M8: INE111B01023
A9: 8KMILES | B9: EQ | C9: 107.3 | D9: 108 | E9: 102.5 | F9: 103.35 | G9: 104 | H9: 106.3 | I9: 204630 | J9: 21384150.35 | K9: 2019-03-15 | L9: 3043 | M9: INE650K01021
A10: A2ZINFRA | B10: BE | C10: 16.8 | D10: 17.95 | E10: 16.8 | F10: 17.95 | G10: 17.95 | H10: 17.1 | I10: 189898 | J10: 3387359.3 | K10: 2019-03-15 | L10: 375 | M10: INE619I01012
A11: AARTIDRUGS | B11: EQ | C11: 672.5 | D11: 694.7 | E11: 651.25 | F11: 656.55 | G11: 653.1 | H11: 669.8 | I11: 325221 | J11: 219206503.6 | K11: 2019-03-15 | L11: 9786 | M11: INE767A01016
A12: AARTIIND | B12: EQ | C12: 1426.95 | D12: 1448.95 | E12: 1400 | F12: 1424.55 | G12: 1408 | H12: 1418.7 | I12: 582194 | J12: 829695444.1 | K12: 2019-03-15 | L12: 21785 | M12: INE769A01020
A13: AARVEEDEN | B13: EQ | C13: 22.7 | D13: 23.45 | E13: 22.65 | F13: 23.05 | G13: 23 | H13: 22.95 | I13: 10317 | J13: 236845.9 | K13: 2019-03-15 | L13: 93 | M13: INE273D01019
A14: AAVAS | B14: EQ | C14: 1192 | D14: 1196.3 | E14: 1131.5 | F14: 1162.4 | G14: 1131.5 | H14: 1197.8 | I14: 12364 | J14: 14540470.75 | K14: 2019-03-15 | L14: 1313 | M14: INE216P01012
A15: ABAN | B15: BE | C15: 66.15 | D15: 66.15 | E15: 66.15 | F15: 66.15 | G15: 66.15 | H15: 69.6 | I15: 46449 | J15: 3072601.35 | K15: 2019-03-15 | L15: 419 | M15: INE421A01028
A16: ABB | B16: EQ | C16: 1317.4 | D16: 1317.4 | E16: 1296.1 | F16: 1303.8 | G16: 1315 | H16: 1309.6 | I16: 218031 | J16: 284179333.9 | K16: 2019-03-15 | L16: 7190 | M16: INE117A01022
A17: ABBOTINDIA | B17: EQ | C17: 7330 | D17: 7374.9 | E17: 7275 | F17: 7291.5 | G17: 7280 | H17: 7331 | I17: 2273 | J17: 16631754.5 | K17: 2019-03-15 | L17: 662 | M17: INE358A01014
A18: ABCAPITAL | B18: EQ | C18: 96.75 | D18: 100.45 | E18: 96.05 | F18: 99.5 | G18: 98.25 | H18: 95.9 | I18: 16933643 | J18: 1680433414 | K18: 2019-03-15 | L18: 50265 | M18: INE674K01013
A19: ABFRL | B19: EQ | C19: 231.8 | D19: 233 | E19: 226 | F19: 227.1 | G19: 226.5 | H19: 230.7 | I19: 1594351 | J19: 364800160.3 | K19: 2019-03-15 | L19: 37740 | M19: INE647O01011
A20: ACC | B20: EQ | C20: 1540.5 | D20: 1559.3 | E20: 1526.45 | F20: 1531.85 | G20: 1528.3 | H20: 1539.3 | I20: 834141 | J20: 1284390681 | K20: 2019-03-15 | L20: 24248 | M20: INE012A01025
A21: ACCELYA | B21: EQ | C21: 934.85 | D21: 945 | E21: 925 | F21: 927.65 | G21: 935.9 | H21: 934.85 | I21: 3660 | J21: 3414343.05 | K21: 2019-03-15 | L21: 324 | M21: INE793A01012
A22: ACE | B22: EQ | C22: 106 | D22: 106.7 | E22: 102 | F22: 102.8 | G22: 102.25 | H22: 106.4 | I22: 224621 | J22: 23343252.05 | K22: 2019-03-15 | L22: 2594 | M22: INE731H01025
A23: ADANIENT | B23: EQ | C23: 145.8 | D23: 148.9 | E23: 140.25 | F23: 141.85 | G23: 141.3 | H23: 145.55 | I23: 5981701 | J23: 863422330.5 | K23: 2019-03-15 | L23: 30571 | M23: INE423A01024
A24: ADANIGAS | B24: EQ | C24: 117 | D24: 118 | E24: 116 | F24: 116.5 | G24: 116.4 | H24: 117.2 | I24: 659518 | J24: 76783400.05 | K24: 2019-03-15 | L24: 4053 | M24: INE399L01023
A25: ADANIGREEN | B25: EQ | C25: 38.9 | D25: 39.6 | E25: 37.3 | F25: 37.8 | G25: 37.65 | H25: 38.55 | I25: 886002 | J25: 34169971 | K25: 2019-03-15 | L25: 3820 | M25: INE364U01010
A26: ADANIPORTS | B26: EQ | C26: 366.25 | D26: 368.95 | E26: 361.5 | F26: 367.1 | G26: 365.05 | H26: 366 | I26: 3057825 | J26: 1119149859 | K26: 2019-03-15 | L26: 31236 | M26: INE742F01042
A27: ADANIPOWER | B27: EQ | C27: 50.5 | D27: 51.25 | E27: 50.2 | F27: 50.85 | G27: 50.3 | H27: 51.15 | I27: 10827468 | J27: 550471036 | K27: 2019-03-15 | L27: 14867 | M27: INE814H01011
A28: ADANITRANS | B28: EQ | C28: 208 | D28: 244.3 | E28: 207.35 | F28: 235.2 | G28: 232.7 | H28: 206.6 | I28: 2881276 | J28: 666540571.5 | K28: 2019-03-15 | L28: 41008 | M28: INE931S01010
A29: ADFFOODS | B29: EQ | C29: 251.2 | D29: 252.95 | E29: 248 | F29: 249.7 | G29: 250.3 | H29: 251.2 | I29: 22957 | J29: 5739434.55 | K29: 2019-03-15 | L29: 551 | M29: INE982B01019
A30: ADHUNIK | B30: BE | C30: 2.1 | D30: 2.1 | E30: 2.1 | F30: 2.1 | G30: 2.1 | H30: 2 | I30: 14333 | J30: 30099.3 | K30: 2019-03-15 | L30: 16 | M30: INE400H01019
A31: ADHUNIKIND | B31: EQ | C31: 56.45 | D31: 59 | E31: 55 | F31: 58.4 | G31: 58.9 | H31: 55.35 | I31: 71387 | J31: 4052631.7 | K31: 2019-03-15 | L31: 634 | M31: INE452L01012
A32: ADLABS | B32: EQ | C32: 11.1 | D32: 11.25 | E32: 10.85 | F32: 11.25 | G32: 11.25 | H32: 10.75 | I32: 283052 | J32: 3164791.6 | K32: 2019-03-15 | L32: 681 | M32: INE172N01012
A33: ADORWELD | B33: EQ | C33: 342.1 | D33: 345.1 | E33: 336 | F33: 338.2 | G33: 336 | H33: 342.6 | I33: 5799 | J33: 1975257.7 | K33: 2019-03-15 | L33: 322 | M33: INE045A01017
A34: ADROITINFO | B34: BE | C34: 19.85 | D34: 19.95 | E34: 18.9 | F34: 18.9 | G34: 18.9 | H34: 19.85 | I34: 1091 | J34: 20677 | K34: 2019-03-15 | L34: 15 | M34: INE737B01033
A35: ADSL | B35: EQ | C35: 16.2 | D35: 16.3 | E35: 15.2 | F35: 15.3 | G35: 15.35 | H35: 16.15 | I35: 24096 | J35: 372793.2 | K35: 2019-03-15 | L35: 186 | M35: INE102I01027
A36: ADVANIHOTR | B36: EQ | C36: 68.95 | D36: 73 | E36: 66.45 | F36: 68.55 | G36: 69.75 | H36: 68 | I36: 50789 | J36: 3599458.65 | K36: 2019-03-15 | L36: 863 | M36: INE199C01026
A37: ADVENZYMES | B37: EQ | C37: 182.55 | D37: 194 | E37: 180.05 | F37: 183.3 | G37: 181.55 | H37: 180.85 | I37: 964673 | J37: 180670666.6 | K37: 2019-03-15 | L37: 11844 | M37: INE837H01020
A38: AEGISCHEM | B38: EQ | C38: 204.6 | D38: 205.35 | E38: 202.65 | F38: 203.95 | G38: 203.1 | H38: 204.6 | I38: 245533 | J38: 50268477.05 | K38: 2019-03-15 | L38: 12951 | M38: INE208C01025
A39: AGARIND | B39: EQ | C39: 160 | D39: 169.75 | E39: 160 | F39: 164.15 | G39: 165 | H39: 167.2 | I39: 2122 | J39: 349213.5 | K39: 2019-03-15 | L39: 66 | M39: INE204E01012
A40: AGCNET | B40: EQ | C40: 108.25 | D40: 113 | E40: 108.25 | F40: 109.6 | G40: 109.6 | H40: 108.5 | I40: 2041 | J40: 223669.65 | K40: 2019-03-15 | L40: 29 | M40: INE676A01019
A41: AGLSL | B41: EQ | C41: 61.35 | D41: 61.7 | E41: 59.6 | F41: 60.75 | G41: 59.8 | H41: 61.4 | I41: 20956 | J41: 1265973.95 | K41: 2019-03-15 | L41: 185 | M41: INE517U01013
A42: AGRITECH | B42: EQ | C42: 52.65 | D42: 54 | E42: 51.5 | F42: 52.65 | G42: 52.6 | H42: 52.65 | I42: 4642 | J42: 247053.9 | K42: 2019-03-15 | L42: 169 | M42: INE449G01018
A43: AGROPHOS | B43: EQ | C43: 74.8 | D43: 74.8 | E43: 64.3 | F43: 66.95 | G43: 66.5 | H43: 65 | I43: 123938 | J43: 8389120 | K43: 2019-03-15 | L43: 272 | M43: INE740V01019
A44: AHLEAST | B44: EQ | C44: 247.85 | D44: 247.85 | E44: 240.5 | F44: 240.85 | G44: 240.5 | H44: 243.4 | I44: 1840 | J44: 447228.35 | K44: 2019-03-15 | L44: 242 | M44: INE926K01017
A45: AHLUCONT | B45: EQ | C45: 341.55 | D45: 350 | E45: 336.55 | F45: 347.55 | G45: 348.5 | H45: 340.65 | I45: 22331 | J45: 7695370.2 | K45: 2019-03-15 | L45: 653 | M45: INE758C01029
A46: AHLWEST | B46: EQ | C46: 343 | D46: 359.95 | E46: 340 | F46: 345 | G46: 345 | H46: 350 | I46: 806 | J46: 279165.8 | K46: 2019-03-15 | L46: 63 | M46: INE915K01010
A47: AIAENG | B47: EQ | C47: 1740 | D47: 1780 | E47: 1740 | F47: 1759.25 | G47: 1764 | H47: 1754.65 | I47: 7580 | J47: 13307898.05 | K47: 2019-03-15 | L47: 1146 | M47: INE212H01026
A48: AIFL | B48: BE | C48: 16 | D48: 16 | E48: 14.8 | F48: 15.25 | G48: 15.45 | H48: 15.25 | I48: 180143 | J48: 2779764.65 | K48: 2019-03-15 | L48: 369 | M48: INE428O01016
A49: AIONJSW | B49: EQ | C49: 27.8 | D49: 28 | E49: 26.75 | F49: 26.9 | G49: 27 | H49: 27.8 | I49: 166537 | J49: 4537060.95 | K49: 2019-03-15 | L49: 535 | M49: INE743C01021
A50: AJANTPHARM | B50: EQ | C50: 1031.9 | D50: 1044.7 | E50: 1009.65 | F50: 1014.2 | G50: 1011.15 | H50: 1026.85 | I50: 336768 | J50: 344057870 | K50: 2019-03-15 | L50: 10948 | M50: INE031B01049
A51: AJMERA | B51: EQ | C51: 193.8 | D51: 194.4 | E51: 183.05 | F51: 185.15 | G51: 185 | H51: 192.4 | I51: 158540 | J51: 29800043.75 | K51: 2019-03-15 | L51: 3274 | M51: INE298G01027
A52: AKSHARCHEM | B52: EQ | C52: 347.95 | D52: 348 | E52: 342.3 | F52: 343.65 | G52: 343.9 | H52: 342.05 | I52: 800 | J52: 275401.8 | K52: 2019-03-15 | L52: 86 | M52: INE542B01011
A53: AKSHOPTFBR | B53: EQ | C53: 20.2 | D53: 20.45 | E53: 19.65 | F53: 19.75 | G53: 19.85 | H53: 20.15 | I53: 613416 | J53: 12277945.55 | K53: 2019-03-15 | L53: 1490 | M53: INE523B01011
A54: AKZOINDIA | B54: EQ | C54: 1789 | D54: 1789 | E54: 1730 | F54: 1740.15 | G54: 1760 | H54: 1760.6 | I54: 5629 | J54: 9841167.3 | K54: 2019-03-15 | L54: 841 | M54: INE133A01011
A55: ALANKIT | B55: EQ | C55: 27.9 | D55: 30.9 | E55: 27.9 | F55: 29.9 | G55: 30 | H55: 28.15 | I55: 1532522 | J55: 45677914.4 | K55: 2019-03-15 | L55: 2541 | M55: INE914E01040
A56: ALBERTDAVD | B56: EQ | C56: 424.2 | D56: 432 | E56: 415.05 | F56: 422.35 | G56: 415.05 | H56: 426.9 | I56: 2527 | J56: 1075930.35 | K56: 2019-03-15 | L56: 229 | M56: INE155C01010
A57: ALBK | B57: EQ | C57: 55.2 | D57: 56.85 | E57: 54.9 | F57: 55.5 | G57: 55.05 | H57: 55.2 | I57: 8046399 | J57: 449353684.4 | K57: 2019-03-15 | L57: 20156 | M57: INE428A01015
A58: ALCHEM | B58: BE | C58: 1.9 | D58: 2.05 | E58: 1.9 | F58: 1.95 | G58: 1.95 | H58: 2 | I58: 8249 | J58: 16572.35 | K58: 2019-03-15 | L58: 21 | M58: INE964B01033
A59: ALEMBICLTD | B59: EQ | C59: 42.6 | D59: 43.1 | E59: 42.45 | F59: 42.55 | G59: 42.5 | H59: 42.7 | I59: 149230 | J59: 6375344.75 | K59: 2019-03-15 | L59: 674 | M59: INE426A01027
A60: ALICON | B60: EQ | C60: 577.95 | D60: 590 | E60: 574.95 | F60: 580.8 | G60: 587 | H60: 573 | I60: 2311 | J60: 1348994.65 | K60: 2019-03-15 | L60: 221 | M60: INE062D01024
A61: ALKALI | B61: EQ | C61: 48.15 | D61: 51.4 | E61: 47.5 | F61: 48.15 | G61: 47.5 | H61: 48.9 | I61: 24556 | J61: 1206113.8 | K61: 2019-03-15 | L61: 231 | M61: INE773I01017
A62: ALKEM | B62: EQ | C62: 1728.2 | D62: 1781 | E62: 1728.2 | F62: 1760.4 | G62: 1730 | H62: 1719.6 | I62: 349087 | J62: 614343788.7 | K62: 2019-03-15 | L62: 43218 | M62: INE540L01014
A63: ALKYLAMINE | B63: EQ | C63: 790.95 | D63: 793.5 | E63: 775.95 | F63: 779.55 | G63: 779.3 | H63: 789.45 | I63: 3009 | J63: 2354512.15 | K63: 2019-03-15 | L63: 336 | M63: INE150B01021
A64: ALLCARGO | B64: EQ | C64: 123 | D64: 124.45 | E64: 119 | F64: 120.05 | G64: 120.2 | H64: 120.55 | I64: 691260 | J64: 84035123.3 | K64: 2019-03-15 | L64: 6271 | M64: INE418H01029
A65: ALLSEC | B65: EQ | C65: 196.15 | D65: 200.65 | E65: 193.15 | F65: 198.5 | G65: 198.5 | H65: 196.05 | I65: 27753 | J65: 5477550.45 | K65: 2019-03-15 | L65: 458 | M65: INE835G01018
A66: ALMONDZ | B66: EQ | C66: 24.95 | D66: 24.95 | E66: 22.1 | F66: 22.55 | G66: 22.1 | H66: 24 | I66: 1528 | J66: 35454.25 | K66: 2019-03-15 | L66: 22 | M66: INE326B01027
A67: ALOKTEXT | B67: EQ | C67: 5.55 | D67: 5.55 | E67: 5.55 | F67: 5.55 | G67: 5.55 | H67: 5.3 | I67: 5668529 | J67: 31460335.95 | K67: 2019-03-15 | L67: 2140 | M67: INE270A01011
A68: ALPA | B68: EQ | C68: 28.3 | D68: 28.3 | E68: 27.15 | F68: 27.5 | G68: 27.25 | H68: 27.85 | I68: 24607 | J68: 681924.75 | K68: 2019-03-15 | L68: 298 | M68: INE385I01010
A69: ALPHAGEO | B69: EQ | C69: 509 | D69: 548 | E69: 501 | F69: 527.9 | G69: 528 | H69: 500.85 | I69: 47731 | J69: 25427105.4 | K69: 2019-03-15 | L69: 4096 | M69: INE137C01018
A70: AMARAJABAT | B70: EQ | C70: 743.15 | D70: 753 | E70: 743.15 | F70: 746.55 | G70: 747.5 | H70: 746.5 | I70: 222911 | J70: 166956573.7 | K70: 2019-03-15 | L70: 7501 | M70: INE885A01032
A71: AMBER | B71: EQ | C71: 814 | D71: 823.5 | E71: 785 | F71: 794.9 | G71: 791 | H71: 815.2 | I71: 25898 | J71: 20916923.85 | K71: 2019-03-15 | L71: 2462 | M71: INE371P01015
A72: AMBIKCO | B72: EQ | C72: 1137.95 | D72: 1139.7 | E72: 1125.25 | F72: 1137 | G72: 1137.9 | H72: 1129.65 | I72: 2659 | J72: 3016288.7 | K72: 2019-03-15 | L72: 238 | M72: INE540G01014
A73: AMBUJACEM | B73: EQ | C73: 223.9 | D73: 229.5 | E73: 223.55 | F73: 225.35 | G73: 225.5 | H73: 224.15 | I73: 3226639 | J73: 728827233.1 | K73: 2019-03-15 | L73: 44817 | M73: INE079A01024
A74: AMDIND | B74: EQ | C74: 21.95 | D74: 23.7 | E74: 21.9 | F74: 22 | G74: 21.9 | H74: 22.15 | I74: 4108 | J74: 91211.9 | K74: 2019-03-15 | L74: 67 | M74: INE005I01014
A75: AMJLAND | B75: EQ | C75: 21.4 | D75: 21.4 | E75: 20.1 | F75: 20.3 | G75: 20.2 | H75: 20.8 | I75: 6719 | J75: 138109.85 | K75: 2019-03-15 | L75: 56 | M75: INE606A01024
A76: AMRUTANJAN | B76: EQ | C76: 337.9 | D76: 344.5 | E76: 317.95 | F76: 323.85 | G76: 324 | H76: 336.05 | I76: 100914 | J76: 33781924.3 | K76: 2019-03-15 | L76: 2997 | M76: INE098F01031
A77: ANANTRAJ | B77: EQ | C77: 35.8 | D77: 35.9 | E77: 34.15 | F77: 34.65 | G77: 34.45 | H77: 35.5 | I77: 675881 | J77: 23751660.9 | K77: 2019-03-15 | L77: 2079 | M77: INE242C01024
A78: ANDHRABANK | B78: EQ | C78: 26.6 | D78: 26.9 | E78: 25.15 | F78: 25.8 | G78: 25.7 | H78: 26.4 | I78: 1399652 | J78: 36670991.35 | K78: 2019-03-15 | L78: 3974 | M78: INE434A01013
A79: ANDHRACEMT | B79: BE | C79: 5.65 | D79: 5.9 | E79: 5.45 | F79: 5.7 | G79: 5.7 | H79: 5.65 | I79: 93809 | J79: 530086.65 | K79: 2019-03-15 | L79: 144 | M79: INE666E01012
A80: ANDHRSUGAR | B80: EQ | C80: 367 | D80: 373 | E80: 365.95 | F80: 369.55 | G80: 370 | H80: 365.75 | I80: 47773 | J80: 17675138.45 | K80: 2019-03-15 | L80: 1309 | M80: INE715B01013
A81: ANGIND | B81: BE | C81: 1.1 | D81: 1.1 | E81: 1.05 | F81: 1.1 | G81: 1.1 | H81: 1.1 | I81: 620 | J81: 681.25 | K81: 2019-03-15 | L81: 5 | M81: INE017D01010
A82: ANIKINDS | B82: EQ | C82: 17.25 | D82: 17.5 | E82: 16.5 | F82: 17.15 | G82: 17.3 | H82: 17.25 | I82: 2797 | J82: 48059.4 | K82: 2019-03-15 | L82: 45 | M82: INE087B01017
A83: ANKITMETAL | B83: BE | C83: 0.5 | D83: 0.5 | E83: 0.45 | F83: 0.5 | G83: 0.5 | H83: 0.5 | I83: 29681 | J83: 13995.55 | K83: 2019-03-15 | L83: 22 | M83: INE106I01010
A84: ANSALAPI | B84: EQ | C84: 11.75 | D84: 11.8 | E84: 11.45 | F84: 11.6 | G84: 11.7 | H84: 11.75 | I84: 67245 | J84: 781365 | K84: 2019-03-15 | L84: 278 | M84: INE436A01026
A85: ANSALHSG | B85: BE | C85: 13.25 | D85: 13.5 | E85: 12.75 | F85: 13.05 | G85: 13.05 | H85: 13.35 | I85: 38382 | J85: 503413.65 | K85: 2019-03-15 | L85: 147 | M85: INE880B01015
A86: ANTGRAPHIC | B86: BE | C86: 0.45 | D86: 0.5 | E86: 0.45 | F86: 0.5 | G86: 0.5 | H86: 0.5 | I86: 32847 | J86: 15271.4 | K86: 2019-03-15 | L86: 20 | M86: INE414B01021
A87: ANUP | B87: BE | C87: 678 | D87: 683.8 | E87: 636 | F87: 642.15 | G87: 651 | H87: 662.8 | I87: 62702 | J87: 40555142.5 | K87: 2019-03-15 | L87: 2489 | M87: INE294Z01018
A88: APARINDS | B88: EQ | C88: 639.95 | D88: 657.85 | E88: 628.05 | F88: 655.7 | G88: 657 | H88: 638.1 | I88: 10167 | J88: 6483738.2 | K88: 2019-03-15 | L88: 798 | M88: INE372A01015
A89: APCL | B89: EQ | C89: 129 | D89: 133.25 | E89: 127 | F89: 127.15 | G89: 127 | H89: 129.2 | I89: 942 | J89: 121049.35 | K89: 2019-03-15 | L89: 72 | M89: INE071F01012
A90: APCOTEXIND | B90: EQ | C90: 495 | D90: 505 | E90: 485.55 | F90: 500.55 | G90: 500 | H90: 497 | I90: 4801 | J90: 2398128.8 | K90: 2019-03-15 | L90: 375 | M90: INE116A01024
A91: APEX | B91: EQ | C91: 354 | D91: 357.7 | E91: 339.6 | F91: 342.45 | G91: 343 | H91: 353.9 | I91: 69442 | J91: 24318894.15 | K91: 2019-03-15 | L91: 2005 | M91: INE346W01013
A92: APLAPOLLO | B92: EQ | C92: 1390.4 | D92: 1391.95 | E92: 1334.35 | F92: 1368.4 | G92: 1360 | H92: 1372.6 | I92: 19473 | J92: 26321797.75 | K92: 2019-03-15 | L92: 1295 | M92: INE702C01019
A93: APLLTD | B93: EQ | C93: 550 | D93: 553.1 | E93: 546.25 | F93: 547.15 | G93: 546.75 | H93: 548.9 | I93: 30958 | J93: 16969207.4 | K93: 2019-03-15 | L93: 1098 | M93: INE901L01018
A94: APOLLO | B94: EQ | C94: 112 | D94: 112.05 | E94: 109.05 | F94: 110.7 | G94: 109.65 | H94: 110.2 | I94: 23670 | J94: 2614040.3 | K94: 2019-03-15 | L94: 524 | M94: INE713T01010
A95: APOLLOHOSP | B95: EQ | C95: 1138 | D95: 1152.9 | E95: 1110 | F95: 1124.15 | G95: 1124.6 | H95: 1131.95 | I95: 731215 | J95: 822568856 | K95: 2019-03-15 | L95: 28643 | M95: INE437A01024
A96: APOLLOTYRE | B96: EQ | C96: 223.2 | D96: 225.15 | E96: 221.1 | F96: 222.25 | G96: 221.2 | H96: 223 | I96: 2591655 | J96: 577856475 | K96: 2019-03-15 | L96: 22076 | M96: INE438A01022
A97: APOLSINHOT | B97: BE | C97: 930 | D97: 949.8 | E97: 901.05 | F97: 930.5 | G97: 938 | H97: 926.3 | I97: 2277 | J97: 2125509.85 | K97: 2019-03-15 | L97: 45 | M97: INE451F01024
A98: APTECHT | B98: EQ | C98: 173 | D98: 182.3 | E98: 170 | F98: 171.7 | G98: 171.35 | H98: 173.05 | I98: 474508 | J98: 83693406 | K98: 2019-03-15 | L98: 7912 | M98: INE266F01018
A99: ARCHIDPLY | B99: EQ | C99: 43.75 | D99: 45.9 | E99: 41.6 | F99: 42 | G99: 41.8 | H99: 43.5 | I99: 29224 | J99: 1255548.1 | K99: 2019-03-15 | L99: 773 | M99: INE877I01016
A100: ARCHIES | B100: EQ | C100: 24.05 | D100: 25.2 | E100: 23.8 | F100: 23.9 | G100: 23.8 | H100: 24.2 | I100: 49299 | J100: 1195352 | K100: 2019-03-15 | L100: 359 | M100: INE731A01020
A101: ARCOTECH | B101: BE | C101: 6.55 | D101: 6.55 | E101: 6.55 | F101: 6.55 | G101: 6.55 | H101: 6.85 | I101: 48177 | J101: 315559.35 | K101: 2019-03-15 | L101: 77 | M101: INE574I01035
A102: ARENTERP | B102: EQ | C102: 12.05 | D102: 12.05 | E102: 12.05 | F102: 12.05 | G102: 12.05 | H102: 12.65 | I102: 300 | J102: 3615 | K102: 2019-03-15 | L102: 2 | M102: INE610C01014
A103: ARIES | B103: EQ | C103: 80.25 | D103: 91.8 | E103: 80.25 | F103: 87.55 | G103: 86.7 | H103: 80.25 | I103: 579727 | J103: 51399746.9 | K103: 2019-03-15 | L103: 8209 | M103: INE298I01015
A104: ARIHANT | B104: EQ | C104: 29.6 | D104: 29.6 | E104: 28.1 | F104: 28.2 | G104: 28.1 | H104: 28.6 | I104: 224 | J104: 6298.25 | K104: 2019-03-15 | L104: 7 | M104: INE413D01011
A105: ARIHANTSUP | B105: BE | C105: 57.55 | D105: 58 | E105: 56 | F105: 56.2 | G105: 56.5 | H105: 55.25 | I105: 3547 | J105: 203922.15 | K105: 2019-03-15 | L105: 38 | M105: INE643K01018
A106: ARMANFIN | B106: EQ | C106: 373 | D106: 376 | E106: 365.1 | F106: 374.3 | G106: 373 | H106: 372.1 | I106: 13946 | J106: 5205987.85 | K106: 2019-03-15 | L106: 436 | M106: INE109C01017
A107: AROGRANITE | B107: EQ | C107: 52.95 | D107: 53 | E107: 49.5 | F107: 49.85 | G107: 49.8 | H107: 51.5 | I107: 20048 | J107: 1009033.3 | K107: 2019-03-15 | L107: 310 | M107: INE210C01013
A108: ARROWGREEN | B108: BE | C108: 77.9 | D108: 77.9 | E108: 74 | F108: 75.1 | G108: 75.05 | H108: 74.9 | I108: 6352 | J108: 476504.15 | K108: 2019-03-15 | L108: 148 | M108: INE570D01018
A109: ARROWTEX | B109: EQ | C109: 19.4 | D109: 20 | E109: 19.2 | F109: 19.25 | G109: 19.2 | H109: 19.55 | I109: 6233 | J109: 121088.55 | K109: 2019-03-15 | L109: 52 | M109: INE933J01015
A110: ARSHIYA | B110: EQ | C110: 29.1 | D110: 29.75 | E110: 28.9 | F110: 29.05 | G110: 28.9 | H110: 29.4 | I110: 36016 | J110: 1053714.1 | K110: 2019-03-15 | L110: 307 | M110: INE968D01022
A111: ARSSINFRA | B111: EQ | C111: 40.9 | D111: 42.1 | E111: 40.9 | F111: 42.1 | G111: 42.1 | H111: 40.1 | I111: 22606 | J111: 947090.4 | K111: 2019-03-15 | L111: 115 | M111: INE267I01010
A112: ARVIND | B112: EQ | C112: 94.95 | D112: 96.6 | E112: 94.5 | F112: 95.75 | G112: 95.6 | H112: 94.65 | I112: 6368305 | J112: 609543797.6 | K112: 2019-03-15 | L112: 32750 | M112: INE034A01011
A113: ARVINDFASN | B113: BE | C113: 791.8 | D113: 791.8 | E113: 791.8 | F113: 791.8 | G113: 791.8 | H113: 754.1 | I113: 11767 | J113: 9317110.6 | K113: 2019-03-15 | L113: 306 | M113: INE955V01021
A114: ARVSMART | B114: EQ | C114: 133.4 | D114: 133.8 | E114: 128.1 | F114: 130.2 | G114: 130.75 | H114: 130.8 | I114: 15769 | J114: 2069036.45 | K114: 2019-03-15 | L114: 414 | M114: INE034S01021
A115: ASAHIINDIA | B115: EQ | C115: 266 | D115: 270.2 | E115: 263.7 | F115: 265.75 | G115: 266.9 | H115: 266.65 | I115: 8147 | J115: 2180607.7 | K115: 2019-03-15 | L115: 415 | M115: INE439A01020
A116: ASAHISONG | B116: EQ | C116: 174 | D116: 177 | E116: 169 | F116: 171.25 | G116: 171.1 | H116: 172.45 | I116: 2427 | J116: 416010.5 | K116: 2019-03-15 | L116: 115 | M116: INE228I01012
A117: ASAL | B117: EQ | C117: 55.4 | D117: 55.4 | E117: 53 | F117: 53.2 | G117: 53.1 | H117: 54.7 | I117: 2567 | J117: 138172.25 | K117: 2019-03-15 | L117: 43 | M117: INE900C01027
A118: ASHAPURMIN | B118: EQ | C118: 30.3 | D118: 30.9 | E118: 30 | F118: 30.05 | G118: 30.3 | H118: 30.3 | I118: 45729 | J118: 1384216.35 | K118: 2019-03-15 | L118: 308 | M118: INE348A01023
A119: ASHIANA | B119: EQ | C119: 116 | D119: 117.4 | E119: 115.2 | F119: 116.35 | G119: 117.15 | H119: 115.9 | I119: 75951 | J119: 8837433.8 | K119: 2019-03-15 | L119: 570 | M119: INE365D01021
A120: ASHIMASYN | B120: BE | C120: 13 | D120: 13.4 | E120: 12.8 | F120: 12.95 | G120: 13 | H120: 13 | I120: 94003 | J120: 1226183.7 | K120: 2019-03-15 | L120: 86 | M120: INE440A01010
A121: ASHOKA | B121: EQ | C121: 138.15 | D121: 140.2 | E121: 136 | F121: 137.45 | G121: 137.4 | H121: 139.3 | I121: 428070 | J121: 59329574.15 | K121: 2019-03-15 | L121: 6196 | M121: INE442H01029
A122: ASHOKLEY | B122: EQ | C122: 93.95 | D122: 95 | E122: 93.65 | F122: 94.1 | G122: 93.85 | H122: 93.95 | I122: 24437891 | J122: 2303749818 | K122: 2019-03-15 | L122: 58486 | M122: INE208A01029
A123: ASIANHOTNR | B123: EQ | C123: 144.65 | D123: 144.65 | E123: 140.45 | F123: 141.55 | G123: 141.3 | H123: 140.4 | I123: 1015 | J123: 143601.4 | K123: 2019-03-15 | L123: 21 | M123: INE363A01022
A124: ASIANPAINT | B124: EQ | C124: 1434 | D124: 1457 | E124: 1428.65 | F124: 1432.55 | G124: 1437 | H124: 1434.75 | I124: 1667627 | J124: 2401280702 | K124: 2019-03-15 | L124: 70237 | M124: INE021A01026
A125: ASIANTILES | B125: EQ | C125: 240.9 | D125: 243.5 | E125: 235.55 | F125: 236.65 | G125: 236.5 | H125: 238.35 | I125: 74955 | J125: 17885141.25 | K125: 2019-03-15 | L125: 1581 | M125: INE022I01019
A126: ASPINWALL | B126: EQ | C126: 180 | D126: 180 | E126: 176 | F126: 177.25 | G126: 177.25 | H126: 176.4 | I126: 5747 | J126: 1028006.5 | K126: 2019-03-15 | L126: 55 | M126: INE991I01015
A127: ASSAMCO | B127: BE | C127: 2.55 | D127: 2.55 | E127: 2.35 | F127: 2.35 | G127: 2.4 | H127: 2.45 | I127: 277651 | J127: 657899.1 | K127: 2019-03-15 | L127: 178 | M127: INE442A01024
A128: ASTEC | B128: EQ | C128: 526.95 | D128: 526.95 | E128: 510 | F128: 513.35 | G128: 514 | H128: 520.75 | I128: 8744 | J128: 4518650.85 | K128: 2019-03-15 | L128: 674 | M128: INE563J01010
A129: ASTERDM | B129: EQ | C129: 159.9 | D129: 161 | E129: 154.5 | F129: 155 | G129: 155 | H129: 157.45 | I129: 25963 | J129: 4045553.95 | K129: 2019-03-15 | L129: 486 | M129: INE914M01019
A130: ASTRAL | B130: EQ | C130: 1154 | D130: 1235 | E130: 1125 | F130: 1154.55 | G130: 1129.55 | H130: 1156.4 | I130: 684580 | J130: 793592327.5 | K130: 2019-03-15 | L130: 16401 | M130: INE006I01046
A131: ASTRAMICRO | B131: EQ | C131: 98.9 | D131: 99.7 | E131: 94.05 | F131: 95.35 | G131: 95.8 | H131: 98.65 | I131: 1111857 | J131: 107448323.8 | K131: 2019-03-15 | L131: 5805 | M131: INE386C01029
A132: ASTRAZEN | B132: EQ | C132: 2014.95 | D132: 2022.5 | E132: 1956 | F132: 1970.8 | G132: 1969.95 | H132: 2005.4 | I132: 10209 | J132: 20364355.05 | K132: 2019-03-15 | L132: 1409 | M132: INE203A01020
A133: ASTRON | B133: EQ | C133: 102.45 | D133: 103 | E133: 101.35 | F133: 102.15 | G133: 102 | H133: 102 | I133: 451810 | J133: 46201712.8 | K133: 2019-03-15 | L133: 3227 | M133: INE646X01014
A134: ATFL | B134: EQ | C134: 567.55 | D134: 580.95 | E134: 567.55 | F134: 579.35 | G134: 578.9 | H134: 573.3 | I134: 2998 | J134: 1733832.4 | K134: 2019-03-15 | L134: 252 | M134: INE209A01019
A135: ATLANTA | B135: EQ | C135: 22.5 | D135: 22.5 | E135: 21 | F135: 21.1 | G135: 21.2 | H135: 21.75 | I135: 28601 | J135: 613654.2 | K135: 2019-03-15 | L135: 245 | M135: INE285H01022
A136: ATLASCYCLE | B136: BE | C136: 94.95 | D136: 94.95 | E136: 88 | F136: 90.25 | G136: 91 | H136: 90.9 | I136: 5162 | J136: 464199.25 | K136: 2019-03-15 | L136: 105 | M136: INE446A01025
A137: ATUL | B137: EQ | C137: 3288.8 | D137: 3334.95 | E137: 3200 | F137: 3263.8 | G137: 3243.15 | H137: 3288.7 | I137: 9089 | J137: 29864322.15 | K137: 2019-03-15 | L137: 1793 | M137: INE100A01010
A138: ATULAUTO | B138: EQ | C138: 348 | D138: 348 | E138: 337 | F138: 340.3 | G138: 337 | H138: 340.8 | I138: 10424 | J138: 3551212.55 | K138: 2019-03-15 | L138: 605 | M138: INE951D01028
A139: AUBANK | B139: EQ | C139: 596 | D139: 615.95 | E139: 595 | F139: 610.9 | G139: 607 | H139: 591.45 | I139: 259528 | J139: 157204813.8 | K139: 2019-03-15 | L139: 9758 | M139: INE949L01017
A140: AURIONPRO | B140: EQ | C140: 129.95 | D140: 136.65 | E140: 129.7 | F140: 131.1 | G140: 130.95 | H140: 128.6 | I140: 54453 | J140: 7261493.85 | K140: 2019-03-15 | L140: 1210 | M140: INE132H01018
A141: AUROPHARMA | B141: EQ | C141: 782 | D141: 785 | E141: 768.4 | F141: 771.6 | G141: 771.6 | H141: 778.65 | I141: 1860397 | J141: 1439981231 | K141: 2019-03-15 | L141: 42884 | M141: INE406A01037
A142: AUSOMENT | B142: EQ | C142: 38.45 | D142: 38.5 | E142: 36.55 | F142: 37.4 | G142: 37.3 | H142: 37.75 | I142: 5529 | J142: 210688.35 | K142: 2019-03-15 | L142: 245 | M142: INE218C01016
A143: AUTOAXLES | B143: EQ | C143: 1246 | D143: 1268.2 | E143: 1235.8 | F143: 1258 | G143: 1264 | H143: 1243.6 | I143: 23918 | J143: 30007048.25 | K143: 2019-03-15 | L143: 1797 | M143: INE449A01011
A144: AUTOIND | B144: EQ | C144: 55.55 | D144: 55.8 | E144: 54.3 | F144: 54.8 | G144: 54.85 | H144: 54.7 | I144: 7523 | J144: 415671.2 | K144: 2019-03-15 | L144: 188 | M144: INE718H01014
A145: AUTOLITIND | B145: EQ | C145: 39.25 | D145: 39.25 | E145: 37.3 | F145: 38 | G145: 38 | H145: 38.45 | I145: 3030 | J145: 115544.5 | K145: 2019-03-15 | L145: 72 | M145: INE448A01013
A146: AVADHSUGAR | B146: EQ | C146: 483 | D146: 493 | E146: 477 | F146: 481.55 | G146: 482.5 | H146: 479.15 | I146: 97950 | J146: 47285419.9 | K146: 2019-03-15 | L146: 2251 | M146: INE349W01017
A147: AVANTIFEED | B147: EQ | C147: 425.5 | D147: 436.45 | E147: 415 | F147: 417 | G147: 417.25 | H147: 422.55 | I147: 646013 | J147: 273079513 | K147: 2019-03-15 | L147: 14985 | M147: INE871C01038
A148: AVTNPL | B148: EQ | C148: 26.55 | D148: 26.75 | E148: 26.2 | F148: 26.3 | G148: 26.25 | H148: 26.15 | I148: 15437 | J148: 408614.6 | K148: 2019-03-15 | L148: 135 | M148: INE488D01021
A149: AXISBANK | B149: EQ | C149: 742.95 | D149: 748.95 | E149: 731.7 | F149: 735.1 | G149: 736.5 | H149: 740.6 | I149: 14560368 | J149: 1.077033768e+10 | K149: 2019-03-15 | L149: 155385 | M149: INE238A01034
A150: AXISCADES | B150: EQ | C150: 70.55 | D150: 71.5 | E150: 65.5 | F150: 66.55 | G150: 65.5 | H150: 69.9 | I150: 89938 | J150: 6103520.55 | K150: 2019-03-15 | L150: 1265 | M150: INE555B01013
A151: AXISGOLD | B151: EQ | C151: 2816.95 | D151: 2967 | E151: 2770.95 | F151: 2816.7 | G151: 2823.9 | H151: 2813.5 | I151: 834 | J151: 2369757.1 | K151: 2019-03-15 | L151: 150 | M151: INF846K01347
A152: AXISNIFTY | B152: EQ | C152: 1170.43 | D152: 1170.44 | E152: 1161.17 | F152: 1163.16 | G152: 1163.16 | H152: 1153.51 | I152: 63 | J152: 73257.58 | K152: 2019-03-15 | L152: 7 | M152: INF846K01ZL0
A153: AYMSYNTEX | B153: EQ | C153: 37.65 | D153: 37.9 | E153: 36.9 | F153: 37.05 | G153: 37.7 | H153: 37.65 | I153: 12181 | J153: 453687.5 | K153: 2019-03-15 | L153: 93 | M153: INE193B01039
A154: BAFNAPHARM | B154: EQ | C154: 11.1 | D154: 11.1 | E154: 10.6 | F154: 10.75 | G154: 10.6 | H154: 10.85 | I154: 1612 | J154: 17389.8 | K154: 2019-03-15 | L154: 51 | M154: INE878I01014
A155: BAGFILMS | B155: EQ | C155: 5.2 | D155: 5.25 | E155: 5.05 | F155: 5.1 | G155: 5.15 | H155: 5.05 | I155: 100092 | J155: 516044.05 | K155: 2019-03-15 | L155: 150 | M155: INE116D01028
A156: BAJAJ-AUTO | B156: EQ | C156: 3002.1 | D156: 3032.2 | E156: 2980 | F156: 3023.8 | G156: 3026 | H156: 3016.85 | I156: 538508 | J156: 1622469881 | K156: 2019-03-15 | L156: 37006 | M156: INE917I01010
A157: BAJAJCON | B157: EQ | C157: 328 | D157: 328 | E157: 322.5 | F157: 323.7 | G157: 322.9 | H157: 326.65 | I157: 341340 | J157: 111066113.4 | K157: 2019-03-15 | L157: 9033 | M157: INE933K01021
A158: BAJAJELEC | B158: EQ | C158: 507.1 | D158: 529.05 | E158: 504 | F158: 516.5 | G158: 517 | H158: 506.2 | I158: 469422 | J158: 243171449.1 | K158: 2019-03-15 | L158: 16481 | M158: INE193E01025
A159: BAJAJFINSV | B159: EQ | C159: 6920 | D159: 7004 | E159: 6900 | F159: 6927.95 | G159: 6924.35 | H159: 6932.1 | I159: 219456 | J159: 1526438912 | K159: 2019-03-15 | L159: 25402 | M159: INE918I01018
A160: BAJAJHIND | B160: EQ | C160: 8.7 | D160: 8.75 | E160: 8.45 | F160: 8.5 | G160: 8.45 | H160: 8.6 | I160: 1403921 | J160: 12035811.1 | K160: 2019-03-15 | L160: 1488 | M160: INE306A01021
A161: BAJAJHLDNG | B161: EQ | C161: 3358.85 | D161: 3376.05 | E161: 3300 | F161: 3337.2 | G161: 3348 | H161: 3335.85 | I161: 49372 | J161: 164831768.3 | K161: 2019-03-15 | L161: 6816 | M161: INE118A01012
A162: BAJFINANCE | B162: EQ | C162: 2818.8 | D162: 2899 | E162: 2815 | F162: 2860.75 | G162: 2862.8 | H162: 2808.1 | I162: 2091562 | J162: 5976128977 | K162: 2019-03-15 | L162: 75939 | M162: INE296A01024
A163: BALAJITELE | B163: EQ | C163: 84.5 | D163: 85.2 | E163: 82.1 | F163: 82.65 | G163: 83.15 | H163: 84.55 | I163: 88850 | J163: 7422999.4 | K163: 2019-03-15 | L163: 1224 | M163: INE794B01026
A164: BALAMINES | B164: EQ | C164: 489.45 | D164: 497 | E164: 480 | F164: 481.4 | G164: 483 | H164: 489.45 | I164: 18777 | J164: 9132887.9 | K164: 2019-03-15 | L164: 1294 | M164: INE050E01027
A165: BALKRISHNA | B165: EQ | C165: 46.6 | D165: 46.6 | E165: 44.05 | F165: 44.4 | G165: 44.05 | H165: 44.9 | I165: 9270 | J165: 416844.65 | K165: 2019-03-15 | L165: 103 | M165: INE875R01011
A166: BALKRISIND | B166: EQ | C166: 939.9 | D166: 948.9 | E166: 927.8 | F166: 931.65 | G166: 932.3 | H166: 931.05 | I166: 587325 | J166: 551650677.8 | K166: 2019-03-15 | L166: 28306 | M166: INE787D01026
A167: BALLARPUR | B167: EQ | C167: 3.5 | D167: 3.55 | E167: 3.2 | F167: 3.2 | G167: 3.2 | H167: 3.55 | I167: 2592944 | J167: 8597987.65 | K167: 2019-03-15 | L167: 1289 | M167: INE294A01037
A168: BALMLAWRIE | B168: EQ | C168: 187.95 | D168: 194 | E168: 187.7 | F168: 193.15 | G168: 193.65 | H168: 187.7 | I168: 138040 | J168: 26573252.95 | K168: 2019-03-15 | L168: 2222 | M168: INE164A01016
A169: BALPHARMA | B169: EQ | C169: 72.85 | D169: 73.9 | E169: 71 | F169: 71.8 | G169: 71.8 | H169: 72.7 | I169: 24650 | J169: 1797905.2 | K169: 2019-03-15 | L169: 498 | M169: INE083D01012
A170: BALRAMCHIN | B170: EQ | C170: 134 | D170: 135.3 | E170: 131.4 | F170: 132.9 | G170: 133.85 | H170: 133.55 | I170: 1537160 | J170: 205579264.6 | K170: 2019-03-15 | L170: 11559 | M170: INE119A01028
A171: BANARBEADS | B171: EQ | C171: 46.95 | D171: 46.95 | E171: 42.6 | F171: 45.95 | G171: 45.95 | H171: 42.15 | I171: 402 | J171: 18566.05 | K171: 2019-03-15 | L171: 21 | M171: INE655B01011
A172: BANARISUG | B172: EQ | C172: 1603.55 | D172: 1625 | E172: 1598 | F172: 1600.35 | G172: 1598.8 | H172: 1603.55 | I172: 1007 | J172: 1619762.55 | K172: 2019-03-15 | L172: 229 | M172: INE459A01010
A173: BANCOINDIA | B173: EQ | C173: 162.45 | D173: 163.9 | E173: 160.1 | F173: 161.15 | G173: 161.05 | H173: 160.95 | I173: 33287 | J173: 5378681.1 | K173: 2019-03-15 | L173: 531 | M173: INE213C01025
A174: BANDHANBNK | B174: EQ | C174: 516.85 | D174: 521.4 | E174: 510 | F174: 511.65 | G174: 510.5 | H174: 513.6 | I174: 490943 | J174: 253253328.2 | K174: 2019-03-15 | L174: 13676 | M174: INE545U01014
A175: BANG | B175: EQ | C175: 36 | D175: 36 | E175: 31.6 | F175: 32.95 | G175: 32.7 | H175: 35.25 | I175: 84191 | J175: 2882901.5 | K175: 2019-03-15 | L175: 544 | M175: INE863I01016
A176: BANKBARODA | B176: EQ | C176: 116.4 | D176: 119.85 | E176: 116 | F176: 118.15 | G176: 117.95 | H176: 116.55 | I176: 21121349 | J176: 2502011741 | K176: 2019-03-15 | L176: 68444 | M176: INE028A01039
A177: BANKBEES | B177: EQ | C177: 2944.31 | D177: 3002.3 | E177: 2943.31 | F177: 2991.46 | G177: 2999.59 | H177: 2938.84 | I177: 31877 | J177: 95356023.85 | K177: 2019-03-15 | L177: 912 | M177: INF732E01078
A178: BANKINDIA | B178: EQ | C178: 92.9 | D178: 95 | E178: 92.7 | F178: 93.15 | G178: 93.2 | H178: 92.35 | I178: 11633846 | J178: 1089873226 | K178: 2019-03-15 | L178: 34688 | M178: INE084A01016
A179: BANSWRAS | B179: EQ | C179: 72.9 | D179: 72.9 | E179: 68 | F179: 69.45 | G179: 70.25 | H179: 70.45 | I179: 2800 | J179: 196553.2 | K179: 2019-03-15 | L179: 102 | M179: INE629D01012
A180: BARTRONICS | B180: EQ | C180: 6.8 | D180: 7 | E180: 6.7 | F180: 6.7 | G180: 6.75 | H180: 6.7 | I180: 8284 | J180: 55776.4 | K180: 2019-03-15 | L180: 39 | M180: INE855F01034
A181: BASF | B181: EQ | C181: 1432.05 | D181: 1432.8 | E181: 1374.05 | F181: 1390.8 | G181: 1390.15 | H181: 1431.55 | I181: 64976 | J181: 89957368.05 | K181: 2019-03-15 | L181: 1714 | M181: INE373A01013
A182: BASML | B182: EQ | C182: 194.55 | D182: 194.95 | E182: 187.25 | F182: 187.6 | G182: 187.45 | H182: 190.65 | I182: 1285 | J182: 241399.1 | K182: 2019-03-15 | L182: 26 | M182: INE186H01014
A183: BATAINDIA | B183: EQ | C183: 1364 | D183: 1386.6 | E183: 1358.3 | F183: 1374.2 | G183: 1361 | H183: 1364.3 | I183: 1920819 | J183: 2642612588 | K183: 2019-03-15 | L183: 40548 | M183: INE176A01028
A184: BAYERCROP | B184: EQ | C184: 4330.35 | D184: 4343.9 | E184: 4295 | F184: 4319 | G184: 4300 | H184: 4331.6 | I184: 3704 | J184: 16012822.55 | K184: 2019-03-15 | L184: 956 | M184: INE462A01022
A185: BBL | B185: EQ | C185: 1115.05 | D185: 1125 | E185: 1100.2 | F185: 1104.4 | G185: 1106.5 | H185: 1120 | I185: 6602 | J185: 7314838.95 | K185: 2019-03-15 | L185: 507 | M185: INE464A01028
A186: BBTC | B186: EQ | C186: 1334.95 | D186: 1343 | E186: 1304 | F186: 1311.8 | G186: 1310.3 | H186: 1331.55 | I186: 61121 | J186: 80963960.65 | K186: 2019-03-15 | L186: 3483 | M186: INE050A01025
A187: BCG | B187: BE | C187: 3.2 | D187: 3.2 | E187: 3 | F187: 3 | G187: 3 | H187: 3.15 | I187: 473397 | J187: 1429217.95 | K187: 2019-03-15 | L187: 309 | M187: INE425B01027
A188: BDL | B188: EQ | C188: 285 | D188: 290 | E188: 283.65 | F188: 286.2 | G188: 287.3 | H188: 285.15 | I188: 34227 | J188: 9822231.65 | K188: 2019-03-15 | L188: 1198 | M188: INE171Z01018
A189: BEARDSELL | B189: EQ | C189: 15.5 | D189: 16 | E189: 15.5 | F189: 15.7 | G189: 15.7 | H189: 15.5 | I189: 5276 | J189: 82082 | K189: 2019-03-15 | L189: 23 | M189: INE520H01022
A190: BEDMUTHA | B190: EQ | C190: 16.55 | D190: 17.45 | E190: 16.55 | F190: 17 | G190: 17 | H190: 16.9 | I190: 786 | J190: 13349.3 | K190: 2019-03-15 | L190: 12 | M190: INE844K01012
A191: BEL | B191: EQ | C191: 93.05 | D191: 95.45 | E191: 92.35 | F191: 94.95 | G191: 94.75 | H191: 93.2 | I191: 21185335 | J191: 1996385800 | K191: 2019-03-15 | L191: 63012 | M191: INE263A01024
A192: BEML | B192: EQ | C192: 973 | D192: 979 | E192: 958.1 | F192: 965.25 | G192: 958.1 | H192: 969.75 | I192: 1823308 | J192: 1765959734 | K192: 2019-03-15 | L192: 39705 | M192: INE258A01016
A193: BEPL | B193: EQ | C193: 76.6 | D193: 78 | E193: 72.5 | F193: 73.45 | G193: 72.85 | H193: 76.1 | I193: 635620 | J193: 47856128.6 | K193: 2019-03-15 | L193: 4665 | M193: INE922A01025
A194: BERGEPAINT | B194: EQ | C194: 306.4 | D194: 311 | E194: 306.35 | F194: 309.35 | G194: 309.55 | H194: 305.95 | I194: 815337 | J194: 251857700.1 | K194: 2019-03-15 | L194: 13562 | M194: INE463A01038
A195: BFINVEST | B195: EQ | C195: 265.9 | D195: 269.5 | E195: 262.4 | F195: 264 | G195: 265 | H195: 265.65 | I195: 79313 | J195: 21076379.45 | K195: 2019-03-15 | L195: 2253 | M195: INE878K01010
A196: BFUTILITIE | B196: EQ | C196: 201 | D196: 205.75 | E196: 192.25 | F196: 195.4 | G196: 194.8 | H196: 199.9 | I196: 643488 | J196: 129217502.2 | K196: 2019-03-15 | L196: 9152 | M196: INE243D01012
A197: BGLOBAL | B197: BE | C197: 2.6 | D197: 2.6 | E197: 2.5 | F197: 2.6 | G197: 2.6 | H197: 2.5 | I197: 16826 | J197: 43048.9 | K197: 2019-03-15 | L197: 22 | M197: INE224M01013
A198: BGRENERGY | B198: EQ | C198: 65.8 | D198: 66.5 | E198: 62.5 | F198: 63.1 | G198: 63.1 | H198: 65.4 | I198: 137764 | J198: 8842865.05 | K198: 2019-03-15 | L198: 1434 | M198: INE661I01014
A199: BHAGERIA | B199: EQ | C199: 274.75 | D199: 274.75 | E199: 268.1 | F199: 269.05 | G199: 268.5 | H199: 270.95 | I199: 3053 | J199: 827045.9 | K199: 2019-03-15 | L199: 207 | M199: INE354C01027
A200: BHAGYANGR | B200: EQ | C200: 31.55 | D200: 35.7 | E200: 30 | F200: 32 | G200: 32 | H200: 31.9 | I200: 5841 | J200: 186227.8 | K200: 2019-03-15 | L200: 107 | M200: INE458B01036
... 1440 more rows

Sheet Sheet1 (hidden)

Sheet Sheet3 (hidden)

Sheet Sheet4 (hidden)
